Workbook

Sheet Main
B10: 2019-10-10
B12: Sheet No. | C12: Template Name | D12: Summary
B13: 1 | C13: Future Intra | D13: For Intraday trading in F&O segment
B14: 2 | C14: Cash Intra | D14: For Intraday trading in cash market segment
B15: 3 | C15: Mid-cap Intra | D15: For Intraday trading in Mid-cap stocks
B16: 4 | C16: Bulk Deals | D16: Reveals Bulk Deals carried on NSE & BSE
B17: 5 | C17: Call Tracker
K27: `

Sheet Future Intra
M5: Back to Main Page
A6: FOR INTRA DAY TRADING | L6: =Main!B10 -> 2019-10-10
A9: Sr.no | B9: Sector | C9: Scrip | D9: CLOSE RATE | E9: Pivot Point | F9: Supports | I9: Resistances
B10: Sector | D10: Point | E10: Point | F10: S1 | G10: S2 | H10: S3 | I10: R1 | J10: R2 | K10: R3 | L10: HIGH | M10: LOW | N10: OI | O10: % Change in OI
A11: 1 | B11: Index | C11: BANKNIFTY | D11: 28874.05 | E11: 28546.00 | F11: 28102.05 | G11: 27330.05 | H11: 26886.10 | I11: 29318.00 | J11: 29761.95 | K11: 30533.95 | L11: 28989.95 | M11: 27774 | N11: 1456320 | O11: -5.15%
A12: 2 | B12: Index | C12: NIFTY | D12: 11347.70 | E12: 11274.90 | F12: 11186.55 | G12: 11025.40 | H12: 10937.05 | I12: 11436.05 | J12: 11524.40 | K12: 11685.55 | L12: 11363.25 | M12: 11113.75 | N12: 15610500 | O12: -5.67%
A13: 3 | B13: Index | C13: NIFTYIT | D13: 15183.00 | E13: 15186.67 | F13: 15071.33 | G13: 14959.67 | H13: 14844.33 | I13: 15298.33 | J13: 15413.67 | K13: 15525.33 | L13: 15302 | M13: 15075 | N13: 12150 | O13: 7.05%
A14: 4 | B14: Cement | C14: ACC | D14: 1473.95 | E14: 1459.42 | F14: 1437.58 | G14: 1401.22 | H14: 1379.38 | I14: 1495.78 | J14: 1517.62 | K14: 1553.98 | L14: 1481.25 | M14: 1423.05 | N14: 2388800 | O14: 4.61%
A15: 5 | B15: Others | C15: ADANIENT | D15: 139.45 | E15: 137.95 | F15: 135.65 | G15: 131.85 | H15: 129.55 | I15: 141.75 | J15: 144.05 | K15: 147.85 | L15: 140.25 | M15: 134.15 | N15: 26384000 | O15: 0.47%
A16: 6 | B16: Others | C16: ADANIPORTS | D16: 402.65 | E16: 400.30 | F16: 395.85 | G16: 389.05 | H16: 384.60 | I16: 407.10 | J16: 411.55 | K16: 418.35 | L16: 404.75 | M16: 393.5 | N16: 11910000 | O16: 2.01%
A17: 7 | B17: Power | C17: ADANIPOWER | D17: 61.00 | E17: 60.22 | F17: 59.13 | G17: 57.27 | H17: 56.18 | I17: 62.08 | J17: 63.17 | K17: 65.03 | L17: 61.3 | M17: 58.35 | N17: 92320000 | O17: 1.36%
A18: 8 | B18: Automobile | C18: AMARAJABAT | D18: 695.80 | E18: 689.43 | F18: 681.37 | G18: 666.93 | H18: 658.87 | I18: 703.87 | J18: 711.93 | K18: 726.37 | L18: 697.5 | M18: 675 | N18: 1618400 | O18: -0.60%
A19: 9 | B19: Cement | C19: AMBUJACEM | D19: 192.75 | E19: 190.32 | F19: 186.93 | G19: 181.12 | H19: 177.73 | I19: 196.13 | J19: 199.52 | K19: 205.33 | L19: 193.7 | M19: 184.5 | N19: 24050000 | O19: -2.69%
A20: 10 | B20: Others | C20: APOLLOHOSP | D20: 1427.20 | E20: 1418.98 | F20: 1406.87 | G20: 1386.53 | H20: 1374.42 | I20: 1439.32 | J20: 1451.43 | K20: 1471.77 | L20: 1431.1 | M20: 1398.65 | N20: 1461500 | O20: -2.44%
A21: 11 | B21: Automobile | C21: APOLLOTYRE | D21: 167.80 | E21: 166.40 | F21: 164.00 | G21: 160.20 | H21: 157.80 | I21: 170.20 | J21: 172.60 | K21: 176.40 | L21: 168.8 | M21: 162.6 | N21: 7362000 | O21: -4.22%
A22: 13 | B22: Automobile | C22: ASHOKLEY | D22: 69.35 | E22: 67.98 | F22: 65.97 | G22: 62.58 | H22: 60.57 | I22: 71.37 | J22: 73.38 | K22: 76.77 | L22: 70 | M22: 64.6 | N22: 69198000 | O22: -1.11%
A23: 14 | B23: FMCG | C23: ASIANPAINT | D23: 1771.90 | E23: 1759.60 | F23: 1742.45 | G23: 1713.00 | H23: 1695.85 | I23: 1789.05 | J23: 1806.20 | K23: 1835.65 | L23: 1776.75 | M23: 1730.15 | N23: 8517600 | O23: -0.42%
A24: 15 | B24: Pharma | C24: AUROPHARMA | D24: 476.40 | E24: 473.25 | F24: 459.40 | G24: 442.40 | H24: 428.55 | I24: 490.25 | J24: 504.10 | K24: 521.10 | L24: 487.1 | M24: 456.25 | N24: 19205000 | O24: -3.55%
A25: 16 | B25: Banking | C25: AXISBANK | D25: 690.25 | E25: 683.52 | F25: 673.33 | G25: 656.42 | H25: 646.23 | I25: 700.43 | J25: 710.62 | K25: 727.53 | L25: 693.7 | M25: 666.6 | N25: 61124400 | O25: -1.12%
A26: 17 | B26: Automobile | C26: BAJAJ-AUTO | D26: 2908.20 | E26: 2908.27 | F26: 2888.53 | G26: 2868.87 | H26: 2849.13 | I26: 2927.93 | J26: 2947.67 | K26: 2967.33 | L26: 2928 | M26: 2888.6 | N26: 2154000 | O26: 5.03%
A27: 18 | B27: Finance | C27: BAJAJFINSV | D27: 8363.85 | E27: 8324.30 | F27: 8253.75 | G27: 8143.65 | H27: 8073.10 | I27: 8434.40 | J27: 8504.95 | K27: 8615.05 | L27: 8394.85 | M27: 8214.2 | N27: 1055250 | O27: 5.92%
A28: 19 | B28: Finance | C28: BAJFINANCE | D28: 4043.55 | E28: 3996.95 | F28: 3940.95 | G28: 3838.35 | H28: 3782.35 | I28: 4099.55 | J28: 4155.55 | K28: 4258.15 | L28: 4052.95 | M28: 3894.35 | N28: 6703750 | O28: 1.92%
A29: 20 | B29: Automobile | C29: BALKRISIND | D29: 737.30 | E29: 728.85 | F29: 718.75 | G29: 700.20 | H29: 690.10 | I29: 747.40 | J29: 757.50 | K29: 776.05 | L29: 738.95 | M29: 710.3 | N29: 1665600 | O29: -2.12%
A30: 21 | B30: Banking | C30: BANKBARODA | D30: 91.45 | E30: 89.95 | F30: 87.90 | G30: 84.35 | H30: 82.30 | I30: 93.50 | J30: 95.55 | K30: 99.10 | L30: 92 | M30: 86.4 | N30: 67630500 | O30: -1.84%
A31: 22 | B31: Banking | C31: BANKINDIA | D31: 61.65 | E31: 60.27 | F31: 58.28 | G31: 54.92 | H31: 52.93 | I31: 63.63 | J31: 65.62 | K31: 68.98 | L31: 62.25 | M31: 56.9 | N31: 26862000 | O31: -2.38%
A32: 23 | B32: FMCG | C32: BATAINDIA | D32: 1715.45 | E32: 1697.75 | F32: 1670.05 | G32: 1624.65 | H32: 1596.95 | I32: 1743.15 | J32: 1770.85 | K32: 1816.25 | L32: 1725.45 | M32: 1652.35 | N32: 2614150 | O32: 4.67%
A33: 24 | B33: Capital_Goods | C33: BEL | D33: 105.60 | E33: 105.63 | F33: 104.27 | G33: 102.93 | H33: 101.57 | I33: 106.97 | J33: 108.33 | K33: 109.67 | L33: 107 | M33: 104.3 | N33: 23406000 | O33: 3.92%
A34: 25 | B34: FMCG | C34: BERGEPAINT | D34: 441.20 | E34: 436.28 | F34: 429.92 | G34: 418.63 | H34: 412.27 | I34: 447.57 | J34: 453.93 | K34: 465.22 | L34: 442.65 | M34: 425 | N34: 6001600 | O34: 14.48%
A35: 26 | B35: Automobile | C35: BHARATFORG | D35: 433.90 | E35: 430.60 | F35: 421.30 | G35: 408.70 | H35: 399.40 | I35: 443.20 | J35: 452.50 | K35: 465.10 | L35: 439.9 | M35: 418 | N35: 7779600 | O35: -1.65%
A36: 27 | B36: Telecom | C36: BHARTIARTL | D36: 361.55 | E36: 354.87 | F36: 346.78 | G36: 332.02 | H36: 323.93 | I36: 369.63 | J36: 377.72 | K36: 392.48 | L36: 362.95 | M36: 340.1 | N36: 43067217 | O36: 6.44%
A37: 28 | B37: Capital_Goods | C37: BHEL | D37: 43.95 | E37: 43.55 | F37: 42.90 | G37: 41.85 | H37: 41.20 | I37: 44.60 | J37: 45.25 | K37: 46.30 | L37: 44.2 | M37: 42.5 | N37: 48825000 | O37: 0.00%
A38: 29 | B38: Pharma | C38: BIOCON | D38: 233.45 | E38: 230.83 | F38: 226.62 | G38: 219.78 | H38: 215.57 | I38: 237.67 | J38: 241.88 | K38: 248.72 | L38: 235.05 | M38: 224 | N38: 11181600 | O38: -3.50%
A39: 30 | B39: Automobile | C39: BOSCHLTD | D39: 13326.70 | E39: 13283.67 | F39: 13119.83 | G39: 12912.97 | H39: 12749.13 | I39: 13490.53 | J39: 13654.37 | K39: 13861.23 | L39: 13447.5 | M39: 13076.8 | N39: 146790 | O39: -0.08%
A40: 31 | B40: Oil_Gas | C40: BPCL | D40: 495.35 | E40: 492.45 | F40: 486.60 | G40: 477.85 | H40: 472.00 | I40: 501.20 | J40: 507.05 | K40: 515.80 | L40: 498.3 | M40: 483.7 | N40: 22908600 | O40: 0.36%
A41: 32 | B41: FMCG | C41: BRITANNIA | D41: 3063.95 | E41: 3024.62 | F41: 2976.03 | G41: 2888.12 | H41: 2839.53 | I41: 3112.53 | J41: 3161.12 | K41: 3249.03 | L41: 3073.2 | M41: 2936.7 | N41: 2092000 | O41: -3.24%
A42: 34 | B42: Pharma | C42: CADILAHC | D42: 237.30 | E42: 234.03 | F42: 229.57 | G42: 221.83 | H42: 217.37 | I42: 241.77 | J42: 246.23 | K42: 253.97 | L42: 238.5 | M42: 226.3 | N42: 8758400 | O42: 0.07%
A43: 35 | B43: Banking | C43: CANBK | D43: 185.10 | E43: 182.00 | F43: 177.60 | G43: 170.10 | H43: 165.70 | I43: 189.50 | J43: 193.90 | K43: 201.40 | L43: 186.4 | M43: 174.5 | N43: 12642000 | O43: -6.20%
A44: 36 | B44: Oil_Gas | C44: CASTROLIND | D44: 133.20 | E44: 132.12 | F44: 130.68 | G44: 128.17 | H44: 126.73 | I44: 134.63 | J44: 136.07 | K44: 138.58 | L44: 133.55 | M44: 129.6 | N44: 5820800 | O44: -0.41%
A45: 37 | B45: Textile | C45: CENTURYTEX | D45: 926.50 | E45: 909.25 | F45: 879.60 | G45: 832.70 | H45: 803.05 | I45: 956.15 | J45: 985.80 | K45: 1032.70 | L45: 938.9 | M45: 862.35 | N45: 1943400 | O45: -34.58%
A46: 38 | B46: Power | C46: CESC | D46: 759.10 | E46: 751.05 | F46: 738.80 | G46: 718.50 | H46: 706.25 | I46: 771.35 | J46: 783.60 | K46: 803.90 | L46: 763.3 | M46: 730.75 | N46: 1395200 | O46: -4.02%
A47: 39 | B47: Finance | C47: CHOLAFIN | D47: 297.15 | E47: 293.45 | F47: 287.95 | G47: 278.75 | H47: 273.25 | I47: 302.65 | J47: 308.15 | K47: 317.35 | L47: 298.95 | M47: 284.25 | N47: 2937500 | O47: 14.52%
A48: 40 | B48: Pharma | C48: CIPLA | D48: 424.45 | E48: 420.58 | F48: 412.67 | G48: 400.88 | H48: 392.97 | I48: 432.37 | J48: 440.28 | K48: 452.07 | L48: 428.5 | M48: 408.8 | N48: 14616000 | O48: 0.49%
A49: 41 | B49: Others | C49: COALINDIA | D49: 186.35 | E49: 185.82 | F49: 184.08 | G49: 181.82 | H49: 180.08 | I49: 188.08 | J49: 189.82 | K49: 192.08 | L49: 187.55 | M49: 183.55 | N49: 34335400 | O49: 2.56%
A50: 42 | B50: FMCG | C50: COLPAL | D50: 1500.10 | E50: 1488.83 | F50: 1472.32 | G50: 1444.53 | H50: 1428.02 | I50: 1516.62 | J50: 1533.13 | K50: 1560.92 | L50: 1505.35 | M50: 1461.05 | N50: 1667400 | O50: 0.89%
A51: 43 | B51: Others | C51: CONCOR | D51: 574.40 | E51: 574.12 | F51: 566.73 | G51: 559.07 | H51: 551.68 | I51: 581.78 | J51: 589.17 | K51: 596.83 | L51: 581.5 | M51: 566.45 | N51: 4985970 | O51: 4.42%
A52: 44 | B52: Capital_Goods | C52: CUMMINSIND | D52: 572.15 | E52: 571.32 | F52: 563.83 | G52: 555.52 | H52: 548.03 | I52: 579.63 | J52: 587.12 | K52: 595.43 | L52: 578.8 | M52: 563 | N52: 1521100 | O52: 0.05%
A53: 45 | B53: FMCG | C53: DABUR | D53: 444.30 | E53: 440.87 | F53: 435.58 | G53: 426.87 | H53: 421.58 | I53: 449.58 | J53: 454.87 | K53: 463.58 | L53: 446.15 | M53: 432.15 | N53: 11705000 | O53: -1.56%
A54: 47 | B54: Media | C54: DISHTV | D54: 18.55 | E54: 18.05 | F54: 17.15 | G54: 15.75 | H54: 14.85 | I54: 19.45 | J54: 20.35 | K54: 21.75 | L54: 18.95 | M54: 16.65 | N54: 98350000 | O54: 4.65%
A55: 48 | B55: Pharma | C55: DIVISLAB | D55: 1659.65 | E55: 1649.62 | F55: 1636.03 | G55: 1612.42 | H55: 1598.83 | I55: 1673.23 | J55: 1686.82 | K55: 1710.43 | L55: 1663.2 | M55: 1626 | N55: 2389200 | O55: -0.08%
A56: 49 | B56: Realty | C56: DLF | D56: 148.75 | E56: 146.13 | F56: 141.72 | G56: 134.68 | H56: 130.27 | I56: 153.17 | J56: 157.58 | K56: 164.62 | L56: 150.55 | M56: 139.1 | N56: 45413200 | O56: 8.11%
A57: 50 | B57: Pharma | C57: DRREDDY | D57: 2669.00 | E57: 2651.35 | F57: 2622.70 | G57: 2576.40 | H57: 2547.75 | I57: 2697.65 | J57: 2726.30 | K57: 2772.60 | L57: 2680 | M57: 2605.05 | N57: 3661000 | O57: -3.56%
A58: 51 | B58: Automobile | C58: EICHERMOT | D58: 18294.40 | E58: 18175.72 | F58: 18007.13 | G58: 17719.87 | H58: 17551.28 | I58: 18462.98 | J58: 18631.57 | K58: 18918.83 | L58: 18344.3 | M58: 17888.45 | N58: 330250 | O58: -1.87%
A59: 53 | B59: Finance | C59: EQUITAS | D59: 101.35 | E59: 100.33 | F59: 98.82 | G59: 96.28 | H59: 94.77 | I59: 102.87 | J59: 104.38 | K59: 106.92 | L59: 101.85 | M59: 97.8 | N59: 10836000 | O59: -2.94%
A60: 54 | B60: Automobile | C60: ESCORTS | D60: 611.70 | E60: 603.77 | F60: 591.53 | G60: 571.37 | H60: 559.13 | I60: 623.93 | J60: 636.17 | K60: 656.33 | L60: 616 | M60: 583.6 | N60: 5585800 | O60: 12.49%
A61: 55 | B61: Automobile | C61: EXIDEIND | D61: 191.75 | E61: 189.87 | F61: 187.13 | G61: 182.52 | H61: 179.78 | I61: 194.48 | J61: 197.22 | K61: 201.83 | L61: 192.6 | M61: 185.25 | N61: 9960000 | O61: 6.03%
A62: 56 | B62: Banking | C62: FEDERALBNK | D62: 86.35 | E62: 85.77 | F62: 84.63 | G62: 82.92 | H62: 81.78 | I62: 87.48 | J62: 88.62 | K62: 90.33 | L62: 86.9 | M62: 84.05 | N62: 44674000 | O62: 4.25%
A63: 57 | B63: Oil_Gas | C63: GAIL | D63: 132.65 | E63: 131.72 | F63: 130.13 | G63: 127.62 | H63: 126.03 | I63: 134.23 | J63: 135.82 | K63: 138.33 | L63: 133.3 | M63: 129.2 | N63: 42794682 | O63: 1.91%
A64: 58 | B64: Pharma | C64: GLENMARK | D64: 292.25 | E64: 289.63 | F64: 284.82 | G64: 277.38 | H64: 272.57 | I64: 297.07 | J64: 301.88 | K64: 309.32 | L64: 294.45 | M64: 282.2 | N64: 6026000 | O64: 0.84%
A65: 59 | B65: Infrastructure | C65: GMRINFRA | D65: 17.35 | E65: 17.03 | F65: 16.72 | G65: 16.08 | H65: 15.77 | I65: 17.67 | J65: 17.98 | K65: 18.62 | L65: 17.35 | M65: 16.4 | N65: 143730000 | O65: 0.22%
A66: 60 | B66: FMCG | C66: GODREJCP | D66: 677.25 | E66: 672.47 | F66: 665.78 | G66: 654.32 | H66: 647.63 | I66: 683.93 | J66: 690.62 | K66: 702.08 | L66: 679.15 | M66: 661 | N66: 6397600 | O66: 1.48%
A67: 61 | B67: Cement | C67: GRASIM | D67: 674.90 | E67: 667.02 | F67: 654.38 | G67: 633.87 | H67: 621.23 | I67: 687.53 | J67: 700.17 | K67: 720.68 | L67: 679.65 | M67: 646.5 | N67: 18331500 | O67: 0.20%
A68: 62 | B68: Others | C68: HAVELLS | D68: 674.50 | E68: 670.62 | F68: 662.18 | G68: 649.87 | H68: 641.43 | I68: 682.93 | J68: 691.37 | K68: 703.68 | L68: 679.05 | M68: 658.3 | N68: 5395000 | O68: -0.81%
A69: 63 | B69: Technology | C69: HCLTECH | D69: 1051.75 | E69: 1055.13 | F69: 1039.92 | G69: 1028.08 | H69: 1012.87 | I69: 1066.97 | J69: 1082.18 | K69: 1094.02 | L69: 1070.35 | M69: 1043.3 | N69: 10862600 | O69: 1.88%
A70: 64 | B70: Finance | C70: HDFC | D70: 2011.60 | E70: 1999.03 | F70: 1982.57 | G70: 1953.53 | H70: 1937.07 | I70: 2028.07 | J70: 2044.53 | K70: 2073.57 | L70: 2015.5 | M70: 1970 | N70: 36821500 | O70: 0.10%
A71: 65 | B71: Banking | C71: HDFCBANK | D71: 1231.85 | E71: 1220.10 | F71: 1206.40 | G71: 1180.95 | H71: 1167.25 | I71: 1245.55 | J71: 1259.25 | K71: 1284.70 | L71: 1233.8 | M71: 1194.65 | N71: 39524000 | O71: -2.53%
A72: 66 | B72: Automobile | C72: HEROMOTOCO | D72: 2618.25 | E72: 2640.95 | F72: 2578.30 | G72: 2538.35 | H72: 2475.70 | I72: 2680.90 | J72: 2743.55 | K72: 2783.50 | L72: 2703.6 | M72: 2601 | N72: 3037600 | O72: 5.69%
A73: 67 | B73: Technology | C73: HEXAWARE | D73: 359.35 | E73: 360.12 | F73: 354.73 | G73: 350.12 | H73: 344.73 | I73: 364.73 | J73: 370.12 | K73: 374.73 | L73: 365.5 | M73: 355.5 | N73: 2244000 | O73: 6.02%
A74: 68 | B74: Metals | C74: HINDALCO | D74: 187.10 | E74: 185.37 | F74: 182.93 | G74: 178.77 | H74: 176.33 | I74: 189.53 | J74: 191.97 | K74: 196.13 | L74: 187.8 | M74: 181.2 | N74: 33463500 | O74: 1.42%
A75: 69 | B75: Oil_Gas | C75: HINDPETRO | D75: 316.35 | E75: 313.80 | F75: 306.35 | G75: 296.35 | H75: 288.90 | I75: 323.80 | J75: 331.25 | K75: 341.25 | L75: 321.25 | M75: 303.8 | N75: 20871900 | O75: 3.66%
A76: 70 | B76: FMCG | C76: HINDUNILVR | D76: 1948.40 | E76: 1944.72 | F76: 1929.78 | G76: 1911.17 | H76: 1896.23 | I76: 1963.33 | J76: 1978.27 | K76: 1996.88 | L76: 1959.65 | M76: 1926.1 | N76: 8748900 | O76: 0.01%
A77: 72 | B77: Finance | C77: IBULHSGFIN | D77: 233.45 | E77: 231.58 | F77: 222.32 | G77: 211.18 | H77: 201.92 | I77: 242.72 | J77: 251.98 | K77: 263.12 | L77: 240.85 | M77: 220.45 | N77: 22354400 | O77: 0.06%
A78: 73 | B78: Banking | C78: ICICIBANK | D78: 437.60 | E78: 431.85 | F78: 424.45 | G78: 411.30 | H78: 403.90 | I78: 445.00 | J78: 452.40 | K78: 465.55 | L78: 439.25 | M78: 418.7 | N78: 75113500 | O78: -8.92%
A79: 74 | B79: Finance | C79: ICICIPRULI | D79: 447.85 | E79: 447.27 | F79: 438.03 | G79: 428.22 | H79: 418.98 | I79: 457.08 | J79: 466.32 | K79: 476.13 | L79: 456.5 | M79: 437.45 | N79: 5997000 | O79: 7.62%
A80: 76 | B80: Telecom | C80: IDEA | D80: 5.90 | E80: 5.68 | F80: 5.37 | G80: 4.83 | H80: 4.52 | I80: 6.22 | J80: 6.53 | K80: 7.07 | L80: 6 | M80: 5.15 | N80: 604828000 | O80: 10.58%
A81: 77 | B81: Banking | C81: IDFCFIRSTB | D81: 36.75 | E81: 36.33 | F81: 35.37 | G81: 33.98 | H81: 33.02 | I81: 37.72 | J81: 38.68 | K81: 40.07 | L81: 37.3 | M81: 34.95 | N81: 244668000 | O81: 0.22%
A82: 78 | B82: Oil_Gas | C82: IGL | D82: 361.85 | E82: 359.47 | F82: 356.03 | G82: 350.22 | H82: 346.78 | I82: 365.28 | J82: 368.72 | K82: 374.53 | L82: 362.9 | M82: 353.65 | N82: 3239500 | O82: -0.25%
A83: 79 | B83: Others | C83: INDIGO | D83: 1797.00 | E83: 1787.52 | F83: 1771.68 | G83: 1746.37 | H83: 1730.53 | I83: 1812.83 | J83: 1828.67 | K83: 1853.98 | L83: 1803.35 | M83: 1762.2 | N83: 2733600 | O83: 8.84%
A84: 80 | B84: Banking | C84: INDUSINDBK | D84: 1315.30 | E84: 1293.10 | F84: 1260.25 | G84: 1205.20 | H84: 1172.35 | I84: 1348.15 | J84: 1381.00 | K84: 1436.05 | L84: 1325.95 | M84: 1238.05 | N84: 14796400 | O84: 0.56%
A85: 81 | B85: Telecom | C85: INFRATEL | D85: 255.20 | E85: 252.20 | F85: 247.40 | G85: 239.60 | H85: 234.80 | I85: 260.00 | J85: 264.80 | K85: 272.60 | L85: 257 | M85: 244.4 | N85: 6856000 | O85: -1.35%
A86: 82 | B86: Technology | C86: INFY | D86: 777.95 | E86: 779.72 | F86: 770.43 | G86: 762.92 | H86: 753.63 | I86: 787.23 | J86: 796.52 | K86: 804.03 | L86: 789 | M86: 772.2 | N86: 47014800 | O86: -0.16%
A87: 83 | B87: Oil_Gas | C87: IOC | D87: 148.70 | E87: 148.80 | F87: 147.35 | G87: 146.00 | H87: 144.55 | I87: 150.15 | J87: 151.60 | K87: 152.95 | L87: 150.25 | M87: 147.45 | N87: 48240500 | O87: -2.37%
A88: 84 | B88: FMCG | C88: ITC | D88: 247.75 | E88: 249.18 | F88: 245.27 | G88: 242.78 | H88: 238.87 | I88: 251.67 | J88: 255.58 | K88: 258.07 | L88: 253.1 | M88: 246.7 | N88: 107332800 | O88: 2.04%
A89: 85 | B89: Metals | C89: JINDALSTEL | D89: 98.10 | E89: 96.30 | F89: 93.85 | G89: 89.60 | H89: 87.15 | I89: 100.55 | J89: 103.00 | K89: 107.25 | L89: 98.75 | M89: 92.05 | N89: 35862400 | O89: 1.37%
A90: 86 | B90: Metals | C90: JSWSTEEL | D90: 213.85 | E90: 211.73 | F90: 208.72 | G90: 203.58 | H90: 200.57 | I90: 216.87 | J90: 219.88 | K90: 225.02 | L90: 214.75 | M90: 206.6 | N90: 54940000 | O90: 0.15%
A91: 87 | B91: Others | C91: JUBLFOOD | D91: 1298.60 | E91: 1286.42 | F91: 1262.98 | G91: 1227.37 | H91: 1203.93 | I91: 1322.03 | J91: 1345.47 | K91: 1381.08 | L91: 1309.85 | M91: 1250.8 | N91: 2132000 | O91: 6.28%
A92: 88 | B92: Others | C92: JUSTDIAL | D92: 628.80 | E92: 620.12 | F92: 597.18 | G92: 565.57 | H92: 542.63 | I92: 651.73 | J92: 674.67 | K92: 706.28 | L92: 643.05 | M92: 588.5 | N92: 2633400 | O92: 9.55%
A93: 90 | B93: Banking | C93: KOTAKBANK | D93: 1617.65 | E93: 1600.58 | F93: 1569.32 | G93: 1520.98 | H93: 1489.72 | I93: 1648.92 | J93: 1680.18 | K93: 1728.52 | L93: 1631.85 | M93: 1552.25 | N93: 8454400 | O93: -1.02%
A94: 91 | B94: Finance | C94: L&TFH | D94: 83.95 | E94: 82.28 | F94: 80.27 | G94: 76.58 | H94: 74.57 | I94: 85.97 | J94: 87.98 | K94: 91.67 | L94: 84.3 | M94: 78.6 | N94: 41062500 | O94: -2.73%
A95: 92 | B95: Finance | C95: LICHSGFIN | D95: 379.65 | E95: 374.80 | F95: 367.95 | G95: 356.25 | H95: 349.40 | I95: 386.50 | J95: 393.35 | K95: 405.05 | L95: 381.65 | M95: 363.1 | N95: 10364200 | O95: 1.40%
A96: 93 | B96: Capital_Goods | C96: LT | D96: 1429.35 | E96: 1423.68 | F96: 1410.57 | G96: 1391.78 | H96: 1378.67 | I96: 1442.47 | J96: 1455.58 | K96: 1474.37 | L96: 1436.8 | M96: 1404.9 | N96: 12807000 | O96: 0.50%
A97: 94 | B97: Pharma | C97: LUPIN | D97: 685.45 | E97: 678.47 | F97: 668.53 | G97: 651.62 | H97: 641.68 | I97: 695.38 | J97: 705.32 | K97: 722.23 | L97: 688.4 | M97: 661.55 | N97: 7861700 | O97: 0.30%
A98: 95 | B98: Automobile | C98: M&M | D98: 577.60 | E98: 569.97 | F98: 560.33 | G98: 543.07 | H98: 533.43 | I98: 587.23 | J98: 596.87 | K98: 614.13 | L98: 579.6 | M98: 552.7 | N98: 21567000 | O98: -2.12%
A99: 96 | B99: Finance | C99: M&MFIN | D99: 335.45 | E99: 332.65 | F99: 328.70 | G99: 321.95 | H99: 318.00 | I99: 339.40 | J99: 343.35 | K99: 350.10 | L99: 336.6 | M99: 325.9 | N99: 13980000 | O99: -2.59%
A100: 97 | B100: Finance | C100: MANAPPURAM | D100: 140.40 | E100: 138.40 | F100: 135.85 | G100: 131.30 | H100: 128.75 | I100: 142.95 | J100: 145.50 | K100: 150.05 | L100: 140.95 | M100: 133.85 | N100: 14040000 | O100: -2.05%
A101: 98 | B101: FMCG | C101: MARICO | D101: 384.70 | E101: 381.83 | F101: 378.02 | G101: 371.33 | H101: 367.52 | I101: 388.52 | J101: 392.33 | K101: 399.02 | L101: 385.65 | M101: 375.15 | N101: 11577800 | O101: -0.69%
A102: 99 | B102: Automobile | C102: MARUTI | D102: 6753.50 | E102: 6713.87 | F102: 6651.88 | G102: 6550.27 | H102: 6488.28 | I102: 6815.48 | J102: 6877.47 | K102: 6979.08 | L102: 6775.85 | M102: 6612.25 | N102: 2411175 | O102: -0.71%
A103: 100 | B103: FMCG | C103: MCDOWELL-N | D103: 624.80 | E103: 622.35 | F103: 616.40 | G103: 608.00 | H103: 602.05 | I103: 630.75 | J103: 636.70 | K103: 645.10 | L103: 628.3 | M103: 613.95 | N103: 10991250 | O103: -0.50%
A104: 102 | B104: Finance | C104: MFSL | D104: 417.95 | E104: 414.38 | F104: 409.17 | G104: 400.38 | H104: 395.17 | I104: 423.17 | J104: 428.38 | K104: 437.17 | L104: 419.6 | M104: 405.6 | N104: 2853600 | O104: -1.33%
A105: 103 | B105: Oil_Gas | C105: MGL | D105: 914.25 | E105: 909.25 | F105: 899.85 | G105: 885.45 | H105: 876.05 | I105: 923.65 | J105: 933.05 | K105: 947.45 | L105: 918.65 | M105: 894.85 | N105: 1539000 | O105: -0.35%
A106: 104 | B106: Technology | C106: MINDTREE | D106: 718.80 | E106: 717.10 | F106: 712.70 | G106: 706.60 | H106: 702.20 | I106: 723.20 | J106: 727.60 | K106: 733.70 | L106: 721.5 | M106: 711 | N106: 1269600 | O106: -2.44%
A107: 105 | B107: Automobile | C107: MOTHERSUMI | D107: 97.75 | E107: 97.53 | F107: 96.27 | G107: 94.78 | H107: 93.52 | I107: 99.02 | J107: 100.28 | K107: 101.77 | L107: 98.8 | M107: 96.05 | N107: 30812100 | O107: 2.66%
A108: 106 | B108: Automobile | C108: MRF | D108: 61584.25 | E108: 61323.22 | F108: 60823.08 | G108: 60061.92 | H108: 59561.78 | I108: 62084.38 | J108: 62584.52 | K108: 63345.68 | L108: 61823.35 | M108: 60562.05 | N108: 20200 | O108: 1.97%
A109: 107 | B109: Finance | C109: MUTHOOTFIN | D109: 689.15 | E109: 683.27 | F109: 672.88 | G109: 656.62 | H109: 646.23 | I109: 699.53 | J109: 709.92 | K109: 726.18 | L109: 693.65 | M109: 667 | N109: 1885500 | O109: 15.00%
A110: 108 | B110: Metals | C110: NATIONALUM | D110: 42.70 | E110: 42.88 | F110: 42.02 | G110: 41.33 | H110: 40.47 | I110: 43.57 | J110: 44.43 | K110: 45.12 | L110: 43.75 | M110: 42.2 | N110: 51360000 | O110: 19.75%
A111: 109 | B111: Infrastructure | C111: NBCC | D111: 33.95 | E111: 33.50 | F111: 32.70 | G111: 31.45 | H111: 30.65 | I111: 34.75 | J111: 35.55 | K111: 36.80 | L111: 34.3 | M111: 32.25 | N111: 31526500 | O111: 0.13%
A112: 110 | B112: Infrastructure | C112: NCC | D112: 52.50 | E112: 50.57 | F112: 48.28 | G112: 44.07 | H112: 41.78 | I112: 54.78 | J112: 57.07 | K112: 61.28 | L112: 52.85 | M112: 46.35 | N112: 41336000 | O112: -3.15%
A113: 111 | B113: FMCG | C113: NESTLEIND | D113: 13902.50 | E113: 13831.62 | F113: 13692.68 | G113: 13482.87 | H113: 13343.93 | I113: 14041.43 | J113: 14180.37 | K113: 14390.18 | L113: 13970.55 | M113: 13621.8 | N113: 548200 | O113: -0.15%
A114: 112 | B114: Technology | C114: NIITTECH | D114: 1373.60 | E114: 1377.72 | F114: 1360.53 | G114: 1347.47 | H114: 1330.28 | I114: 1390.78 | J114: 1407.97 | K114: 1421.03 | L114: 1394.9 | M114: 1364.65 | N114: 804750 | O114: 3.67%
A115: 113 | B115: Metals | C115: NMDC | D115: 96.80 | E115: 94.77 | F115: 92.33 | G115: 87.87 | H115: 85.43 | I115: 99.23 | J115: 101.67 | K115: 106.13 | L115: 97.2 | M115: 90.3 | N115: 25476000 | O115: -4.37%
A116: 114 | B116: Power | C116: NTPC | D116: 117.40 | E116: 117.13 | F116: 115.67 | G116: 113.93 | H116: 112.47 | I116: 118.87 | J116: 120.33 | K116: 122.07 | L116: 118.6 | M116: 115.4 | N116: 59875200 | O116: 1.88%
A117: 116 | B117: Oil_Gas | C117: OIL | D117: 146.90 | E117: 146.10 | F117: 144.70 | G117: 142.50 | H117: 141.10 | I117: 148.30 | J117: 149.70 | K117: 151.90 | L117: 147.5 | M117: 143.9 | N117: 9687150 | O117: -0.66%
A118: 117 | B118: Oil_Gas | C118: ONGC | D118: 126.50 | E118: 126.32 | F118: 124.78 | G118: 123.07 | H118: 121.53 | I118: 128.03 | J118: 129.57 | K118: 131.28 | L118: 127.85 | M118: 124.6 | N118: 64935000 | O118: 2.93%
A119: 118 | B119: Textile | C119: PAGEIND | D119: 21522.30 | E119: 21284.52 | F119: 20956.98 | G119: 20391.67 | H119: 20064.13 | I119: 21849.83 | J119: 22177.37 | K119: 22742.68 | L119: 21612.05 | M119: 20719.2 | N119: 187950 | O119: 0.01%
A120: 119 | B120: Pharma | C120: PEL | D120: 1391.30 | E120: 1368.88 | F120: 1323.77 | G120: 1256.23 | H120: 1211.12 | I120: 1436.42 | J120: 1481.53 | K120: 1549.07 | L120: 1414 | M120: 1301.35 | N120: 6661818 | O120: 0.37%
A121: 120 | B121: Oil_Gas | C121: PETRONET | D121: 259.10 | E121: 258.50 | F121: 256.90 | G121: 254.70 | H121: 253.10 | I121: 260.70 | J121: 262.30 | K121: 264.50 | L121: 260.1 | M121: 256.3 | N121: 20490000 | O121: 0.69%
A122: 121 | B122: Finance | C122: PFC | D122: 95.15 | E122: 94.83 | F122: 93.42 | G122: 91.68 | H122: 90.27 | I122: 96.57 | J122: 97.98 | K122: 99.72 | L122: 96.25 | M122: 93.1 | N122: 43865000 | O122: 0.96%
A123: 122 | B123: FMCG | C123: PIDILITIND | D123: 1344.45 | E123: 1353.40 | F123: 1332.05 | G123: 1319.65 | H123: 1298.30 | I123: 1365.80 | J123: 1387.15 | K123: 1399.55 | L123: 1374.75 | M123: 1341 | N123: 3291000 | O123: 7.97%
A124: 123 | B124: Banking | C124: PNB | D124: 58.80 | E124: 58.12 | F124: 57.13 | G124: 55.47 | H124: 54.48 | I124: 59.78 | J124: 60.77 | K124: 62.43 | L124: 59.1 | M124: 56.45 | N124: 105735000 | O124: -1.20%
A125: 124 | B125: Power | C125: POWERGRID | D125: 197.85 | E125: 197.47 | F125: 195.78 | G125: 193.72 | H125: 192.03 | I125: 199.53 | J125: 201.22 | K125: 203.28 | L125: 199.15 | M125: 195.4 | N125: 28100000 | O125: 1.59%
A126: 125 | B126: Media | C126: PVR | D126: 1808.25 | E126: 1806.35 | F126: 1792.65 | G126: 1777.05 | H126: 1763.35 | I126: 1821.95 | J126: 1835.65 | K126: 1851.25 | L126: 1820.05 | M126: 1790.75 | N126: 938400 | O126: 6.35%
A127: 126 | B127: Cement | C127: RAMCOCEM | D127: 709.05 | E127: 705.02 | F127: 699.03 | G127: 689.02 | H127: 683.03 | I127: 715.03 | J127: 721.02 | K127: 731.03 | L127: 711 | M127: 695 | N127: 1592800 | O127: -0.50%
A128: 128 | B128: Banking | C128: RBLBANK | D128: 308.65 | E128: 299.53 | F128: 288.27 | G128: 267.88 | H128: 256.62 | I128: 319.92 | J128: 331.18 | K128: 351.57 | L128: 310.8 | M128: 279.15 | N128: 16215600 | O128: 4.80%
A129: 129 | B129: Power | C129: RECLTD | D129: 125.25 | E129: 123.73 | F129: 121.37 | G129: 117.48 | H129: 115.12 | I129: 127.62 | J129: 129.98 | K129: 133.87 | L129: 126.1 | M129: 119.85 | N129: 27114000 | O129: -8.34%
A130: 131 | B130: Oil_Gas | C130: RELIANCE | D130: 1332.55 | E130: 1322.37 | F130: 1307.33 | G130: 1282.12 | H130: 1267.08 | I130: 1347.58 | J130: 1362.62 | K130: 1387.83 | L130: 1337.4 | M130: 1297.15 | N130: 52984500 | O130: 1.13%
A131: 133 | B131: Metals | C131: SAIL | D131: 32.85 | E131: 32.48 | F131: 31.92 | G131: 30.98 | H131: 30.42 | I131: 33.42 | J131: 33.98 | K131: 34.92 | L131: 33.05 | M131: 31.55 | N131: 81804000 | O131: 1.10%
A132: 134 | B132: Banking | C132: SBIN | D132: 261.75 | E132: 256.53 | F132: 250.42 | G132: 239.08 | H132: 232.97 | I132: 267.87 | J132: 273.98 | K132: 285.32 | L132: 262.65 | M132: 245.2 | N132: 117342000 | O132: -4.63%
A133: 135 | B133: Cement | C133: SHREECEM | D133: 18548.95 | E133: 18275.63 | F133: 17951.52 | G133: 17354.08 | H133: 17029.97 | I133: 18873.07 | J133: 19197.18 | K133: 19794.62 | L133: 18599.75 | M133: 17678.2 | N133: 174600 | O133: 0.17%
A134: 136 | B134: Capital_Goods | C134: SIEMENS | D134: 1583.80 | E134: 1562.23 | F134: 1532.87 | G134: 1481.93 | H134: 1452.57 | I134: 1613.17 | J134: 1642.53 | K134: 1693.47 | L134: 1591.6 | M134: 1511.3 | N134: 1560350 | O134: 17.72%
A135: 137 | B135: Textile | C135: SRF | D135: 2751.25 | E135: 2723.27 | F135: 2682.98 | G135: 2614.72 | H135: 2574.43 | I135: 2791.53 | J135: 2831.82 | K135: 2900.08 | L135: 2763.55 | M135: 2655 | N135: 844500 | O135: -3.60%
A136: 138 | B136: Finance | C136: SRTRANSFIN | D136: 1124.70 | E136: 1102.82 | F136: 1074.63 | G136: 1024.57 | H136: 996.38 | I136: 1152.88 | J136: 1181.07 | K136: 1231.13 | L136: 1131 | M136: 1052.75 | N136: 4006200 | O136: -0.58%
A137: 139 | B137: Pharma | C137: STAR | D137: 305.65 | E137: 299.27 | F137: 289.93 | G137: 274.22 | H137: 264.88 | I137: 314.98 | J137: 324.32 | K137: 340.03 | L137: 308.6 | M137: 283.55 | N137: 2827200 | O137: 2.61%
A138: 140 | B138: Pharma | C138: SUNPHARMA | D138: 385.80 | E138: 383.58 | F138: 377.42 | G138: 369.03 | H138: 362.87 | I138: 391.97 | J138: 398.13 | K138: 406.52 | L138: 389.75 | M138: 375.2 | N138: 59326300 | O138: 0.43%
A139: 141 | B139: Media | C139: SUNTV | D139: 472.60 | E139: 466.80 | F139: 459.10 | G139: 445.60 | H139: 437.90 | I139: 480.30 | J139: 488.00 | K139: 501.50 | L139: 474.5 | M139: 453.3 | N139: 3554000 | O139: -2.12%
A140: 142 | B140: Fertilisers | C140: TATACHEM | D140: 591.70 | E140: 587.63 | F140: 582.37 | G140: 573.03 | H140: 567.77 | I140: 596.97 | J140: 602.23 | K140: 611.57 | L140: 592.9 | M140: 578.3 | N140: 1987200 | O140: 0.50%
A141: 143 | B141: Technology | C141: TATAELXSI | D141: 640.00 | E141: 648.15 | F141: 615.10 | G141: 590.20 | H141: 557.15 | I141: 673.05 | J141: 706.10 | K141: 731.00 | L141: 681.2 | M141: 623.25 | N141: 1892400 | O141: 8.72%
A142: 144 | B142: FMCG | C142: TATAGLOBAL | D142: 271.45 | E142: 269.90 | F142: 266.70 | G142: 261.95 | H142: 258.75 | I142: 274.65 | J142: 277.85 | K142: 282.60 | L142: 273.1 | M142: 265.15 | N142: 8380800 | O142: 6.26%
A143: 145 | B143: Automobile | C143: TATAMOTORS | D143: 121.55 | E143: 119.80 | F143: 117.20 | G143: 112.85 | H143: 110.25 | I143: 124.15 | J143: 126.75 | K143: 131.10 | L143: 122.4 | M143: 115.45 | N143: 65640000 | O143: 3.74%
A144: 146 | B144: Automobile | C144: TATAMTRDVR | D144: 53.90 | E144: 53.03 | F144: 51.92 | G144: 49.93 | H144: 48.82 | I144: 55.02 | J144: 56.13 | K144: 58.12 | L144: 54.15 | M144: 51.05 | N144: 38802000 | O144: -0.42%
A145: 147 | B145: Power | C145: TATAPOWER | D145: 61.60 | E145: 60.53 | F145: 59.27 | G145: 56.93 | H145: 55.67 | I145: 62.87 | J145: 64.13 | K145: 66.47 | L145: 61.8 | M145: 58.2 | N145: 40023000 | O145: -1.35%
A146: 148 | B146: Metals | C146: TATASTEEL | D146: 338.20 | E146: 333.18 | F146: 326.52 | G146: 314.83 | H146: 308.17 | I146: 344.87 | J146: 351.53 | K146: 363.22 | L146: 339.85 | M146: 321.5 | N146: 30728682 | O146: 2.23%
A147: 149 | B147: Technology | C147: TCS | D147: 2024.20 | E147: 2029.35 | F147: 2005.85 | G147: 1987.50 | H147: 1964.00 | I147: 2047.70 | J147: 2071.20 | K147: 2089.55 | L147: 2052.85 | M147: 2011 | N147: 19116250 | O147: 0.74%
A148: 150 | B148: Technology | C148: TECHM | D148: 712.55 | E148: 710.35 | F148: 705.50 | G148: 698.45 | H148: 693.60 | I148: 717.40 | J148: 722.25 | K148: 729.30 | L148: 715.2 | M148: 703.3 | N148: 14750400 | O148: -0.47%
A149: 151 | B149: FMCG | C149: TITAN | D149: 1234.50 | E149: 1218.27 | F149: 1196.73 | G149: 1158.97 | H149: 1137.43 | I149: 1256.03 | J149: 1277.57 | K149: 1315.33 | L149: 1239.8 | M149: 1180.5 | N149: 10010250 | O149: 5.24%
A150: 152 | B150: Pharma | C150: TORNTPHARM | D150: 1666.45 | E150: 1645.55 | F150: 1620.00 | G150: 1573.55 | H150: 1548.00 | I150: 1692.00 | J150: 1717.55 | K150: 1764.00 | L150: 1671.1 | M150: 1599.1 | N150: 352000 | O150: 0.14%
A151: 153 | B151: Power | C151: TORNTPOWER | D151: 284.25 | E151: 282.40 | F151: 279.85 | G151: 275.45 | H151: 272.90 | I151: 286.80 | J151: 289.35 | K151: 293.75 | L151: 284.95 | M151: 278 | N151: 3168000 | O151: -2.94%
A152: 154 | B152: Automobile | C152: TVSMOTOR | D152: 393.65 | E152: 391.05 | F152: 385.15 | G152: 376.65 | H152: 370.75 | I152: 399.55 | J152: 405.45 | K152: 413.95 | L152: 396.95 | M152: 382.55 | N152: 7790200 | O152: 1.06%
A153: 155 | B153: FMCG | C153: UBL | D153: 1281.05 | E153: 1275.53 | F153: 1252.12 | G153: 1223.18 | H153: 1199.77 | I153: 1304.47 | J153: 1327.88 | K153: 1356.82 | L153: 1298.95 | M153: 1246.6 | N153: 1507100 | O153: -3.41%
A154: 156 | B154: Finance | C154: UJJIVAN | D154: 305.60 | E154: 301.63 | F154: 296.27 | G154: 286.93 | H154: 281.57 | I154: 310.97 | J154: 316.33 | K154: 325.67 | L154: 307 | M154: 292.3 | N154: 7808000 | O154: -2.22%
A155: 157 | B155: Cement | C155: ULTRACEMCO | D155: 4053.65 | E155: 4004.12 | F155: 3935.53 | G155: 3817.42 | H155: 3748.83 | I155: 4122.23 | J155: 4190.82 | K155: 4308.93 | L155: 4072.7 | M155: 3886 | N155: 2741400 | O155: -0.95%
A156: 158 | B156: Banking | C156: UNIONBANK | D156: 51.40 | E156: 50.53 | F156: 49.17 | G156: 46.93 | H156: 45.57 | I156: 52.77 | J156: 54.13 | K156: 56.37 | L156: 51.9 | M156: 48.3 | N156: 34643000 | O156: 2.02%
A157: 159 | B157: Fertilisers | C157: UPL | D157: 582.40 | E157: 580.92 | F157: 576.28 | G157: 570.17 | H157: 565.53 | I157: 587.03 | J157: 591.67 | K157: 597.78 | L157: 585.55 | M157: 574.8 | N157: 14372100 | O157: -5.54%
A158: 160 | B158: Metals | C158: VEDL | D158: 146.60 | E158: 145.27 | F158: 143.33 | G158: 140.07 | H158: 138.13 | I158: 148.53 | J158: 150.47 | K158: 153.73 | L158: 147.2 | M158: 142 | N158: 49800000 | O158: 0.22%
A159: 161 | B159: Capital_Goods | C159: VOLTAS | D159: 683.35 | E159: 676.70 | F159: 667.35 | G159: 651.35 | H159: 642.00 | I159: 692.70 | J159: 702.05 | K159: 718.05 | L159: 686.05 | M159: 660.7 | N159: 2059000 | O159: 2.95%
A160: 162 | B160: Technology | C160: WIPRO | D160: 238.90 | E160: 238.98 | F160: 237.42 | G160: 235.93 | H160: 234.37 | I160: 240.47 | J160: 242.03 | K160: 243.52 | L160: 240.55 | M160: 237.5 | N160: 28585600 | O160: -1.52%
A161: 163 | B161: Banking | C161: YESBANK | D161: 43.50 | E161: 43.18 | F161: 40.82 | G161: 38.13 | H161: 35.77 | I161: 45.87 | J161: 48.23 | K161: 50.92 | L161: 45.55 | M161: 40.5 | N161: 179973200 | O161: -6.78%
A162: 164 | B162: Media | C162: ZEEL | D162: 246.55 | E162: 248.27 | F162: 239.33 | G162: 232.12 | H162: 223.18 | I162: 255.48 | J162: 264.42 | K162: 271.63 | L162: 257.2 | M162: 241.05 | N162: 31175300 | O162: -4.56%
A178: Pivot Point: This is trigger point for intra day buy/sell based on the price range of the previous day
A179: As per the tool,the trader should take BUY position just above Pivot and keep the stop loss of pivot point and the first target would be Resistance 1(R1)
A180: If R1 is crossed then R2 becomes the next target with stop loss of at R1
A181: Similarly if price goes below pivot point then the trader should sell and keep a stop loss of pivot point and the first target would be S1
A182: If S1 is crossed then S2 becomes the next target with stop loss of at S1
A184: Disclaimer:
A185: This document has been prepared by the Retail Research Desk of Asit C Mehta
A186: Investment Intermediates Ltd. and is meant for use of the recipient only
A187: and is not for circulation. This document is not to be reported or
A188: copied or made available to others. It should not be considered to be
A189: taken as an offer to sell or a solicitation to buy any security. The
A190: information contained herein is from sources believed reliable. We do
A191: not represent that it is accurate or complete and it should not be
A192: relied upon as such. We may from time to time have positions in and buy
A193: and sell securities referred to herein

Sheet Cash Intra
M5: Back to Main Page
A6: FOR INTRA DAY TRADING | K6: =Main!B10 -> 2019-10-10
A8: Sr.no | B8: Scrip | C8: CLOSE RATE | D8: Pivot Point | E8: Supports | H8: Resistances
C9: Point | E9: S1 | F9: S2 | G9: S3 | H9: R1 | I9: R2 | J9: R3 | K9: HIGH | L9: LOW | M9: Total Trade Quanity in Lakhs
A10: 1 | B10: Nifty 50 | C10: 11313.3 | D10: 11241.68 | E10: 11161.77 | F10: 11010.23 | G10: 10930.32 | H10: 11393.22 | I10: 11473.13 | J10: 11624.67 | K10: 11321.6 | L10: 11090.15
A11: 2 | B11: Nifty Bank | C11: 28785.85 | D11: 28448.53 | E11: 28039.37 | F11: 27292.88 | G11: 26883.72 | H11: 29195.02 | I11: 29604.18 | J11: 30350.67 | K11: 28857.7 | L11: 27702.05
A12: 3 | B12: Nifty CPSE | C12: 1908.2 | D12: 1906.82 | E12: 1891.28 | F12: 1874.37 | G12: 1858.83 | H12: 1923.73 | I12: 1939.27 | J12: 1956.18 | K12: 1922.35 | L12: 1889.9
A13: 4 | B13: Nifty Infra | C13: 3151.45 | D13: 3130.67 | E13: 3105.23 | F13: 3059.02 | G13: 3033.58 | H13: 3176.88 | I13: 3202.32 | J13: 3248.53 | K13: 3156.1 | L13: 3084.45
A14: 5 | B14: Nifty IT | C14: 15128.75 | D14: 15165.75 | E14: 15014.35 | F14: 14899.95 | G14: 14748.55 | H14: 15280.15 | I14: 15431.55 | J14: 15545.95 | K14: 15317.15 | L14: 15051.35
A15: 6 | B15: Nifty PSE | C15: 3207.7 | D15: 3197.07 | E15: 3172.78 | F15: 3137.87 | G15: 3113.58 | H15: 3231.98 | I15: 3256.27 | J15: 3291.18 | K15: 3221.35 | L15: 3162.15
A16: 7 | B16: Nifty Midcap 50 | C16: 4306.5 | D16: 4269.42 | E16: 4226.68 | F16: 4146.87 | G16: 4104.13 | H16: 4349.23 | I16: 4391.97 | J16: 4471.78 | K16: 4312.15 | L16: 4189.6
A17: 8 | B17: ACC | C17: 1467.1 | D17: 1452.50 | E17: 1431.05 | F17: 1395.00 | G17: 1373.55 | H17: 1488.55 | I17: 1510.00 | J17: 1546.05 | K17: 1473.95 | L17: 1416.45 | M17: 12.60259
A18: 9 | B18: AUBANK | C18: 641.25 | D18: 645.23 | E18: 635.67 | F18: 630.08 | G18: 620.52 | H18: 650.82 | I18: 660.38 | J18: 665.97 | K18: 654.8 | L18: 639.65 | M18: 4.66926
A19: 10 | B19: ADANIPORTS | C19: 400.45 | D19: 398.28 | E19: 393.72 | F19: 386.98 | G19: 382.42 | H19: 405.02 | I19: 409.58 | J19: 416.32 | K19: 402.85 | L19: 391.55 | M19: 39.05912
A20: 11 | B20: ADANIPOWER | C20: 60.75 | D20: 60.08 | E20: 59.07 | F20: 57.38 | G20: 56.37 | H20: 61.77 | I20: 62.78 | J20: 64.47 | K20: 61.1 | L20: 58.4 | M20: 95.89622
A21: 12 | B21: ABCAPITAL | C21: 79.4 | D21: 79.65 | E21: 77.85 | F21: 76.30 | G21: 74.50 | H21: 81.20 | I21: 83.00 | J21: 84.55 | K21: 81.45 | L21: 78.1 | M21: 12.68265
A22: 13 | B22: ABFRL | C22: 208.1 | D22: 207.42 | E22: 205.28 | F22: 202.47 | G22: 200.33 | H22: 210.23 | I22: 212.37 | J22: 215.18 | K22: 209.55 | L22: 204.6 | M22: 3.13571
A23: 14 | B23: AJANTPHARM | C23: 981.9 | D23: 979.52 | E23: 969.38 | F23: 956.87 | G23: 946.73 | H23: 992.03 | I23: 1002.17 | J23: 1014.68 | K23: 989.65 | L23: 967 | M23: 0.63671
A24: 15 | B24: ALKEM | C24: 1938.25 | D24: 1933.08 | E24: 1916.17 | F24: 1894.08 | G24: 1877.17 | H24: 1955.17 | I24: 1972.08 | J24: 1994.17 | K24: 1950 | L24: 1911 | M24: 0.16138
A25: 16 | B25: ALBK | C25: 26.55 | D25: 26.35 | E25: 26.00 | F25: 25.45 | G25: 25.10 | H25: 26.90 | I25: 27.25 | J25: 27.80 | K25: 26.7 | L25: 25.8 | M25: 10.57488
A26: 17 | B26: AMARAJABAT | C26: 693.55 | D26: 687.42 | E26: 679.23 | F26: 664.92 | G26: 656.73 | H26: 701.73 | I26: 709.92 | J26: 724.23 | K26: 695.6 | L26: 673.1 | M26: 3.43977
A27: 18 | B27: AMBUJACEM | C27: 192.35 | D27: 189.93 | E27: 186.52 | F27: 180.68 | G27: 177.27 | H27: 195.77 | I27: 199.18 | J27: 205.02 | K27: 193.35 | L27: 184.1 | M27: 33.60027
A28: 19 | B28: APOLLOHOSP | C28: 1425.05 | D28: 1418.15 | E28: 1404.45 | F28: 1383.85 | G28: 1370.15 | H28: 1438.75 | I28: 1452.45 | J28: 1473.05 | K28: 1431.85 | L28: 1397.55 | M28: 3.81888
A29: 20 | B29: APOLLOTYRE | C29: 168.85 | D29: 167.12 | E29: 164.28 | F29: 159.72 | G29: 156.88 | H29: 171.68 | I29: 174.52 | J29: 179.08 | K29: 169.95 | L29: 162.55 | M29: 18.58232
A30: 21 | B30: ASHOKLEY | C30: 69.05 | D30: 67.75 | E30: 65.75 | F30: 62.45 | G30: 60.45 | H30: 71.05 | I30: 73.05 | J30: 76.35 | K30: 69.75 | L30: 64.45 | M30: 488.74905
A31: 22 | B31: ASIANPAINT | C31: 1773.45 | D31: 1759.05 | E31: 1740.10 | F31: 1706.75 | G31: 1687.80 | H31: 1792.40 | I31: 1811.35 | J31: 1844.70 | K31: 1778 | L31: 1725.7 | M31: 17.77552
A32: 23 | B32: AUROPHARMA | C32: 474.4 | D32: 471.18 | E32: 457.37 | F32: 440.33 | G32: 426.52 | H32: 488.22 | I32: 502.03 | J32: 519.07 | K32: 485 | L32: 454.15 | M32: 179.98262
A33: 24 | B33: DMART | C33: 1820.4 | D33: 1830.33 | E33: 1791.67 | F33: 1762.93 | G33: 1724.27 | H33: 1859.07 | I33: 1897.73 | J33: 1926.47 | K33: 1869 | L33: 1801.6 | M33: 3.57535
A34: 25 | B34: AXISBANK | C34: 686.3 | D34: 680.03 | E34: 670.57 | F34: 654.83 | G34: 645.37 | H34: 695.77 | I34: 705.23 | J34: 720.97 | K34: 689.5 | L34: 664.3 | M34: 115.37721
A35: 26 | B35: BAJAJ-AUTO | C35: 2891.85 | D35: 2894.87 | E35: 2874.73 | F35: 2857.62 | G35: 2837.48 | H35: 2911.98 | I35: 2932.12 | J35: 2949.23 | K35: 2915 | L35: 2877.75 | M35: 3.55878
A36: 27 | B36: BAJFINANCE | C36: 4023.9 | D36: 3979.65 | E36: 3924.30 | F36: 3824.70 | G36: 3769.35 | H36: 4079.25 | I36: 4134.60 | J36: 4234.20 | K36: 4035 | L36: 3880.05 | M36: 13.566
A37: 28 | B37: BAJAJFINSV | C37: 8318.25 | D37: 8281.38 | E37: 8212.87 | F37: 8107.48 | G37: 8038.97 | H37: 8386.77 | I37: 8455.28 | J37: 8560.67 | K37: 8349.9 | L37: 8176 | M37: 3.29837
A38: 29 | B38: BAJAJHLDNG | C38: 3616 | D38: 3605.33 | E38: 3585.67 | F38: 3555.33 | G38: 3535.67 | H38: 3635.67 | I38: 3655.33 | J38: 3685.67 | K38: 3625 | L38: 3575 | M38: 0.11569
A39: 30 | B39: BALKRISIND | C39: 733.05 | D39: 725.00 | E39: 715.05 | F39: 697.05 | G39: 687.10 | H39: 743.00 | I39: 752.95 | J39: 770.95 | K39: 734.95 | L39: 707 | M39: 4.40297
A40: 31 | B40: BANDHANBNK | C40: 480.55 | D40: 478.70 | E40: 473.00 | F40: 465.45 | G40: 459.75 | H40: 486.25 | I40: 491.95 | J40: 499.50 | K40: 484.4 | L40: 471.15 | M40: 4.0342
A41: 32 | B41: BANKBARODA | C41: 91.05 | D41: 89.55 | E41: 87.50 | F41: 83.95 | G41: 81.90 | H41: 93.10 | I41: 95.15 | J41: 98.70 | K41: 91.6 | L41: 86 | M41: 296.68675
A42: 33 | B42: BANKINDIA | C42: 61.6 | D42: 60.42 | E42: 58.63 | F42: 55.67 | G42: 53.88 | H42: 63.38 | I42: 65.17 | J42: 68.13 | K42: 62.2 | L42: 57.45 | M42: 110.49824
A43: 34 | B43: BATAINDIA | C43: 1723.5 | D43: 1706.33 | E43: 1677.67 | F43: 1631.83 | G43: 1603.17 | H43: 1752.17 | I43: 1780.83 | J43: 1826.67 | K43: 1735 | L43: 1660.5 | M43: 8.1617
A44: 35 | B44: BERGEPAINT | C44: 449.9 | D44: 444.62 | E44: 437.33 | F44: 424.77 | G44: 417.48 | H44: 457.18 | I44: 464.47 | J44: 477.03 | K44: 451.9 | L44: 432.05 | M44: 38.46974
A45: 36 | B45: BEL | C45: 105.4 | D45: 105.37 | E45: 104.08 | F45: 102.77 | G45: 101.48 | H45: 106.68 | I45: 107.97 | J45: 109.28 | K45: 106.65 | L45: 104.05 | M45: 67.24764
A46: 37 | B46: BHARATFORG | C46: 432.3 | D46: 429.92 | E46: 421.48 | F46: 410.67 | G46: 402.23 | H46: 440.73 | I46: 449.17 | J46: 459.98 | K46: 438.35 | L46: 419.1 | M46: 9.21692
A47: 38 | B47: BHEL | C47: 43.65 | D47: 43.33 | E47: 42.72 | F47: 41.78 | G47: 41.17 | H47: 44.27 | I47: 44.88 | J47: 45.82 | K47: 43.95 | L47: 42.4 | M47: 152.25493
A48: 39 | B48: BPCL | C48: 492.85 | D48: 490.08 | E48: 484.42 | F48: 475.98 | G48: 470.32 | H48: 498.52 | I48: 504.18 | J48: 512.62 | K48: 495.75 | L48: 481.65 | M48: 108.58033
A49: 40 | B49: BHARTIARTL | C49: 359.4 | D49: 353.08 | E49: 345.32 | F49: 331.23 | G49: 323.47 | H49: 367.17 | I49: 374.93 | J49: 389.02 | K49: 360.85 | L49: 339 | M49: 86.85318
A50: 41 | B50: INFRATEL | C50: 255.85 | D50: 253.78 | E50: 246.57 | F50: 237.28 | G50: 230.07 | H50: 263.07 | I50: 270.28 | J50: 279.57 | K50: 261 | L50: 244.5 | M50: 25.74081
A51: 42 | B51: BIOCON | C51: 233.5 | D51: 230.68 | E51: 226.57 | F51: 219.63 | G51: 215.52 | H51: 237.62 | I51: 241.73 | J51: 248.67 | K51: 234.8 | L51: 223.75 | M51: 34.34478
A52: 43 | B52: BBTC | C52: 1092.15 | D52: 1093.05 | E52: 1075.10 | F52: 1058.05 | G52: 1040.10 | H52: 1110.10 | I52: 1128.05 | J52: 1145.10 | K52: 1111 | L52: 1076 | M52: 1.09646
A53: 44 | B53: BOSCHLTD | C53: 13269.9 | D53: 13237.58 | E53: 13033.42 | F53: 12796.93 | G53: 12592.77 | H53: 13474.07 | I53: 13678.23 | J53: 13914.72 | K53: 13441.75 | L53: 13001.1 | M53: 0.11755
A54: 45 | B54: BRITANNIA | C54: 3058.5 | D54: 3020.02 | E54: 2965.38 | F54: 2872.27 | G54: 2817.63 | H54: 3113.13 | I54: 3167.77 | J54: 3260.88 | K54: 3074.65 | L54: 2926.9 | M54: 10.37068
A55: 46 | B55: CESC | C55: 757.25 | D55: 749.47 | E55: 736.78 | F55: 716.32 | G55: 703.63 | H55: 769.93 | I55: 782.62 | J55: 803.08 | K55: 762.15 | L55: 729 | M55: 4.6531
A56: 47 | B56: CADILAHC | C56: 236.55 | D56: 233.70 | E56: 228.50 | F56: 220.45 | G56: 215.25 | H56: 241.75 | I56: 246.95 | J56: 255.00 | K56: 238.9 | L56: 225.65 | M56: 6.61679
A57: 48 | B57: CANBK | C57: 184.25 | D57: 181.42 | E57: 177.13 | F57: 170.02 | G57: 165.73 | H57: 188.53 | I57: 192.82 | J57: 199.93 | K57: 185.7 | L57: 174.3 | M57: 91.77259
A58: 49 | B58: CASTROLIND | C58: 132.7 | D58: 131.93 | E58: 130.87 | F58: 129.03 | G58: 127.97 | H58: 133.77 | I58: 134.83 | J58: 136.67 | K58: 133 | L58: 130.1 | M58: 24.6117
A59: 50 | B59: CHOLAFIN | C59: 296.2 | D59: 293.08 | E59: 288.17 | F59: 280.13 | G59: 275.22 | H59: 301.12 | I59: 306.03 | J59: 314.07 | K59: 298 | L59: 285.05 | M59: 16.68659
A60: 51 | B60: CIPLA | C60: 423.35 | D60: 419.28 | E60: 411.57 | F60: 399.78 | G60: 392.07 | H60: 431.07 | I60: 438.78 | J60: 450.57 | K60: 427 | L60: 407.5 | M60: 41.1769
A61: 52 | B61: CUB | C61: 222.45 | D61: 221.90 | E61: 219.55 | F61: 216.65 | G61: 214.30 | H61: 224.80 | I61: 227.15 | J61: 230.05 | K61: 224.25 | L61: 219 | M61: 3.10301
A62: 53 | B62: COALINDIA | C62: 185.35 | D62: 185.02 | E62: 183.33 | F62: 181.32 | G62: 179.63 | H62: 187.03 | I62: 188.72 | J62: 190.73 | K62: 186.7 | L62: 183 | M62: 58.08768
A63: 54 | B63: COLPAL | C63: 1498.7 | D63: 1486.67 | E63: 1469.43 | F63: 1440.17 | G63: 1422.93 | H63: 1515.93 | I63: 1533.17 | J63: 1562.43 | K63: 1503.9 | L63: 1457.4 | M63: 4.97854
A64: 55 | B64: CONCOR | C64: 571 | D64: 570.92 | E64: 562.33 | F64: 553.67 | G64: 545.08 | H64: 579.58 | I64: 588.17 | J64: 596.83 | K64: 579.5 | L64: 562.25 | M64: 27.70455
A65: 56 | B65: COROMANDEL | C65: 403.85 | D65: 405.10 | E65: 399.30 | F65: 394.75 | G65: 388.95 | H65: 409.65 | I65: 415.45 | J65: 420.00 | K65: 410.9 | L65: 400.55 | M65: 1.17727
A66: 57 | B66: CROMPTON | C66: 259.6 | D66: 258.07 | E66: 253.63 | F66: 247.67 | G66: 243.23 | H66: 264.03 | I66: 268.47 | J66: 274.43 | K66: 262.5 | L66: 252.1 | M66: 8.74901
A67: 58 | B67: CUMMINSIND | C67: 568.4 | D67: 569.38 | E67: 560.52 | F67: 552.63 | G67: 543.77 | H67: 577.27 | I67: 586.13 | J67: 594.02 | K67: 578.25 | L67: 561.5 | M67: 9.87965
A68: 59 | B68: DLF | C68: 147.75 | D68: 145.28 | E68: 140.82 | F68: 133.88 | G68: 129.42 | H68: 152.22 | I68: 156.68 | J68: 163.62 | K68: 149.75 | L68: 138.35 | M68: 155.40451
A69: 60 | B69: DABUR | C69: 443.8 | D69: 440.27 | E69: 434.78 | F69: 425.77 | G69: 420.28 | H69: 449.28 | I69: 454.77 | J69: 463.78 | K69: 445.75 | L69: 431.25 | M69: 14.88325
A70: 61 | B70: DALBHARAT | C70: 771.5 | D70: 773.68 | E70: 761.42 | F70: 751.33 | G70: 739.07 | H70: 783.77 | I70: 796.03 | J70: 806.12 | K70: 785.95 | L70: 763.6 | M70: 0.32761
A71: 62 | B71: DIVISLAB | C71: 1650.6 | D71: 1642.27 | E71: 1629.53 | F71: 1608.47 | G71: 1595.73 | H71: 1663.33 | I71: 1676.07 | J71: 1697.13 | K71: 1655 | L71: 1621.2 | M71: 2.48324
A72: 63 | B72: DRREDDY | C72: 2663.4 | D72: 2646.57 | E72: 2617.13 | F72: 2570.87 | G72: 2541.43 | H72: 2692.83 | I72: 2722.27 | J72: 2768.53 | K72: 2676 | L72: 2600.3 | M72: 4.66444
A73: 64 | B73: EDELWEISS | C73: 72.95 | D73: 74.55 | E73: 70.60 | F73: 68.25 | G73: 64.30 | H73: 76.90 | I73: 80.85 | J73: 83.20 | K73: 78.5 | L73: 72.2 | M73: 109.54146
A74: 65 | B74: EICHERMOT | C74: 18239.35 | D74: 18124.15 | E74: 17948.30 | F74: 17657.25 | G74: 17481.40 | H74: 18415.20 | I74: 18591.05 | J74: 18882.10 | K74: 18300 | L74: 17833.1 | M74: 1.11285
A75: 66 | B75: EMAMILTD | C75: 299.75 | D75: 299.42 | E75: 297.68 | F75: 295.62 | G75: 293.88 | H75: 301.48 | I75: 303.22 | J75: 305.28 | K75: 301.15 | L75: 297.35 | M75: 7.64542
A76: 67 | B76: ENDURANCE | C76: 971.1 | D76: 967.57 | E76: 955.63 | F76: 940.17 | G76: 928.23 | H76: 983.03 | I76: 994.97 | J76: 1010.43 | K76: 979.5 | L76: 952.1 | M76: 0.08011
A77: 68 | B77: ENGINERSIN | C77: 109 | D77: 108.38 | E77: 106.82 | F77: 104.63 | G77: 103.07 | H77: 110.57 | I77: 112.13 | J77: 114.32 | K77: 109.95 | L77: 106.2 | M77: 17.31705
A78: 69 | B78: ESCORTS | C78: 608 | D78: 600.72 | E78: 588.78 | F78: 569.57 | G78: 557.63 | H78: 619.93 | I78: 631.87 | J78: 651.08 | K78: 612.65 | L78: 581.5 | M78: 41.26707
A79: 70 | B79: EXIDEIND | C79: 190.8 | D79: 188.98 | E79: 186.17 | F79: 181.53 | G79: 178.72 | H79: 193.62 | I79: 196.43 | J79: 201.07 | K79: 191.8 | L79: 184.35 | M79: 16.82602
A80: 71 | B80: FEDERALBNK | C80: 85.9 | D80: 85.45 | E80: 84.45 | F80: 83.00 | G80: 82.00 | H80: 86.90 | I80: 87.90 | J80: 89.35 | K80: 86.45 | L80: 84 | M80: 127.13788
A81: 72 | B81: FCONSUMER | C81: 23.25 | D81: 23.42 | E81: 22.43 | F81: 21.62 | G81: 20.63 | H81: 24.23 | I81: 25.22 | J81: 26.03 | K81: 24.4 | L81: 22.6 | M81: 14.90282
A82: 73 | B82: FRETAIL | C82: 374.55 | D82: 375.78 | E82: 370.87 | F82: 367.18 | G82: 362.27 | H82: 379.47 | I82: 384.38 | J82: 388.07 | K82: 380.7 | L82: 372.1 | M82: 2.83078
A83: 74 | B83: GAIL | C83: 132.1 | D83: 131.05 | E83: 129.45 | F83: 126.80 | G83: 125.20 | H83: 133.70 | I83: 135.30 | J83: 137.95 | K83: 132.65 | L83: 128.4 | M83: 75.00511
A84: 75 | B84: GMRINFRA | C84: 17.3 | D84: 17.03 | E84: 16.67 | F84: 16.03 | G84: 15.67 | H84: 17.67 | I84: 18.03 | J84: 18.67 | K84: 17.4 | L84: 16.4 | M84: 189.07912
A85: 76 | B85: GICRE | C85: 214.55 | D85: 214.72 | E85: 209.38 | F85: 204.22 | G85: 198.88 | H85: 219.88 | I85: 225.22 | J85: 230.38 | K85: 220.05 | L85: 209.55 | M85: 0.63659
A86: 77 | B86: GLENMARK | C86: 290.85 | D86: 288.30 | E86: 283.35 | F86: 275.85 | G86: 270.90 | H86: 295.80 | I86: 300.75 | J86: 308.25 | K86: 293.25 | L86: 280.8 | M86: 27.1854
A87: 78 | B87: GODREJAGRO | C87: 477.25 | D87: 475.07 | E87: 470.13 | F87: 463.02 | G87: 458.08 | H87: 482.18 | I87: 487.12 | J87: 494.23 | K87: 480 | L87: 467.95 | M87: 0.29387
A88: 79 | B88: GODREJCP | C88: 673 | D88: 668.98 | E88: 662.02 | F88: 651.03 | G88: 644.07 | H88: 679.97 | I88: 686.93 | J88: 697.92 | K88: 675.95 | L88: 658 | M88: 10.25701
A89: 80 | B89: GODREJIND | C89: 383.8 | D89: 384.18 | E89: 380.47 | F89: 377.13 | G89: 373.42 | H89: 387.52 | I89: 391.23 | J89: 394.57 | K89: 387.9 | L89: 380.85 | M89: 0.7619
A90: 81 | B90: GODREJPROP | C90: 995.25 | D90: 998.08 | E90: 976.17 | F90: 957.08 | G90: 935.17 | H90: 1017.17 | I90: 1039.08 | J90: 1058.17 | K90: 1020 | L90: 979 | M90: 1.27845
A91: 82 | B91: GRAPHITE | C91: 271.9 | D91: 268.93 | E91: 258.07 | F91: 244.23 | G91: 233.37 | H91: 282.77 | I91: 293.63 | J91: 307.47 | K91: 279.8 | L91: 255.1 | M91: 21.65493
A92: 83 | B92: GRASIM | C92: 670.4 | D92: 663.73 | E92: 649.57 | F92: 628.73 | G92: 614.57 | H92: 684.57 | I92: 698.73 | J92: 719.57 | K92: 677.9 | L92: 642.9 | M92: 23.86332
A93: 84 | B93: GSPL | C93: 205.95 | D93: 205.68 | E93: 202.37 | F93: 198.78 | G93: 195.47 | H93: 209.27 | I93: 212.58 | J93: 216.17 | K93: 209 | L93: 202.1 | M93: 2.39596
A94: 85 | B94: HEG | C94: 912.7 | D94: 900.82 | E94: 869.88 | F94: 827.07 | G94: 796.13 | H94: 943.63 | I94: 974.57 | J94: 1017.38 | K94: 931.75 | L94: 858 | M94: 7.90161
A95: 86 | B95: HCLTECH | C95: 1051.1 | D95: 1055.07 | E95: 1036.18 | F95: 1021.27 | G95: 1002.38 | H95: 1069.98 | I95: 1088.87 | J95: 1103.78 | K95: 1073.95 | L95: 1040.15 | M95: 18.7527
A96: 87 | B96: HDFCAMC | C96: 2708.35 | D96: 2730.55 | E96: 2662.90 | F96: 2617.45 | G96: 2549.80 | H96: 2776.00 | I96: 2843.65 | J96: 2889.10 | K96: 2798.2 | L96: 2685.1 | M96: 5.15266
A97: 88 | B97: HDFCBANK | C97: 1228.15 | D97: 1216.02 | E97: 1202.13 | F97: 1176.12 | G97: 1162.23 | H97: 1242.03 | I97: 1255.92 | J97: 1281.93 | K97: 1229.9 | L97: 1190 | M97: 87.13635
A98: 89 | B98: HDFCLIFE | C98: 580.5 | D98: 580.32 | E98: 573.88 | F98: 567.27 | G98: 560.83 | H98: 586.93 | I98: 593.37 | J98: 599.98 | K98: 586.75 | L98: 573.7 | M98: 15.79192
A99: 90 | B99: HAVELLS | C99: 671.45 | D99: 667.70 | E99: 659.40 | F99: 647.35 | G99: 639.05 | H99: 679.75 | I99: 688.05 | J99: 700.10 | K99: 676 | L99: 655.65 | M99: 7.85908
A100: 91 | B100: HEROMOTOCO | C100: 2604.35 | D100: 2625.78 | E100: 2561.57 | F100: 2518.78 | G100: 2454.57 | H100: 2668.57 | I100: 2732.78 | J100: 2775.57 | K100: 2690 | L100: 2583 | M100: 10.65595
A101: 92 | B101: HEXAWARE | C101: 357.45 | D101: 359.02 | E101: 352.13 | F101: 346.82 | G101: 339.93 | H101: 364.33 | I101: 371.22 | J101: 376.53 | K101: 365.9 | L101: 353.7 | M101: 4.88693
A102: 93 | B102: HINDALCO | C102: 186.05 | D102: 184.63 | E102: 182.12 | F102: 178.18 | G102: 175.67 | H102: 188.57 | I102: 191.08 | J102: 195.02 | K102: 187.15 | L102: 180.7 | M102: 45.36877
A103: 94 | B103: HINDPETRO | C103: 314.5 | D103: 312.13 | E103: 304.47 | F103: 294.43 | G103: 286.77 | H103: 322.17 | I103: 329.83 | J103: 339.87 | K103: 319.8 | L103: 302.1 | M103: 60.99024
A104: 95 | B104: HINDUNILVR | C104: 1948 | D104: 1950.65 | E104: 1938.60 | F104: 1929.20 | G104: 1917.15 | H104: 1960.05 | I104: 1972.10 | J104: 1981.50 | K104: 1962.7 | L104: 1941.25 | M104: 10.66739
A105: 96 | B105: HINDZINC | C105: 206.9 | D105: 206.10 | E105: 203.80 | F105: 200.70 | G105: 198.40 | H105: 209.20 | I105: 211.50 | J105: 214.60 | K105: 208.4 | L105: 203 | M105: 2.72415
A106: 97 | B106: HUDCO | C106: 33.15 | D106: 32.97 | E106: 32.33 | F106: 31.52 | G106: 30.88 | H106: 33.78 | I106: 34.42 | J106: 35.23 | K106: 33.6 | L106: 32.15 | M106: 8.04684
A107: 98 | B107: HDFC | C107: 2002 | D107: 1990.45 | E107: 1975.90 | F107: 1949.80 | G107: 1935.25 | H107: 2016.55 | I107: 2031.10 | J107: 2057.20 | K107: 2005 | L107: 1964.35 | M107: 51.19327
A108: 99 | B108: ICICIBANK | C108: 436.7 | D108: 430.73 | E108: 423.07 | F108: 409.43 | G108: 401.77 | H108: 444.37 | I108: 452.03 | J108: 465.67 | K108: 438.4 | L108: 417.1 | M108: 345.33981
A109: 100 | B109: ICICIGI | C109: 1165.9 | D109: 1161.92 | E109: 1150.33 | F109: 1134.77 | G109: 1123.18 | H109: 1177.48 | I109: 1189.07 | J109: 1204.63 | K109: 1173.5 | L109: 1146.35 | M109: 5.46424
A110: 101 | B110: ICICIPRULI | C110: 449.75 | D110: 449.40 | E110: 441.80 | F110: 433.85 | G110: 426.25 | H110: 457.35 | I110: 464.95 | J110: 472.90 | K110: 457 | L110: 441.45 | M110: 31.25053
A111: 102 | B111: IDBI | C111: 29.9 | D111: 29.67 | E111: 29.03 | F111: 28.17 | G111: 27.53 | H111: 30.53 | I111: 31.17 | J111: 32.03 | K111: 30.3 | L111: 28.8 | M111: 22.02065
A112: 103 | B112: IDFCFIRSTB | C112: 38.4 | D112: 38.10 | E112: 37.40 | F112: 36.40 | G112: 35.70 | H112: 39.10 | I112: 39.80 | J112: 40.80 | K112: 38.8 | L112: 37.1 | M112: 166.41167
A113: 104 | B113: ITC | C113: 247.1 | D113: 248.53 | E113: 244.87 | F113: 242.63 | G113: 238.97 | H113: 250.77 | I113: 254.43 | J113: 256.67 | K113: 252.2 | L113: 246.3 | M113: 215.03869
A114: 105 | B114: IBULHSGFIN | C114: 239.8 | D114: 239.50 | E114: 232.35 | F114: 224.90 | G114: 217.75 | H114: 246.95 | I114: 254.10 | J114: 261.55 | K114: 246.65 | L114: 232.05 | M114: 195.10869
A115: 106 | B115: IBVENTURES | C115: 108.95 | D115: 107.35 | E115: 104.60 | F115: 100.25 | G115: 97.50 | H115: 111.70 | I115: 114.45 | J115: 118.80 | K115: 110.1 | L115: 103 | M115: 37.53018
A116: 107 | B116: INDIANB | C116: 116.9 | D116: 117.13 | E116: 114.27 | F116: 111.63 | G116: 108.77 | H116: 119.77 | I116: 122.63 | J116: 125.27 | K116: 120 | L116: 114.5 | M116: 12.13538
A117: 108 | B117: INDHOTEL | C117: 154.05 | D117: 155.17 | E117: 151.53 | F117: 149.02 | G117: 145.38 | H117: 157.68 | I117: 161.32 | J117: 163.83 | K117: 158.8 | L117: 152.65 | M117: 20.1686
A118: 109 | B118: IOC | C118: 148.2 | D118: 148.40 | E118: 146.80 | F118: 145.40 | G118: 143.80 | H118: 149.80 | I118: 151.40 | J118: 152.80 | K118: 150 | L118: 147 | M118: 169.90515
A119: 110 | B119: IGL | C119: 361.35 | D119: 358.88 | E119: 354.77 | F119: 348.18 | G119: 344.07 | H119: 365.47 | I119: 369.58 | J119: 376.17 | K119: 363 | L119: 352.3 | M119: 24.74216
A120: 111 | B120: INDUSINDBK | C120: 1308.65 | D120: 1287.75 | E120: 1256.50 | F120: 1204.35 | G120: 1173.10 | H120: 1339.90 | I120: 1371.15 | J120: 1423.30 | K120: 1319 | L120: 1235.6 | M120: 68.65376
A121: 112 | B121: NAUKRI | C121: 2392.8 | D121: 2369.25 | E121: 2316.50 | F121: 2240.20 | G121: 2187.45 | H121: 2445.55 | I121: 2498.30 | J121: 2574.60 | K121: 2422 | L121: 2292.95 | M121: 5.67484
A122: 113 | B122: INFY | C122: 783.65 | D122: 786.12 | E122: 776.33 | F122: 769.02 | G122: 759.23 | H122: 793.43 | I122: 803.22 | J122: 810.53 | K122: 795.9 | L122: 778.8 | M122: 63.35025
A123: 114 | B123: INDIGO | C123: 1796.45 | D123: 1787.83 | E123: 1771.67 | F123: 1746.88 | G123: 1730.72 | H123: 1812.62 | I123: 1828.78 | J123: 1853.57 | K123: 1804 | L123: 1763.05 | M123: 6.81454
A124: 115 | B124: IPCALAB | C124: 864.15 | D124: 863.67 | E124: 852.18 | F124: 840.22 | G124: 828.73 | H124: 875.63 | I124: 887.12 | J124: 899.08 | K124: 875.15 | L124: 851.7 | M124: 1.72226
A125: 116 | B125: JSWENERGY | C125: 61.6 | D125: 61.93 | E125: 60.47 | F125: 59.33 | G125: 57.87 | H125: 63.07 | I125: 64.53 | J125: 65.67 | K125: 63.4 | L125: 60.8 | M125: 6.05293
A126: 117 | B126: JSWSTEEL | C126: 212.8 | D126: 210.83 | E126: 207.92 | F126: 203.03 | G126: 200.12 | H126: 215.72 | I126: 218.63 | J126: 223.52 | K126: 213.75 | L126: 205.95 | M126: 59.58422
A127: 118 | B127: JINDALSTEL | C127: 97.6 | D127: 95.92 | E127: 93.58 | F127: 89.57 | G127: 87.23 | H127: 99.93 | I127: 102.27 | J127: 106.28 | K127: 98.25 | L127: 91.9 | M127: 241.43941
A128: 119 | B128: JUBLFOOD | C128: 1307.55 | D128: 1292.83 | E128: 1265.77 | F128: 1223.98 | G128: 1196.92 | H128: 1334.62 | I128: 1361.68 | J128: 1403.47 | K128: 1319.9 | L128: 1251.05 | M128: 20.56246
A129: 120 | B129: JUBILANT | C129: 484.7 | D129: 482.00 | E129: 472.75 | F129: 460.80 | G129: 451.55 | H129: 493.95 | I129: 503.20 | J129: 515.15 | K129: 491.25 | L129: 470.05 | M129: 1.49403
A130: 121 | B130: KOTAKBANK | C130: 1612.35 | D130: 1595.95 | E130: 1564.15 | F130: 1515.95 | G130: 1484.15 | H130: 1644.15 | I130: 1675.95 | J130: 1724.15 | K130: 1627.75 | L130: 1547.75 | M130: 25.9843
A131: 122 | B131: L&TFH | C131: 83.45 | D131: 81.95 | E131: 80.10 | F131: 76.75 | G131: 74.90 | H131: 85.30 | I131: 87.15 | J131: 90.50 | K131: 83.8 | L131: 78.6 | M131: 130.93432
A132: 123 | B132: LTTS | C132: 1577.7 | D132: 1587.00 | E132: 1554.00 | F132: 1530.30 | G132: 1497.30 | H132: 1610.70 | I132: 1643.70 | J132: 1667.40 | K132: 1620 | L132: 1563.3 | M132: 0.33464
A133: 124 | B133: LICHSGFIN | C133: 378 | D133: 373.67 | E133: 366.93 | F133: 355.87 | G133: 349.13 | H133: 384.73 | I133: 391.47 | J133: 402.53 | K133: 380.4 | L133: 362.6 | M133: 25.75117
A134: 125 | B134: LTI | C134: 1500.1 | D134: 1488.03 | E134: 1473.07 | F134: 1446.03 | G134: 1431.07 | H134: 1515.07 | I134: 1530.03 | J134: 1557.07 | K134: 1503 | L134: 1461 | M134: 0.62137
A135: 126 | B135: LT | C135: 1426.25 | D135: 1419.58 | E135: 1405.77 | F135: 1385.28 | G135: 1371.47 | H135: 1440.07 | I135: 1453.88 | J135: 1474.37 | K135: 1433.4 | L135: 1399.1 | M135: 18.18865
A136: 127 | B136: LUPIN | C136: 682.1 | D136: 675.70 | E136: 666.40 | F136: 650.70 | G136: 641.40 | H136: 691.40 | I136: 700.70 | J136: 716.40 | K136: 685 | L136: 660 | M136: 15.00671
A137: 128 | B137: MRF | C137: 61186.1 | D137: 60990.18 | E137: 60479.47 | F137: 59772.83 | G137: 59262.12 | H137: 61696.82 | I137: 62207.53 | J137: 62914.17 | K137: 61500.9 | L137: 60283.55 | M137: 0.06263
A138: 129 | B138: MGL | C138: 912.5 | D138: 907.78 | E138: 897.57 | F138: 882.63 | G138: 872.42 | H138: 922.72 | I138: 932.93 | J138: 947.87 | K138: 918 | L138: 892.85 | M138: 3.79939
A139: 130 | B139: M&MFIN | C139: 333.65 | D139: 331.28 | E139: 327.57 | F139: 321.48 | G139: 317.77 | H139: 337.37 | I139: 341.08 | J139: 347.17 | K139: 335 | L139: 325.2 | M139: 10.93908
A140: 131 | B140: M&M | C140: 576.55 | D140: 568.77 | E140: 558.73 | F140: 540.92 | G140: 530.88 | H140: 586.58 | I140: 596.62 | J140: 614.43 | K140: 578.8 | L140: 550.95 | M140: 48.63273
A141: 132 | B141: MANAPPURAM | C141: 140 | D141: 137.88 | E141: 134.92 | F141: 129.83 | G141: 126.87 | H141: 142.97 | I141: 145.93 | J141: 151.02 | K141: 140.85 | L141: 132.8 | M141: 59.63476
A142: 133 | B142: MRPL | C142: 50.55 | D142: 50.22 | E142: 49.53 | F142: 48.52 | G142: 47.83 | H142: 51.23 | I142: 51.92 | J142: 52.93 | K142: 50.9 | L142: 49.2 | M142: 4.52823
A143: 134 | B143: MARICO | C143: 383.6 | D143: 382.22 | E143: 379.38 | F143: 375.17 | G143: 372.33 | H143: 386.43 | I143: 389.27 | J143: 393.48 | K143: 385.05 | L143: 378 | M143: 14.53314
A144: 135 | B144: MARUTI | C144: 6719.55 | D144: 6684.45 | E144: 6625.10 | F144: 6530.65 | G144: 6471.30 | H144: 6778.90 | I144: 6838.25 | J144: 6932.70 | K144: 6743.8 | L144: 6590 | M144: 10.17731
A145: 136 | B145: MFSL | C145: 415.65 | D145: 412.80 | E145: 407.85 | F145: 400.05 | G145: 395.10 | H145: 420.60 | I145: 425.55 | J145: 433.35 | K145: 417.75 | L145: 405 | M145: 2.32902
A146: 137 | B146: MINDTREE | C146: 723.5 | D146: 723.13 | E146: 714.37 | F146: 705.23 | G146: 696.47 | H146: 732.27 | I146: 741.03 | J146: 750.17 | K146: 731.9 | L146: 714 | M146: 4.62574
A147: 138 | B147: MOTHERSUMI | C147: 97.15 | D147: 97.12 | E147: 95.83 | F147: 94.52 | G147: 93.23 | H147: 98.43 | I147: 99.72 | J147: 101.03 | K147: 98.4 | L147: 95.8 | M147: 76.87319
A148: 139 | B148: MPHASIS | C148: 929.4 | D148: 935.07 | E148: 918.53 | F148: 907.67 | G148: 891.13 | H148: 945.93 | I148: 962.47 | J148: 973.33 | K148: 951.6 | L148: 924.2 | M148: 2.64606
A149: 140 | B149: MUTHOOTFIN | C149: 686.1 | D149: 680.38 | E149: 670.82 | F149: 655.53 | G149: 645.97 | H149: 695.67 | I149: 705.23 | J149: 720.52 | K149: 689.95 | L149: 665.1 | M149: 8.20272
A150: 141 | B150: NATCOPHARM | C150: 552.6 | D150: 555.18 | E150: 546.42 | F150: 540.23 | G150: 531.47 | H150: 561.37 | I150: 570.13 | J150: 576.32 | K150: 563.95 | L150: 549 | M150: 0.6513
A151: 142 | B151: NBCC | C151: 33.8 | D151: 33.38 | E151: 32.62 | F151: 31.43 | G151: 30.67 | H151: 34.57 | I151: 35.33 | J151: 36.52 | K151: 34.15 | L151: 32.2 | M151: 162.10929
A152: 143 | B152: NHPC | C152: 22.65 | D152: 22.73 | E152: 22.32 | F152: 21.98 | G152: 21.57 | H152: 23.07 | I152: 23.48 | J152: 23.82 | K152: 23.15 | L152: 22.4 | M152: 29.07537
A153: 144 | B153: NMDC | C153: 96.5 | D153: 94.55 | E153: 91.95 | F153: 87.40 | G153: 84.80 | H153: 99.10 | I153: 101.70 | J153: 106.25 | K153: 97.15 | L153: 90 | M153: 84.11972
A154: 145 | B154: NTPC | C154: 117.25 | D154: 116.88 | E154: 115.77 | F154: 114.28 | G154: 113.17 | H154: 118.37 | I154: 119.48 | J154: 120.97 | K154: 118 | L154: 115.4 | M154: 84.13122
A155: 146 | B155: NATIONALUM | C155: 44.9 | D155: 44.83 | E155: 43.67 | F155: 42.43 | G155: 41.27 | H155: 46.07 | I155: 47.23 | J155: 48.47 | K155: 46 | L155: 43.6 | M155: 315.04681
A156: 147 | B156: NESTLEIND | C156: 13858.3 | D156: 13759.45 | E156: 13608.90 | F156: 13359.50 | G156: 13208.95 | H156: 14008.85 | I156: 14159.40 | J156: 14408.80 | K156: 13910 | L156: 13510.05 | M156: 0.93577
A157: 148 | B157: OBEROIRLTY | C157: 500.15 | D157: 490.62 | E157: 476.78 | F157: 453.42 | G157: 439.58 | H157: 513.98 | I157: 527.82 | J157: 551.18 | K157: 504.45 | L157: 467.25 | M157: 5.59207
A158: 149 | B158: ONGC | C158: 125.85 | D158: 125.65 | E158: 124.15 | F158: 122.45 | G158: 120.95 | H158: 127.35 | I158: 128.85 | J158: 130.55 | K158: 127.15 | L158: 123.95 | M158: 153.09757
A159: 150 | B159: OIL | C159: 146.45 | D159: 145.92 | E159: 144.03 | F159: 141.62 | G159: 139.73 | H159: 148.33 | I159: 150.22 | J159: 152.63 | K159: 147.8 | L159: 143.5 | M159: 7.85126
A160: 151 | B160: OFSS | C160: 3099.85 | D160: 3083.95 | E160: 3047.90 | F160: 2995.95 | G160: 2959.90 | H160: 3135.90 | I160: 3171.95 | J160: 3223.90 | K160: 3120 | L160: 3032 | M160: 0.09016
A161: 152 | B161: ORIENTBANK | C161: 54.45 | D161: 54.75 | E161: 52.90 | F161: 51.35 | G161: 49.50 | H161: 56.30 | I161: 58.15 | J161: 59.70 | K161: 56.6 | L161: 53.2 | M161: 12.12661
A162: 153 | B162: PIIND | C162: 1308.3 | D162: 1301.43 | E162: 1286.87 | F162: 1265.43 | G162: 1250.87 | H162: 1322.87 | I162: 1337.43 | J162: 1358.87 | K162: 1316 | L162: 1280 | M162: 1.4578
A163: 154 | B163: PNBHOUSING | C163: 548.05 | D163: 547.62 | E163: 540.43 | F163: 532.82 | G163: 525.63 | H163: 555.23 | I163: 562.42 | J163: 570.03 | K163: 554.8 | L163: 540 | M163: 0.714
A164: 155 | B164: PAGEIND | C164: 21494.85 | D164: 21338.27 | E164: 21045.08 | F164: 20595.32 | G164: 20302.13 | H164: 21788.03 | I164: 22081.22 | J164: 22530.98 | K164: 21631.45 | L164: 20888.5 | M164: 0.2864
A165: 156 | B165: PETRONET | C165: 257.55 | D165: 257.33 | E165: 255.32 | F165: 253.08 | G165: 251.07 | H165: 259.57 | I165: 261.58 | J165: 263.82 | K165: 259.35 | L165: 255.1 | M165: 42.6234
A166: 157 | B166: PFIZER | C166: 3148.15 | D166: 3156.70 | E166: 3124.50 | F166: 3100.85 | G166: 3068.65 | H166: 3180.35 | I166: 3212.55 | J166: 3236.20 | K166: 3188.9 | L166: 3133.05 | M166: 0.06751
A167: 158 | B167: PIDILITIND | C167: 1336.55 | D167: 1348.85 | E167: 1321.70 | F167: 1306.85 | G167: 1279.70 | H167: 1363.70 | I167: 1390.85 | J167: 1405.70 | K167: 1376 | L167: 1334 | M167: 11.36102
A168: 159 | B168: PEL | C168: 1395 | D168: 1397.93 | E168: 1325.87 | F168: 1256.73 | G168: 1184.67 | H168: 1467.07 | I168: 1539.13 | J168: 1608.27 | K168: 1470 | L168: 1328.8 | M168: 44.35131
A169: 160 | B169: PFC | C169: 94.6 | D169: 94.48 | E169: 93.02 | F169: 91.43 | G169: 89.97 | H169: 96.07 | I169: 97.53 | J169: 99.12 | K169: 95.95 | L169: 92.9 | M169: 94.40072
A170: 161 | B170: POWERGRID | C170: 197.7 | D170: 197.33 | E170: 195.77 | F170: 193.83 | G170: 192.27 | H170: 199.27 | I170: 200.83 | J170: 202.77 | K170: 198.9 | L170: 195.4 | M170: 47.83649
A171: 162 | B171: PRESTIGE | C171: 278.75 | D171: 277.68 | E171: 272.82 | F171: 266.88 | G171: 262.02 | H171: 283.62 | I171: 288.48 | J171: 294.42 | K171: 282.55 | L171: 271.75 | M171: 1.15811
A172: 163 | B172: PGHH | C172: 11363 | D172: 11357.00 | E172: 11256.00 | F172: 11149.00 | G172: 11048.00 | H172: 11464.00 | I172: 11565.00 | J172: 11672.00 | K172: 11458 | L172: 11250 | M172: 0.03429
A173: 164 | B173: PNB | C173: 58.45 | D173: 57.88 | E173: 56.97 | F173: 55.48 | G173: 54.57 | H173: 59.37 | I173: 60.28 | J173: 61.77 | K173: 58.8 | L173: 56.4 | M173: 269.96456
A174: 165 | B174: QUESS | C174: 470.05 | D174: 467.68 | E174: 461.82 | F174: 453.58 | G174: 447.72 | H174: 475.92 | I174: 481.78 | J174: 490.02 | K174: 473.55 | L174: 459.45 | M174: 2.93511
A175: 166 | B175: RBLBANK | C175: 309.6 | D175: 300.80 | E175: 289.60 | F175: 269.60 | G175: 258.40 | H175: 320.80 | I175: 332.00 | J175: 352.00 | K175: 312 | L175: 280.8 | M175: 207.01883
A176: 167 | B176: RECLTD | C176: 124.95 | D176: 123.42 | E176: 120.98 | F176: 117.02 | G176: 114.58 | H176: 127.38 | I176: 129.82 | J176: 133.78 | K176: 125.85 | L176: 119.45 | M176: 64.08847
A177: 168 | B177: RAJESHEXPO | C177: 672.95 | D177: 673.10 | E177: 669.95 | F177: 666.95 | G177: 663.80 | H177: 676.10 | I177: 679.25 | J177: 682.25 | K177: 676.25 | L177: 670.1 | M177: 2.53412
A178: 169 | B178: RELIANCE | C178: 1324.75 | D178: 1315.73 | E178: 1301.52 | F178: 1278.28 | G178: 1264.07 | H178: 1338.97 | I178: 1353.18 | J178: 1376.42 | K178: 1329.95 | L178: 1292.5 | M178: 80.40938
A179: 170 | B179: RNAM | C179: 273.1 | D179: 274.95 | E179: 268.20 | F179: 263.30 | G179: 256.55 | H179: 279.85 | I179: 286.60 | J179: 291.50 | K179: 281.7 | L179: 270.05 | M179: 11.43786
A180: 171 | B180: SBILIFE | C180: 837.25 | D180: 835.72 | E180: 827.53 | F180: 817.82 | G180: 809.63 | H180: 845.43 | I180: 853.62 | J180: 863.33 | K180: 843.9 | L180: 826 | M180: 5.06576
A181: 172 | B181: SRF | C181: 2748.7 | D181: 2719.60 | E181: 2679.20 | F181: 2609.70 | G181: 2569.30 | H181: 2789.10 | I181: 2829.50 | J181: 2899.00 | K181: 2760 | L181: 2650.1 | M181: 2.12995
A182: 173 | B182: SHREECEM | C182: 18482.75 | D182: 18251.80 | E182: 17964.25 | F182: 17445.75 | G182: 17158.20 | H182: 18770.30 | I182: 19057.85 | J182: 19576.35 | K182: 18539.35 | L182: 17733.3 | M182: 0.29201
A183: 174 | B183: SRTRANSFIN | C183: 1123.55 | D183: 1105.18 | E183: 1070.37 | F183: 1017.18 | G183: 982.37 | H183: 1158.37 | I183: 1193.18 | J183: 1246.37 | K183: 1140 | L183: 1052 | M183: 16.52542
A184: 175 | B184: SIEMENS | C184: 1588.2 | D184: 1566.23 | E184: 1537.47 | F184: 1486.73 | G184: 1457.97 | H184: 1616.97 | I184: 1645.73 | J184: 1696.47 | K184: 1595 | L184: 1515.5 | M184: 10.60171
A185: 176 | B185: SBIN | C185: 260.95 | D185: 255.77 | E185: 249.53 | F185: 238.12 | G185: 231.88 | H185: 267.18 | I185: 273.42 | J185: 284.83 | K185: 262 | L185: 244.35 | M185: 603.28507
A186: 177 | B186: SAIL | C186: 32.65 | D186: 32.35 | E186: 31.80 | F186: 30.95 | G186: 30.40 | H186: 33.20 | I186: 33.75 | J186: 34.60 | K186: 32.9 | L186: 31.5 | M186: 287.4766
A187: 178 | B187: STRTECH | C187: 142.5 | D187: 141.00 | E187: 137.65 | F187: 132.80 | G187: 129.45 | H187: 145.85 | I187: 149.20 | J187: 154.05 | K187: 144.35 | L187: 136.15 | M187: 9.55555
A188: 179 | B188: SUNPHARMA | C188: 383.95 | D188: 381.97 | E188: 376.18 | F188: 368.42 | G188: 362.63 | H188: 389.73 | I188: 395.52 | J188: 403.28 | K188: 387.75 | L188: 374.2 | M188: 49.91946
A189: 180 | B189: SUNTV | C189: 471.75 | D189: 465.90 | E189: 458.00 | F189: 444.25 | G189: 436.35 | H189: 479.65 | I189: 487.55 | J189: 501.30 | K189: 473.8 | L189: 452.15 | M189: 14.00243
A190: 181 | B190: SYNGENE | C190: 305 | D190: 306.18 | E190: 302.87 | F190: 300.73 | G190: 297.42 | H190: 308.32 | I190: 311.63 | J190: 313.77 | K190: 309.5 | L190: 304.05 | M190: 1.44689
A191: 182 | B191: TVSMOTOR | C191: 396.95 | D191: 395.30 | E191: 389.90 | F191: 382.85 | G191: 377.45 | H191: 402.35 | I191: 407.75 | J191: 414.80 | K191: 400.7 | L191: 388.25 | M191: 19.16445
A192: 183 | B192: TATACHEM | C192: 588.35 | D192: 585.12 | E192: 579.23 | F192: 570.12 | G192: 564.23 | H192: 594.23 | I192: 600.12 | J192: 609.23 | K192: 591 | L192: 576 | M192: 2.2655
A193: 184 | B193: TCS | C193: 2020.1 | D193: 2031.87 | E193: 2003.73 | F193: 1987.37 | G193: 1959.23 | H193: 2048.23 | I193: 2076.37 | J193: 2092.73 | K193: 2060 | L193: 2015.5 | M193: 20.6692
A194: 185 | B194: TATAGLOBAL | C194: 269.95 | D194: 268.62 | E194: 265.58 | F194: 261.22 | G194: 258.18 | H194: 272.98 | I194: 276.02 | J194: 280.38 | K194: 271.65 | L194: 264.25 | M194: 20.224
A195: 186 | B195: TATAMTRDVR | C195: 53.5 | D195: 52.78 | E195: 51.72 | F195: 49.93 | G195: 48.87 | H195: 54.57 | I195: 55.63 | J195: 57.42 | K195: 53.85 | L195: 51 | M195: 56.61134
A196: 187 | B196: TATAMOTORS | C196: 120.9 | D196: 119.35 | E196: 117.00 | F196: 113.10 | G196: 110.75 | H196: 123.25 | I196: 125.60 | J196: 129.50 | K196: 121.7 | L196: 115.45 | M196: 446.66296
A197: 188 | B197: TATAPOWER | C197: 61.45 | D197: 60.42 | E197: 59.08 | F197: 56.72 | G197: 55.38 | H197: 62.78 | I197: 64.12 | J197: 66.48 | K197: 61.75 | L197: 58.05 | M197: 127.49464
A198: 189 | B198: TATASTEEL | C198: 336.45 | D198: 331.60 | E198: 325.20 | F198: 313.95 | G198: 307.55 | H198: 342.85 | I198: 349.25 | J198: 360.50 | K198: 338 | L198: 320.35 | M198: 147.76741
A199: 190 | B199: TECHM | C199: 711.05 | D199: 708.93 | E199: 703.97 | F199: 696.88 | G199: 691.92 | H199: 716.02 | I199: 720.98 | J199: 728.07 | K199: 713.9 | L199: 701.85 | M199: 11.15851
A200: 191 | B200: NIACL | C200: 102.15 | D200: 101.97 | E200: 101.13 | F200: 100.12 | G200: 99.28 | H200: 102.98 | I200: 103.82 | J200: 104.83 | K200: 102.8 | L200: 100.95 | M200: 0.61869
A201: 192 | B201: RAMCOCEM | C201: 705.8 | D201: 703.82 | E201: 697.63 | F201: 689.47 | G201: 683.28 | H201: 711.98 | I201: 718.17 | J201: 726.33 | K201: 710 | L201: 695.65 | M201: 4.46568
A202: 193 | B202: TITAN | C202: 1230.3 | D202: 1214.53 | E202: 1192.82 | F202: 1155.33 | G202: 1133.62 | H202: 1252.02 | I202: 1273.73 | J202: 1311.22 | K202: 1236.25 | L202: 1177.05 | M202: 83.27469
A203: 194 | B203: TORNTPHARM | C203: 1666.2 | D203: 1648.50 | E203: 1626.00 | F203: 1585.80 | G203: 1563.30 | H203: 1688.70 | I203: 1711.20 | J203: 1751.40 | K203: 1671 | L203: 1608.3 | M203: 1.10485
A204: 195 | B204: TORNTPOWER | C204: 282.85 | D204: 280.92 | E204: 277.23 | F204: 271.62 | G204: 267.93 | H204: 286.53 | I204: 290.22 | J204: 295.83 | K204: 284.6 | L204: 275.3 | M204: 9.3139
A205: 196 | B205: UPL | C205: 581.7 | D205: 580.02 | E205: 575.43 | F205: 569.17 | G205: 564.58 | H205: 586.28 | I205: 590.87 | J205: 597.13 | K205: 584.6 | L205: 573.75 | M205: 17.43937
... 30 more rows

Sheet MidCap Intra
L5: Back To Main Page
A6: FOR INTRA DAY TRADING | K6: =Main!B10 -> 2019-10-10
A9: Sr.no | B9: Scrip | C9: CLOSE RATE | D9: Pivot Point | E9: Supports | H9: Resistances
C10: Point | E10: S1 | F10: S2 | G10: S3 | H10: R1 | I10: R2 | J10: R3 | K10: HIGH | L10: LOW | M10: Total Trade Quanity in Lakhs
A11: 1 | B11: 3MINDIA | C11: 20219.3 | D11: 20098.43 | E11: 19906.92 | F11: 19594.53 | G11: 19403.02 | H11: 20410.82 | I11: 20602.33 | J11: 20914.72 | K11: 20289.95 | L11: 19786.05 | M11: 0.01601
A12: 2 | B12: ACC | C12: 1467.1 | D12: 1452.50 | E12: 1431.05 | F12: 1395.00 | G12: 1373.55 | H12: 1488.55 | I12: 1510.00 | J12: 1546.05 | K12: 1473.95 | L12: 1416.45 | M12: 12.60259
A13: 3 | B13: AIAENG | C13: 1644.35 | D13: 1653.30 | E13: 1623.70 | F13: 1603.05 | G13: 1573.45 | H13: 1673.95 | I13: 1703.55 | J13: 1724.20 | K13: 1682.9 | L13: 1632.65 | M13: 0.05951
A14: 4 | B14: APLAPOLLO | C14: 1369.5 | D14: 1356.10 | E14: 1313.40 | F14: 1257.30 | G14: 1214.60 | H14: 1412.20 | I14: 1454.90 | J14: 1511.00 | K14: 1398.8 | L14: 1300 | M14: 0.22539
A15: 5 | B15: AUBANK | C15: 641.25 | D15: 645.23 | E15: 635.67 | F15: 630.08 | G15: 620.52 | H15: 650.82 | I15: 660.38 | J15: 665.97 | K15: 654.8 | L15: 639.65 | M15: 4.66926
A16: 6 | B16: AAVAS | C16: 1604.05 | D16: 1603.28 | E16: 1591.62 | F16: 1579.18 | G16: 1567.52 | H16: 1615.72 | I16: 1627.38 | J16: 1639.82 | K16: 1614.95 | L16: 1590.85 | M16: 0.12717
A17: 7 | B17: ABBOTINDIA | C17: 10998.6 | D17: 10899.53 | E17: 10749.07 | F17: 10499.53 | G17: 10349.07 | H17: 11149.07 | I17: 11299.53 | J17: 11549.07 | K17: 11050 | L17: 10650 | M17: 0.08536
A18: 8 | B18: ADANIGAS | C18: 136.05 | D18: 135.25 | E18: 132.10 | F18: 128.15 | G18: 125.00 | H18: 139.20 | I18: 142.35 | J18: 146.30 | K18: 138.4 | L18: 131.3 | M18: 17.12612
A19: 9 | B19: ADANIGREEN | C19: 71.45 | D19: 71.08 | E19: 67.87 | F19: 64.28 | G19: 61.07 | H19: 74.67 | I19: 77.88 | J19: 81.47 | K19: 74.3 | L19: 67.5 | M19: 69.42443
A20: 10 | B20: ADANIPORTS | C20: 400.45 | D20: 398.28 | E20: 393.72 | F20: 386.98 | G20: 382.42 | H20: 405.02 | I20: 409.58 | J20: 416.32 | K20: 402.85 | L20: 391.55 | M20: 39.05912
A21: 11 | B21: ADANIPOWER | C21: 60.75 | D21: 60.08 | E21: 59.07 | F21: 57.38 | G21: 56.37 | H21: 61.77 | I21: 62.78 | J21: 64.47 | K21: 61.1 | L21: 58.4 | M21: 95.89622
A22: 12 | B22: ADANITRANS | C22: 225.45 | D22: 225.67 | E22: 221.33 | F22: 217.22 | G22: 212.88 | H22: 229.78 | I22: 234.12 | J22: 238.23 | K22: 230 | L22: 221.55 | M22: 0.81394
A23: 13 | B23: ABCAPITAL | C23: 79.4 | D23: 79.65 | E23: 77.85 | F23: 76.30 | G23: 74.50 | H23: 81.20 | I23: 83.00 | J23: 84.55 | K23: 81.45 | L23: 78.1 | M23: 12.68265
A24: 14 | B24: ABFRL | C24: 208.1 | D24: 207.42 | E24: 205.28 | F24: 202.47 | G24: 200.33 | H24: 210.23 | I24: 212.37 | J24: 215.18 | K24: 209.55 | L24: 204.6 | M24: 3.13571
A25: 15 | B25: ADVENZYMES | C25: 148.95 | D25: 149.53 | E25: 147.57 | F25: 146.18 | G25: 144.22 | H25: 150.92 | I25: 152.88 | J25: 154.27 | K25: 151.5 | L25: 148.15 | M25: 0.43353
A26: 16 | B26: AEGISCHEM | C26: 166.7 | D26: 165.78 | E26: 162.17 | F26: 157.63 | G26: 154.02 | H26: 170.32 | I26: 173.93 | J26: 178.47 | K26: 169.4 | L26: 161.25 | M26: 0.8208
A27: 17 | B27: AJANTPHARM | C27: 981.9 | D27: 979.52 | E27: 969.38 | F27: 956.87 | G27: 946.73 | H27: 992.03 | I27: 1002.17 | J27: 1014.68 | K27: 989.65 | L27: 967 | M27: 0.63671
A28: 18 | B28: AKZOINDIA | C28: 1850.7 | D28: 1853.22 | E28: 1828.48 | F28: 1806.27 | G28: 1781.53 | H28: 1875.43 | I28: 1900.17 | J28: 1922.38 | K28: 1877.95 | L28: 1831 | M28: 0.09866
A29: 19 | B29: APLLTD | C29: 537.3 | D29: 537.47 | E29: 529.93 | F29: 522.57 | G29: 515.03 | H29: 544.83 | I29: 552.37 | J29: 559.73 | K29: 545 | L29: 530.1 | M29: 0.15651
A30: 20 | B30: ALKEM | C30: 1938.25 | D30: 1933.08 | E30: 1916.17 | F30: 1894.08 | G30: 1877.17 | H30: 1955.17 | I30: 1972.08 | J30: 1994.17 | K30: 1950 | L30: 1911 | M30: 0.16138
A31: 21 | B31: ALBK | C31: 26.55 | D31: 26.35 | E31: 26.00 | F31: 25.45 | G31: 25.10 | H31: 26.90 | I31: 27.25 | J31: 27.80 | K31: 26.7 | L31: 25.8 | M31: 10.57488
A32: 22 | B32: ALLCARGO | C32: 99.6 | D32: 99.62 | E32: 98.23 | F32: 96.87 | G32: 95.48 | H32: 100.98 | I32: 102.37 | J32: 103.73 | K32: 101 | L32: 98.25 | M32: 1.35859
A33: 23 | B33: AMARAJABAT | C33: 693.55 | D33: 687.42 | E33: 679.23 | F33: 664.92 | G33: 656.73 | H33: 701.73 | I33: 709.92 | J33: 724.23 | K33: 695.6 | L33: 673.1 | M33: 3.43977
A34: 24 | B34: AMBER | C34: 885.2 | D34: 883.15 | E34: 863.30 | F34: 841.40 | G34: 821.55 | H34: 905.05 | I34: 924.90 | J34: 946.80 | K34: 903 | L34: 861.25 | M34: 0.10475
A35: 25 | B35: AMBUJACEM | C35: 192.35 | D35: 189.93 | E35: 186.52 | F35: 180.68 | G35: 177.27 | H35: 195.77 | I35: 199.18 | J35: 205.02 | K35: 193.35 | L35: 184.1 | M35: 33.60027
A36: 26 | B36: ANDHRABANK | C36: 16.45 | D36: 16.38 | E36: 16.22 | F36: 15.98 | G36: 15.82 | H36: 16.62 | I36: 16.78 | J36: 17.02 | K36: 16.55 | L36: 16.15 | M36: 2.40757
A37: 27 | B37: APOLLOHOSP | C37: 1425.05 | D37: 1418.15 | E37: 1404.45 | F37: 1383.85 | G37: 1370.15 | H37: 1438.75 | I37: 1452.45 | J37: 1473.05 | K37: 1431.85 | L37: 1397.55 | M37: 3.81888
A38: 28 | B38: APOLLOTYRE | C38: 168.85 | D38: 167.12 | E38: 164.28 | F38: 159.72 | G38: 156.88 | H38: 171.68 | I38: 174.52 | J38: 179.08 | K38: 169.95 | L38: 162.55 | M38: 18.58232
A39: 29 | B39: ARVINDFASN | C39: 424.3 | D39: 426.38 | E39: 417.77 | F39: 411.23 | G39: 402.62 | H39: 432.92 | I39: 441.53 | J39: 448.07 | K39: 435 | L39: 419.85 | M39: 0.10467
A40: 30 | B40: ASHOKLEY | C40: 69.05 | D40: 67.75 | E40: 65.75 | F40: 62.45 | G40: 60.45 | H40: 71.05 | I40: 73.05 | J40: 76.35 | K40: 69.75 | L40: 64.45 | M40: 488.74905
A41: 31 | B41: ASHOKA | C41: 97.5 | D41: 97.95 | E41: 96.50 | F41: 95.50 | G41: 94.05 | H41: 98.95 | I41: 100.40 | J41: 101.40 | K41: 99.4 | L41: 96.95 | M41: 1.74686
A42: 32 | B42: ASIANPAINT | C42: 1773.45 | D42: 1759.05 | E42: 1740.10 | F42: 1706.75 | G42: 1687.80 | H42: 1792.40 | I42: 1811.35 | J42: 1844.70 | K42: 1778 | L42: 1725.7 | M42: 17.77552
A43: 33 | B43: ASTERDM | C43: 117.05 | D43: 117.22 | E43: 115.03 | F43: 113.02 | G43: 110.83 | H43: 119.23 | I43: 121.42 | J43: 123.43 | K43: 119.4 | L43: 115.2 | M43: 4.25908
A44: 34 | B44: ASTRAZEN | C44: 2200.75 | D44: 2181.72 | E44: 2145.08 | F44: 2089.42 | G44: 2052.78 | H44: 2237.38 | I44: 2274.02 | J44: 2329.68 | K44: 2218.35 | L44: 2126.05 | M44: 0.1618
A45: 35 | B45: ASTRAL | C45: 1190.5 | D45: 1188.10 | E45: 1176.35 | F45: 1162.20 | G45: 1150.45 | H45: 1202.25 | I45: 1214.00 | J45: 1228.15 | K45: 1199.85 | L45: 1173.95 | M45: 1.20989
A46: 36 | B46: ATUL | C46: 3943.1 | D46: 3956.03 | E46: 3914.07 | F46: 3885.03 | G46: 3843.07 | H46: 3985.07 | I46: 4027.03 | J46: 4056.07 | K46: 3998 | L46: 3927 | M46: 0.04681
A47: 37 | B47: AUROPHARMA | C47: 474.4 | D47: 471.18 | E47: 457.37 | F47: 440.33 | G47: 426.52 | H47: 488.22 | I47: 502.03 | J47: 519.07 | K47: 485 | L47: 454.15 | M47: 179.98262
A48: 38 | B48: AVANTIFEED | C48: 355.2 | D48: 352.53 | E48: 346.22 | F48: 337.23 | G48: 330.92 | H48: 361.52 | I48: 367.83 | J48: 376.82 | K48: 358.85 | L48: 343.55 | M48: 1.68185
A49: 39 | B49: DMART | C49: 1820.4 | D49: 1830.33 | E49: 1791.67 | F49: 1762.93 | G49: 1724.27 | H49: 1859.07 | I49: 1897.73 | J49: 1926.47 | K49: 1869 | L49: 1801.6 | M49: 3.57535
A50: 40 | B50: AXISBANK | C50: 686.3 | D50: 680.03 | E50: 670.57 | F50: 654.83 | G50: 645.37 | H50: 695.77 | I50: 705.23 | J50: 720.97 | K50: 689.5 | L50: 664.3 | M50: 115.37721
A51: 41 | B51: BASF | C51: 999.15 | D51: 1001.85 | E51: 981.80 | F51: 964.45 | G51: 944.40 | H51: 1019.20 | I51: 1039.25 | J51: 1056.60 | K51: 1021.9 | L51: 984.5 | M51: 0.37187
A52: 42 | B52: BEML | C52: 934.7 | D52: 937.98 | E52: 926.97 | F52: 919.23 | G52: 908.22 | H52: 945.72 | I52: 956.73 | J52: 964.47 | K52: 949 | L52: 930.25 | M52: 4.06937
A53: 43 | B53: BSE | C53: 533.4 | D53: 537.47 | E53: 524.93 | F53: 516.47 | G53: 503.93 | H53: 545.93 | I53: 558.47 | J53: 566.93 | K53: 550 | L53: 529 | M53: 1.3247
A54: 44 | B54: BAJAJ-AUTO | C54: 2891.85 | D54: 2894.87 | E54: 2874.73 | F54: 2857.62 | G54: 2837.48 | H54: 2911.98 | I54: 2932.12 | J54: 2949.23 | K54: 2915 | L54: 2877.75 | M54: 3.55878
A55: 45 | B55: BAJAJCON | C55: 243.7 | D55: 243.07 | E55: 241.13 | F55: 238.57 | G55: 236.63 | H55: 245.63 | I55: 247.57 | J55: 250.13 | K55: 245 | L55: 240.5 | M55: 0.44717
A56: 46 | B56: BAJAJELEC | C56: 376.8 | D56: 377.35 | E56: 370.75 | F56: 364.70 | G56: 358.10 | H56: 383.40 | I56: 390.00 | J56: 396.05 | K56: 383.95 | L56: 371.3 | M56: 0.57904
A57: 47 | B57: BAJFINANCE | C57: 4023.9 | D57: 3979.65 | E57: 3924.30 | F57: 3824.70 | G57: 3769.35 | H57: 4079.25 | I57: 4134.60 | J57: 4234.20 | K57: 4035 | L57: 3880.05 | M57: 13.566
A58: 48 | B58: BAJAJFINSV | C58: 8318.25 | D58: 8281.38 | E58: 8212.87 | F58: 8107.48 | G58: 8038.97 | H58: 8386.77 | I58: 8455.28 | J58: 8560.67 | K58: 8349.9 | L58: 8176 | M58: 3.29837
A59: 49 | B59: BAJAJHLDNG | C59: 3616 | D59: 3605.33 | E59: 3585.67 | F59: 3555.33 | G59: 3535.67 | H59: 3635.67 | I59: 3655.33 | J59: 3685.67 | K59: 3625 | L59: 3575 | M59: 0.11569
A60: 50 | B60: BALKRISIND | C60: 733.05 | D60: 725.00 | E60: 715.05 | F60: 697.05 | G60: 687.10 | H60: 743.00 | I60: 752.95 | J60: 770.95 | K60: 734.95 | L60: 707 | M60: 4.40297
A61: 51 | B61: BALMLAWRIE | C61: 166.15 | D61: 166.72 | E61: 164.03 | F61: 161.92 | G61: 159.23 | H61: 168.83 | I61: 171.52 | J61: 173.63 | K61: 169.4 | L61: 164.6 | M61: 0.52821
A62: 52 | B62: BALRAMCHIN | C62: 154.2 | D62: 154.13 | E62: 151.37 | F62: 148.53 | G62: 145.77 | H62: 156.97 | I62: 159.73 | J62: 162.57 | K62: 156.9 | L62: 151.3 | M62: 6.2717
A63: 53 | B63: BANDHANBNK | C63: 480.55 | D63: 478.70 | E63: 473.00 | F63: 465.45 | G63: 459.75 | H63: 486.25 | I63: 491.95 | J63: 499.50 | K63: 484.4 | L63: 471.15 | M63: 4.0342
A64: 54 | B64: BANKBARODA | C64: 91.05 | D64: 89.55 | E64: 87.50 | F64: 83.95 | G64: 81.90 | H64: 93.10 | I64: 95.15 | J64: 98.70 | K64: 91.6 | L64: 86 | M64: 296.68675
A65: 55 | B65: BANKINDIA | C65: 61.6 | D65: 60.42 | E65: 58.63 | F65: 55.67 | G65: 53.88 | H65: 63.38 | I65: 65.17 | J65: 68.13 | K65: 62.2 | L65: 57.45 | M65: 110.49824
A66: 56 | B66: MAHABANK | C66: 10.8 | D66: 10.83 | E66: 10.62 | F66: 10.43 | G66: 10.22 | H66: 11.02 | I66: 11.23 | J66: 11.42 | K66: 11.05 | L66: 10.65 | M66: 3.23915
A67: 57 | B67: BATAINDIA | C67: 1723.5 | D67: 1706.33 | E67: 1677.67 | F67: 1631.83 | G67: 1603.17 | H67: 1752.17 | I67: 1780.83 | J67: 1826.67 | K67: 1735 | L67: 1660.5 | M67: 8.1617
A68: 58 | B68: BAYERCROP | C68: 3340.9 | D68: 3334.32 | E68: 3298.58 | F68: 3256.27 | G68: 3220.53 | H68: 3376.63 | I68: 3412.37 | J68: 3454.68 | K68: 3370.05 | L68: 3292 | M68: 0.04645
A69: 59 | B69: BERGEPAINT | C69: 449.9 | D69: 444.62 | E69: 437.33 | F69: 424.77 | G69: 417.48 | H69: 457.18 | I69: 464.47 | J69: 477.03 | K69: 451.9 | L69: 432.05 | M69: 38.46974
A70: 60 | B70: BDL | C70: 286.25 | D70: 286.02 | E70: 282.33 | F70: 278.42 | G70: 274.73 | H70: 289.93 | I70: 293.62 | J70: 297.53 | K70: 289.7 | L70: 282.1 | M70: 0.2142
A71: 61 | B71: BEL | C71: 105.4 | D71: 105.37 | E71: 104.08 | F71: 102.77 | G71: 101.48 | H71: 106.68 | I71: 107.97 | J71: 109.28 | K71: 106.65 | L71: 104.05 | M71: 67.24764
A72: 62 | B72: BHARATFORG | C72: 432.3 | D72: 429.92 | E72: 421.48 | F72: 410.67 | G72: 402.23 | H72: 440.73 | I72: 449.17 | J72: 459.98 | K72: 438.35 | L72: 419.1 | M72: 9.21692
A73: 63 | B73: BHEL | C73: 43.65 | D73: 43.33 | E73: 42.72 | F73: 41.78 | G73: 41.17 | H73: 44.27 | I73: 44.88 | J73: 45.82 | K73: 43.95 | L73: 42.4 | M73: 152.25493
A74: 64 | B74: BPCL | C74: 492.85 | D74: 490.08 | E74: 484.42 | F74: 475.98 | G74: 470.32 | H74: 498.52 | I74: 504.18 | J74: 512.62 | K74: 495.75 | L74: 481.65 | M74: 108.58033
A75: 65 | B75: BHARTIARTL | C75: 359.4 | D75: 353.08 | E75: 345.32 | F75: 331.23 | G75: 323.47 | H75: 367.17 | I75: 374.93 | J75: 389.02 | K75: 360.85 | L75: 339 | M75: 86.85318
A76: 66 | B76: INFRATEL | C76: 255.85 | D76: 253.78 | E76: 246.57 | F76: 237.28 | G76: 230.07 | H76: 263.07 | I76: 270.28 | J76: 279.57 | K76: 261 | L76: 244.5 | M76: 25.74081
A77: 67 | B77: BIOCON | C77: 233.5 | D77: 230.68 | E77: 226.57 | F77: 219.63 | G77: 215.52 | H77: 237.62 | I77: 241.73 | J77: 248.67 | K77: 234.8 | L77: 223.75 | M77: 34.34478
A78: 68 | B78: BIRLACORPN | C78: 527.25 | D78: 531.97 | E78: 520.83 | F78: 514.42 | G78: 503.28 | H78: 538.38 | I78: 549.52 | J78: 555.93 | K78: 543.1 | L78: 525.55 | M78: 2.15565
A79: 69 | B79: BSOFT | C79: 60.85 | D79: 60.95 | E79: 59.70 | F79: 58.55 | G79: 57.30 | H79: 62.10 | I79: 63.35 | J79: 64.50 | K79: 62.2 | L79: 59.8 | M79: 3.34537
A80: 70 | B80: BLISSGVS | C80: 102.35 | D80: 101.53 | E80: 98.57 | F80: 94.78 | G80: 91.82 | H80: 105.32 | I80: 108.28 | J80: 112.07 | K80: 104.5 | L80: 97.75 | M80: 3.42766
A81: 71 | B81: BLUEDART | C81: 2285.4 | D81: 2279.45 | E81: 2238.95 | F81: 2192.50 | G81: 2152.00 | H81: 2325.90 | I81: 2366.40 | J81: 2412.85 | K81: 2319.95 | L81: 2233 | M81: 0.03327
A82: 72 | B82: BLUESTARCO | C82: 812.5 | D82: 816.70 | E82: 804.40 | F82: 796.30 | G82: 784.00 | H82: 824.80 | I82: 837.10 | J82: 845.20 | K82: 829 | L82: 808.6 | M82: 1.03185
A83: 73 | B83: BBTC | C83: 1092.15 | D83: 1093.05 | E83: 1075.10 | F83: 1058.05 | G83: 1040.10 | H83: 1110.10 | I83: 1128.05 | J83: 1145.10 | K83: 1111 | L83: 1076 | M83: 1.09646
A84: 74 | B84: BOMDYEING | C84: 70.5 | D84: 70.27 | E84: 68.13 | F84: 65.77 | G84: 63.63 | H84: 72.63 | I84: 74.77 | J84: 77.13 | K84: 72.4 | L84: 67.9 | M84: 15.56766
A85: 75 | B85: BOSCHLTD | C85: 13269.9 | D85: 13237.58 | E85: 13033.42 | F85: 12796.93 | G85: 12592.77 | H85: 13474.07 | I85: 13678.23 | J85: 13914.72 | K85: 13441.75 | L85: 13001.1 | M85: 0.11755
A86: 76 | B86: BRIGADE | C86: 199.9 | D86: 198.30 | E86: 193.70 | F86: 187.50 | G86: 182.90 | H86: 204.50 | I86: 209.10 | J86: 215.30 | K86: 202.9 | L86: 192.1 | M86: 0.9624
A87: 77 | B87: BRITANNIA | C87: 3058.5 | D87: 3020.02 | E87: 2965.38 | F87: 2872.27 | G87: 2817.63 | H87: 3113.13 | I87: 3167.77 | J87: 3260.88 | K87: 3074.65 | L87: 2926.9 | M87: 10.37068
A88: 78 | B88: CARERATING | C88: 517.65 | D88: 516.30 | E88: 508.00 | F88: 498.35 | G88: 490.05 | H88: 525.95 | I88: 534.25 | J88: 543.90 | K88: 524.6 | L88: 506.65 | M88: 0.3214
A89: 79 | B89: CCL | C89: 228.75 | D89: 228.03 | E89: 223.32 | F89: 217.88 | G89: 213.17 | H89: 233.47 | I89: 238.18 | J89: 243.62 | K89: 232.75 | L89: 222.6 | M89: 1.46236
A90: 80 | B90: CESC | C90: 757.25 | D90: 749.47 | E90: 736.78 | F90: 716.32 | G90: 703.63 | H90: 769.93 | I90: 782.62 | J90: 803.08 | K90: 762.15 | L90: 729 | M90: 4.6531
A91: 81 | B91: CGPOWER | C91: 14.2 | D91: 14.20 | E91: 13.75 | F91: 13.30 | G91: 12.85 | H91: 14.65 | I91: 15.10 | J91: 15.55 | K91: 14.65 | L91: 13.75 | M91: 5.82364
A92: 82 | B92: CRISIL | C92: 1288 | D92: 1289.93 | E92: 1270.87 | F92: 1253.73 | G92: 1234.67 | H92: 1307.07 | I92: 1326.13 | J92: 1343.27 | K92: 1309 | L92: 1272.8 | M92: 0.1166
A93: 83 | B93: CADILAHC | C93: 236.55 | D93: 233.70 | E93: 228.50 | F93: 220.45 | G93: 215.25 | H93: 241.75 | I93: 246.95 | J93: 255.00 | K93: 238.9 | L93: 225.65 | M93: 6.61679
A94: 84 | B94: CANFINHOME | C94: 391 | D94: 387.17 | E94: 380.38 | F94: 369.77 | G94: 362.98 | H94: 397.78 | I94: 404.57 | J94: 415.18 | K94: 393.95 | L94: 376.55 | M94: 1.31502
A95: 85 | B95: CANBK | C95: 184.25 | D95: 181.42 | E95: 177.13 | F95: 170.02 | G95: 165.73 | H95: 188.53 | I95: 192.82 | J95: 199.93 | K95: 185.7 | L95: 174.3 | M95: 91.77259
A96: 86 | B96: CAPLIPOINT | C96: 397.85 | D96: 395.97 | E96: 391.93 | F96: 386.02 | G96: 381.98 | H96: 401.88 | I96: 405.92 | J96: 411.83 | K96: 400 | L96: 390.05 | M96: 0.12253
A97: 87 | B97: CGCL | C97: 211.65 | D97: 210.93 | E97: 206.77 | F97: 201.88 | G97: 197.72 | H97: 215.82 | I97: 219.98 | J97: 224.87 | K97: 215.1 | L97: 206.05 | M97: 4.50991
A98: 88 | B98: CARBORUNIV | C98: 291.2 | D98: 292.00 | E98: 285.00 | F98: 278.80 | G98: 271.80 | H98: 298.20 | I98: 305.20 | J98: 311.40 | K98: 299 | L98: 285.8 | M98: 0.40415
A99: 89 | B99: CASTROLIND | C99: 132.7 | D99: 131.93 | E99: 130.87 | F99: 129.03 | G99: 127.97 | H99: 133.77 | I99: 134.83 | J99: 136.67 | K99: 133 | L99: 130.1 | M99: 24.6117
A100: 90 | B100: CEATLTD | C100: 937.8 | D100: 933.93 | E100: 919.92 | F100: 902.03 | G100: 888.02 | H100: 951.82 | I100: 965.83 | J100: 983.72 | K100: 947.95 | L100: 916.05 | M100: 0.71247
A101: 91 | B101: CENTRALBK | C101: 17.25 | D101: 17.15 | E101: 16.70 | F101: 16.15 | G101: 15.70 | H101: 17.70 | I101: 18.15 | J101: 18.70 | K101: 17.6 | L101: 16.6 | M101: 7.45265
A102: 92 | B102: CDSL | C102: 205.55 | D102: 206.13 | E102: 204.42 | F102: 203.28 | G102: 201.57 | H102: 207.27 | I102: 208.98 | J102: 210.12 | K102: 207.85 | L102: 205 | M102: 0.78227
A103: 93 | B103: CENTURYPLY | C103: 166.55 | D103: 163.73 | E103: 159.72 | F103: 152.88 | G103: 148.87 | H103: 170.57 | I103: 174.58 | J103: 181.42 | K103: 167.75 | L103: 156.9 | M103: 4.1888
A104: 94 | B104: CERA | C104: 2509.3 | D104: 2516.45 | E104: 2484.95 | F104: 2460.60 | G104: 2429.10 | H104: 2540.80 | I104: 2572.30 | J104: 2596.65 | K104: 2547.95 | L104: 2492.1 | M104: 0.11566
A105: 95 | B105: CHALET | C105: 318.95 | D105: 318.08 | E105: 316.12 | F105: 313.28 | G105: 311.32 | H105: 320.92 | I105: 322.88 | J105: 325.72 | K105: 320.05 | L105: 315.25 | M105: 0.02868
A106: 96 | B106: CHAMBLFERT | C106: 147 | D106: 146.80 | E106: 144.60 | F106: 142.20 | G106: 140.00 | H106: 149.20 | I106: 151.40 | J106: 153.80 | K106: 149 | L106: 144.4 | M106: 1.50858
A107: 97 | B107: CHENNPETRO | C107: 165.05 | D107: 165.58 | E107: 163.57 | F107: 162.08 | G107: 160.07 | H107: 167.07 | I107: 169.08 | J107: 170.57 | K107: 167.6 | L107: 164.1 | M107: 2.3515
A108: 98 | B108: CHOLAHLDNG | C108: 477.95 | D108: 474.45 | E108: 465.80 | F108: 453.65 | G108: 445.00 | H108: 486.60 | I108: 495.25 | J108: 507.40 | K108: 483.1 | L108: 462.3 | M108: 0.32367
A109: 99 | B109: CHOLAFIN | C109: 296.2 | D109: 293.08 | E109: 288.17 | F109: 280.13 | G109: 275.22 | H109: 301.12 | I109: 306.03 | J109: 314.07 | K109: 298 | L109: 285.05 | M109: 16.68659
A110: 100 | B110: CIPLA | C110: 423.35 | D110: 419.28 | E110: 411.57 | F110: 399.78 | G110: 392.07 | H110: 431.07 | I110: 438.78 | J110: 450.57 | K110: 427 | L110: 407.5 | M110: 41.1769
A111: 101 | B111: CUB | C111: 222.45 | D111: 221.90 | E111: 219.55 | F111: 216.65 | G111: 214.30 | H111: 224.80 | I111: 227.15 | J111: 230.05 | K111: 224.25 | L111: 219 | M111: 3.10301
A112: 102 | B112: COALINDIA | C112: 185.35 | D112: 185.02 | E112: 183.33 | F112: 181.32 | G112: 179.63 | H112: 187.03 | I112: 188.72 | J112: 190.73 | K112: 186.7 | L112: 183 | M112: 58.08768
A113: 103 | B113: COCHINSHIP | C113: 336.55 | D113: 335.17 | E113: 331.43 | F113: 326.32 | G113: 322.58 | H113: 340.28 | I113: 344.02 | J113: 349.13 | K113: 338.9 | L113: 330.05 | M113: 0.4234
A114: 104 | B114: COFFEEDAY | C114: 43.7 | D114: 43.98 | E114: 42.47 | F114: 41.23 | G114: 39.72 | H114: 45.22 | I114: 46.73 | J114: 47.97 | K114: 45.5 | L114: 42.75 | M114: 6.37955
A115: 105 | B115: COLPAL | C115: 1498.7 | D115: 1486.67 | E115: 1469.43 | F115: 1440.17 | G115: 1422.93 | H115: 1515.93 | I115: 1533.17 | J115: 1562.43 | K115: 1503.9 | L115: 1457.4 | M115: 4.97854
A116: 106 | B116: CONCOR | C116: 571 | D116: 570.92 | E116: 562.33 | F116: 553.67 | G116: 545.08 | H116: 579.58 | I116: 588.17 | J116: 596.83 | K116: 579.5 | L116: 562.25 | M116: 27.70455
A117: 107 | B117: COROMANDEL | C117: 403.85 | D117: 405.10 | E117: 399.30 | F117: 394.75 | G117: 388.95 | H117: 409.65 | I117: 415.45 | J117: 420.00 | K117: 410.9 | L117: 400.55 | M117: 1.17727
A118: 108 | B118: CORPBANK | C118: 14.15 | D118: 14.20 | E118: 14.00 | F118: 13.85 | G118: 13.65 | H118: 14.35 | I118: 14.55 | J118: 14.70 | K118: 14.4 | L118: 14.05 | M118: 1.58429
A119: 109 | B119: COX&KINGS | C119: 3.05 | D119: 3.05 | E119: 3.05 | F119: 3.05 | G119: 3.05 | H119: 3.05 | I119: 3.05 | J119: 3.05 | K119: 3.05 | L119: 3.05 | M119: 1.38191
A120: 110 | B120: CREDITACC | C120: 670.65 | D120: 665.20 | E120: 653.50 | F120: 636.35 | G120: 624.65 | H120: 682.35 | I120: 694.05 | J120: 711.20 | K120: 676.9 | L120: 648.05 | M120: 4.33705
A121: 111 | B121: CROMPTON | C121: 259.6 | D121: 258.07 | E121: 253.63 | F121: 247.67 | G121: 243.23 | H121: 264.03 | I121: 268.47 | J121: 274.43 | K121: 262.5 | L121: 252.1 | M121: 8.74901
A122: 112 | B122: CUMMINSIND | C122: 568.4 | D122: 569.38 | E122: 560.52 | F122: 552.63 | G122: 543.77 | H122: 577.27 | I122: 586.13 | J122: 594.02 | K122: 578.25 | L122: 561.5 | M122: 9.87965
A123: 113 | B123: CYIENT | C123: 447.35 | D123: 449.15 | E123: 443.60 | F123: 439.85 | G123: 434.30 | H123: 452.90 | I123: 458.45 | J123: 462.20 | K123: 454.7 | L123: 445.4 | M123: 0.66229
A124: 114 | B124: DBCORP | C124: 141.65 | D124: 143.47 | E124: 138.23 | F124: 134.82 | G124: 129.58 | H124: 146.88 | I124: 152.12 | J124: 155.53 | K124: 148.7 | L124: 140.05 | M124: 0.25075
A125: 115 | B125: DCBBANK | C125: 184.2 | D125: 181.68 | E125: 178.47 | F125: 172.73 | G125: 169.52 | H125: 187.42 | I125: 190.63 | J125: 196.37 | K125: 184.9 | L125: 175.95 | M125: 4.56715
A126: 116 | B126: DCMSHRIRAM | C126: 387.75 | D126: 386.38 | E126: 378.37 | F126: 368.98 | G126: 360.97 | H126: 395.77 | I126: 403.78 | J126: 413.17 | K126: 394.4 | L126: 377 | M126: 0.66326
A127: 117 | B127: DLF | C127: 147.75 | D127: 145.28 | E127: 140.82 | F127: 133.88 | G127: 129.42 | H127: 152.22 | I127: 156.68 | J127: 163.62 | K127: 149.75 | L127: 138.35 | M127: 155.40451
A128: 118 | B128: DABUR | C128: 443.8 | D128: 440.27 | E128: 434.78 | F128: 425.77 | G128: 420.28 | H128: 449.28 | I128: 454.77 | J128: 463.78 | K128: 445.75 | L128: 431.25 | M128: 14.88325
A129: 119 | B129: DALBHARAT | C129: 771.5 | D129: 773.68 | E129: 761.42 | F129: 751.33 | G129: 739.07 | H129: 783.77 | I129: 796.03 | J129: 806.12 | K129: 785.95 | L129: 763.6 | M129: 0.32761
A130: 120 | B130: DEEPAKNTR | C130: 294.25 | D130: 291.77 | E130: 288.53 | F130: 282.82 | G130: 279.58 | H130: 297.48 | I130: 300.72 | J130: 306.43 | K130: 295 | L130: 286.05 | M130: 2.83035
A131: 121 | B131: DELTACORP | C131: 169.45 | D131: 166.23 | E131: 161.47 | F131: 153.48 | G131: 148.72 | H131: 174.22 | I131: 178.98 | J131: 186.97 | K131: 171 | L131: 158.25 | M131: 16.62472
A132: 122 | B132: DEN | C132: 49.05 | D132: 48.83 | E132: 47.42 | F132: 45.78 | G132: 44.37 | H132: 50.47 | I132: 51.88 | J132: 53.52 | K132: 50.25 | L132: 47.2 | M132: 0.32662
A133: 123 | B133: DHFL | C133: 26.1 | D133: 26.87 | E133: 25.33 | F133: 24.57 | G133: 23.03 | H133: 27.63 | I133: 29.17 | J133: 29.93 | K133: 28.4 | L133: 26.1 | M133: 52.72846
A134: 124 | B134: DBL | C134: 372.8 | D134: 375.90 | E134: 367.05 | F134: 361.30 | G134: 352.45 | H134: 381.65 | I134: 390.50 | J134: 396.25 | K134: 384.75 | L134: 370.15 | M134: 1.42405
A135: 125 | B135: DISHTV | C135: 18.4 | D135: 17.93 | E135: 17.07 | F135: 15.73 | G135: 14.87 | H135: 19.27 | I135: 20.13 | J135: 21.47 | K135: 18.8 | L135: 16.6 | M135: 351.00536
A136: 126 | B136: DCAL | C136: 156.4 | D136: 157.87 | E136: 150.88 | F136: 145.37 | G136: 138.38 | H136: 163.38 | I136: 170.37 | J136: 175.88 | K136: 164.85 | L136: 152.35 | M136: 0.57809
A137: 127 | B137: DIVISLAB | C137: 1650.6 | D137: 1642.27 | E137: 1629.53 | F137: 1608.47 | G137: 1595.73 | H137: 1663.33 | I137: 1676.07 | J137: 1697.13 | K137: 1655 | L137: 1621.2 | M137: 2.48324
A138: 128 | B138: DIXON | C138: 3000.85 | D138: 2961.42 | E138: 2887.83 | F138: 2774.82 | G138: 2701.23 | H138: 3074.43 | I138: 3148.02 | J138: 3261.03 | K138: 3035 | L138: 2848.4 | M138: 0.11173
A139: 129 | B139: LALPATHLAB | C139: 1320.2 | D139: 1326.12 | E139: 1304.08 | F139: 1287.97 | G139: 1265.93 | H139: 1342.23 | I139: 1364.27 | J139: 1380.38 | K139: 1348.15 | L139: 1310 | M139: 0.56471
A140: 130 | B140: DRREDDY | C140: 2663.4 | D140: 2646.57 | E140: 2617.13 | F140: 2570.87 | G140: 2541.43 | H140: 2692.83 | I140: 2722.27 | J140: 2768.53 | K140: 2676 | L140: 2600.3 | M140: 4.66444
A141: 131 | B141: EIDPARRY | C141: 155 | D141: 153.98 | E141: 151.47 | F141: 147.93 | G141: 145.42 | H141: 157.52 | I141: 160.03 | J141: 163.57 | K141: 156.5 | L141: 150.45 | M141: 0.44541
A142: 132 | B142: EIHOTEL | C142: 167.8 | D142: 167.60 | E142: 165.85 | F142: 163.90 | G142: 162.15 | H142: 169.55 | I142: 171.30 | J142: 173.25 | K142: 169.35 | L142: 165.65 | M142: 0.2822
A143: 133 | B143: EDELWEISS | C143: 72.95 | D143: 74.55 | E143: 70.60 | F143: 68.25 | G143: 64.30 | H143: 76.90 | I143: 80.85 | J143: 83.20 | K143: 78.5 | L143: 72.2 | M143: 109.54146
A144: 134 | B144: EICHERMOT | C144: 18239.35 | D144: 18124.15 | E144: 17948.30 | F144: 17657.25 | G144: 17481.40 | H144: 18415.20 | I144: 18591.05 | J144: 18882.10 | K144: 18300 | L144: 17833.1 | M144: 1.11285
A145: 135 | B145: ELGIEQUIP | C145: 275.6 | D145: 275.15 | E145: 272.45 | F145: 269.30 | G145: 266.60 | H145: 278.30 | I145: 281.00 | J145: 284.15 | K145: 277.85 | L145: 272 | M145: 0.04109
A146: 136 | B146: EMAMILTD | C146: 299.75 | D146: 299.42 | E146: 297.68 | F146: 295.62 | G146: 293.88 | H146: 301.48 | I146: 303.22 | J146: 305.28 | K146: 301.15 | L146: 297.35 | M146: 7.64542
A147: 137 | B147: ENDURANCE | C147: 971.1 | D147: 967.57 | E147: 955.63 | F147: 940.17 | G147: 928.23 | H147: 983.03 | I147: 994.97 | J147: 1010.43 | K147: 979.5 | L147: 952.1 | M147: 0.08011
A148: 138 | B148: ENGINERSIN | C148: 109 | D148: 108.38 | E148: 106.82 | F148: 104.63 | G148: 103.07 | H148: 110.57 | I148: 112.13 | J148: 114.32 | K148: 109.95 | L148: 106.2 | M148: 17.31705
A149: 139 | B149: EQUITAS | C149: 100.85 | D149: 99.90 | E149: 98.30 | F149: 95.75 | G149: 94.15 | H149: 102.45 | I149: 104.05 | J149: 106.60 | K149: 101.5 | L149: 97.35 | M149: 35.77997
A150: 140 | B150: ERIS | C150: 422.6 | D150: 423.27 | E150: 417.58 | F150: 412.57 | G150: 406.88 | H150: 428.28 | I150: 433.97 | J150: 438.98 | K150: 428.95 | L150: 418.25 | M150: 0.09613
A151: 141 | B151: ESCORTS | C151: 608 | D151: 600.72 | E151: 588.78 | F151: 569.57 | G151: 557.63 | H151: 619.93 | I151: 631.87 | J151: 651.08 | K151: 612.65 | L151: 581.5 | M151: 41.26707
A152: 142 | B152: ESSELPACK | C152: 116.05 | D152: 115.68 | E152: 114.37 | F152: 112.68 | G152: 111.37 | H152: 117.37 | I152: 118.68 | J152: 120.37 | K152: 117 | L152: 114 | M152: 0.39441
A153: 143 | B153: EXIDEIND | C153: 190.8 | D153: 188.98 | E153: 186.17 | F153: 181.53 | G153: 178.72 | H153: 193.62 | I153: 196.43 | J153: 201.07 | K153: 191.8 | L153: 184.35 | M153: 16.82602
A154: 144 | B154: FDC | C154: 167.05 | D154: 167.27 | E154: 165.58 | F154: 164.12 | G154: 162.43 | H154: 168.73 | I154: 170.42 | J154: 171.88 | K154: 168.95 | L154: 165.8 | M154: 1.23162
A155: 145 | B155: FEDERALBNK | C155: 85.9 | D155: 85.45 | E155: 84.45 | F155: 83.00 | G155: 82.00 | H155: 86.90 | I155: 87.90 | J155: 89.35 | K155: 86.45 | L155: 84 | M155: 127.13788
A156: 146 | B156: FMGOETZE | C156: 533.8 | D156: 532.93 | E156: 530.87 | F156: 527.93 | G156: 525.87 | H156: 535.87 | I156: 537.93 | J156: 540.87 | K156: 535 | L156: 530 | M156: 0.04491
A157: 147 | B157: FINEORG | C157: 1719.25 | D157: 1711.68 | E157: 1678.47 | F157: 1637.68 | G157: 1604.47 | H157: 1752.47 | I157: 1785.68 | J157: 1826.47 | K157: 1744.9 | L157: 1670.9 | M157: 0.0414
A158: 148 | B158: FINCABLES | C158: 359.9 | D158: 361.97 | E158: 355.93 | F158: 351.97 | G158: 345.93 | H158: 365.93 | I158: 371.97 | J158: 375.93 | K158: 368 | L158: 358 | M158: 1.39344
A159: 149 | B159: FINPIPE | C159: 582.9 | D159: 578.97 | E159: 573.93 | F159: 564.97 | G159: 559.93 | H159: 587.93 | I159: 592.97 | J159: 601.93 | K159: 584 | L159: 570 | M159: 0.1795
A160: 150 | B160: FSL | C160: 46.55 | D160: 46.35 | E160: 45.85 | F160: 45.15 | G160: 44.65 | H160: 47.05 | I160: 47.55 | J160: 48.25 | K160: 46.85 | L160: 45.65 | M160: 15.2994
A161: 151 | B161: FORTIS | C161: 140.25 | D161: 139.90 | E161: 138.50 | F161: 136.75 | G161: 135.35 | H161: 141.65 | I161: 143.05 | J161: 144.80 | K161: 141.3 | L161: 138.15 | M161: 8.16356
A162: 152 | B162: FCONSUMER | C162: 23.25 | D162: 23.42 | E162: 22.43 | F162: 21.62 | G162: 20.63 | H162: 24.23 | I162: 25.22 | J162: 26.03 | K162: 24.4 | L162: 22.6 | M162: 14.90282
A163: 153 | B163: FLFL | C163: 411.3 | D163: 413.42 | E163: 404.88 | F163: 398.47 | G163: 389.93 | H163: 419.83 | I163: 428.37 | J163: 434.78 | K163: 421.95 | L163: 407 | M163: 0.15451
A164: 154 | B164: FRETAIL | C164: 374.55 | D164: 375.78 | E164: 370.87 | F164: 367.18 | G164: 362.27 | H164: 379.47 | I164: 384.38 | J164: 388.07 | K164: 380.7 | L164: 372.1 | M164: 2.83078
A165: 155 | B165: GAIL | C165: 132.1 | D165: 131.05 | E165: 129.45 | F165: 126.80 | G165: 125.20 | H165: 133.70 | I165: 135.30 | J165: 137.95 | K165: 132.65 | L165: 128.4 | M165: 75.00511
A166: 156 | B166: GEPIL | C166: 740 | D166: 741.88 | E166: 728.12 | F166: 716.23 | G166: 702.47 | H166: 753.77 | I166: 767.53 | J166: 779.42 | K166: 755.65 | L166: 730 | M166: 0.14213
A167: 157 | B167: GET&D | C167: 173.2 | D167: 172.83 | E167: 167.97 | F167: 162.73 | G167: 157.87 | H167: 178.07 | I167: 182.93 | J167: 188.17 | K167: 177.7 | L167: 167.6 | M167: 0.18011
A168: 158 | B168: GHCL | C168: 210.3 | D168: 208.82 | E168: 205.38 | F168: 200.47 | G168: 197.03 | H168: 213.73 | I168: 217.17 | J168: 222.08 | K168: 212.25 | L168: 203.9 | M168: 0.39968
A169: 159 | B169: GMRINFRA | C169: 17.3 | D169: 17.03 | E169: 16.67 | F169: 16.03 | G169: 15.67 | H169: 17.67 | I169: 18.03 | J169: 18.67 | K169: 17.4 | L169: 16.4 | M169: 189.07912
A170: 160 | B170: GALAXYSURF | C170: 1476.25 | D170: 1470.45 | E170: 1450.95 | F170: 1425.65 | G170: 1406.15 | H170: 1495.75 | I170: 1515.25 | J170: 1540.55 | K170: 1489.95 | L170: 1445.15 | M170: 0.05721
A171: 161 | B171: GARFIBRES | C171: 1179.5 | D171: 1179.85 | E171: 1169.65 | F171: 1159.80 | G171: 1149.60 | H171: 1189.70 | I171: 1199.90 | J171: 1209.75 | K171: 1190.05 | L171: 1170 | M171: 0.06305
A172: 162 | B172: GAYAPROJ | C172: 106.35 | D172: 107.13 | E172: 104.37 | F172: 102.38 | G172: 99.62 | H172: 109.12 | I172: 111.88 | J172: 113.87 | K172: 109.9 | L172: 105.15 | M172: 0.71263
A173: 163 | B173: GICRE | C173: 214.55 | D173: 214.72 | E173: 209.38 | F173: 204.22 | G173: 198.88 | H173: 219.88 | I173: 225.22 | J173: 230.38 | K173: 220.05 | L173: 209.55 | M173: 0.63659
A174: 164 | B174: GILLETTE | C174: 7038.9 | D174: 7037.70 | E174: 7001.20 | F174: 6963.50 | G174: 6927.00 | H174: 7075.40 | I174: 7111.90 | J174: 7149.60 | K174: 7074.2 | L174: 7000 | M174: 0.06053
A175: 165 | B175: GLAXO | C175: 1359.35 | D175: 1353.12 | E175: 1341.23 | F175: 1323.12 | G175: 1311.23 | H175: 1371.23 | I175: 1383.12 | J175: 1401.23 | K175: 1365 | L175: 1335 | M175: 0.47967
A176: 166 | B176: GLENMARK | C176: 290.85 | D176: 288.30 | E176: 283.35 | F176: 275.85 | G176: 270.90 | H176: 295.80 | I176: 300.75 | J176: 308.25 | K176: 293.25 | L176: 280.8 | M176: 27.1854
A177: 167 | B177: GODFRYPHLP | C177: 970.7 | D177: 961.57 | E177: 935.13 | F177: 899.57 | G177: 873.13 | H177: 997.13 | I177: 1023.57 | J177: 1059.13 | K177: 988 | L177: 926 | M177: 0.98716
A178: 168 | B178: GODREJAGRO | C178: 477.25 | D178: 475.07 | E178: 470.13 | F178: 463.02 | G178: 458.08 | H178: 482.18 | I178: 487.12 | J178: 494.23 | K178: 480 | L178: 467.95 | M178: 0.29387
A179: 169 | B179: GODREJCP | C179: 673 | D179: 668.98 | E179: 662.02 | F179: 651.03 | G179: 644.07 | H179: 679.97 | I179: 686.93 | J179: 697.92 | K179: 675.95 | L179: 658 | M179: 10.25701
A180: 170 | B180: GODREJIND | C180: 383.8 | D180: 384.18 | E180: 380.47 | F180: 377.13 | G180: 373.42 | H180: 387.52 | I180: 391.23 | J180: 394.57 | K180: 387.9 | L180: 380.85 | M180: 0.7619
A181: 171 | B181: GODREJPROP | C181: 995.25 | D181: 998.08 | E181: 976.17 | F181: 957.08 | G181: 935.17 | H181: 1017.17 | I181: 1039.08 | J181: 1058.17 | K181: 1020 | L181: 979 | M181: 1.27845
A182: 172 | B182: GRANULES | C182: 101.8 | D182: 102.77 | E182: 100.43 | F182: 99.07 | G182: 96.73 | H182: 104.13 | I182: 106.47 | J182: 107.83 | K182: 105.1 | L182: 101.4 | M182: 3.08826
A183: 173 | B183: GRAPHITE | C183: 271.9 | D183: 268.93 | E183: 258.07 | F183: 244.23 | G183: 233.37 | H183: 282.77 | I183: 293.63 | J183: 307.47 | K183: 279.8 | L183: 255.1 | M183: 21.65493
A184: 174 | B184: GRASIM | C184: 670.4 | D184: 663.73 | E184: 649.57 | F184: 628.73 | G184: 614.57 | H184: 684.57 | I184: 698.73 | J184: 719.57 | K184: 677.9 | L184: 642.9 | M184: 23.86332
A185: 175 | B185: GESHIP | C185: 292.85 | D185: 288.93 | E185: 282.92 | F185: 272.98 | G185: 266.97 | H185: 298.87 | I185: 304.88 | J185: 314.82 | K185: 294.95 | L185: 279 | M185: 0.42367
A186: 176 | B186: GREAVESCOT | C186: 136.85 | D186: 137.37 | E186: 134.78 | F186: 132.72 | G186: 130.13 | H186: 139.43 | I186: 142.02 | J186: 144.08 | K186: 139.95 | L186: 135.3 | M186: 1.75401
A187: 177 | B187: GRINDWELL | C187: 597.35 | D187: 597.25 | E187: 592.10 | F187: 586.85 | G187: 581.70 | H187: 602.50 | I187: 607.65 | J187: 612.90 | K187: 602.4 | L187: 592 | M187: 0.10737
A188: 178 | B188: GUJALKALI | C188: 407.85 | D188: 410.12 | E188: 396.73 | F188: 385.62 | G188: 372.23 | H188: 421.23 | I188: 434.62 | J188: 445.73 | K188: 423.5 | L188: 399 | M188: 0.53146
A189: 179 | B189: GUJGASLTD | C189: 175 | D189: 175.63 | E189: 173.27 | F189: 171.53 | G189: 169.17 | H189: 177.37 | I189: 179.73 | J189: 181.47 | K189: 178 | L189: 173.9 | M189: 5.04974
A190: 180 | B190: GMDCLTD | C190: 58.1 | D190: 58.23 | E190: 57.62 | F190: 57.13 | G190: 56.52 | H190: 58.72 | I190: 59.33 | J190: 59.82 | K190: 58.85 | L190: 57.75 | M190: 1.40098
A191: 181 | B191: GNFC | C191: 198.95 | D191: 196.23 | E191: 192.77 | F191: 186.58 | G191: 183.12 | H191: 202.42 | I191: 205.88 | J191: 212.07 | K191: 199.7 | L191: 190.05 | M191: 1.57851
A192: 182 | B192: GPPL | C192: 81.25 | D192: 81.45 | E192: 80.00 | F192: 78.75 | G192: 77.30 | H192: 82.70 | I192: 84.15 | J192: 85.40 | K192: 82.9 | L192: 80.2 | M192: 0.80603
A193: 183 | B193: GSFC | C193: 75.05 | D193: 74.33 | E193: 73.22 | F193: 71.38 | G193: 70.27 | H193: 76.17 | I193: 77.28 | J193: 79.12 | K193: 75.45 | L193: 72.5 | M193: 3.05061
A194: 184 | B194: GSPL | C194: 205.95 | D194: 205.68 | E194: 202.37 | F194: 198.78 | G194: 195.47 | H194: 209.27 | I194: 212.58 | J194: 216.17 | K194: 209 | L194: 202.1 | M194: 2.39596
A195: 185 | B195: GULFOILLUB | C195: 856.6 | D195: 853.45 | E195: 846.90 | F195: 837.20 | G195: 830.65 | H195: 863.15 | I195: 869.70 | J195: 879.40 | K195: 860 | L195: 843.75 | M195: 0.02035
A196: 186 | B196: HEG | C196: 912.7 | D196: 900.82 | E196: 869.88 | F196: 827.07 | G196: 796.13 | H196: 943.63 | I196: 974.57 | J196: 1017.38 | K196: 931.75 | L196: 858 | M196: 7.90161
A197: 187 | B197: HCLTECH | C197: 1051.1 | D197: 1055.07 | E197: 1036.18 | F197: 1021.27 | G197: 1002.38 | H197: 1069.98 | I197: 1088.87 | J197: 1103.78 | K197: 1073.95 | L197: 1040.15 | M197: 18.7527
A198: 188 | B198: HDFCAMC | C198: 2708.35 | D198: 2730.55 | E198: 2662.90 | F198: 2617.45 | G198: 2549.80 | H198: 2776.00 | I198: 2843.65 | J198: 2889.10 | K198: 2798.2 | L198: 2685.1 | M198: 5.15266
A199: 189 | B199: HDFCBANK | C199: 1228.15 | D199: 1216.02 | E199: 1202.13 | F199: 1176.12 | G199: 1162.23 | H199: 1242.03 | I199: 1255.92 | J199: 1281.93 | K199: 1229.9 | L199: 1190 | M199: 87.13635
A200: 190 | B200: HDFCLIFE | C200: 580.5 | D200: 580.32 | E200: 573.88 | F200: 567.27 | G200: 560.83 | H200: 586.93 | I200: 593.37 | J200: 599.98 | K200: 586.75 | L200: 573.7 | M200: 15.79192
A201: 191 | B201: HATHWAY | C201: 19.2 | D201: 19.23 | E201: 18.67 | F201: 18.13 | G201: 17.57 | H201: 19.77 | I201: 20.33 | J201: 20.87 | K201: 19.8 | L201: 18.7 | M201: 3.90235
A202: 192 | B202: HATSUN | C202: 624.25 | D202: 625.55 | E202: 621.15 | F202: 618.05 | G202: 613.65 | H202: 628.65 | I202: 633.05 | J202: 636.15 | K202: 629.95 | L202: 622.45 | M202: 0.03044
A203: 193 | B203: HAVELLS | C203: 671.45 | D203: 667.70 | E203: 659.40 | F203: 647.35 | G203: 639.05 | H203: 679.75 | I203: 688.05 | J203: 700.10 | K203: 676 | L203: 655.65 | M203: 7.85908
A204: 194 | B204: HEIDELBERG | C204: 185 | D204: 186.33 | E204: 182.67 | F204: 180.33 | G204: 176.67 | H204: 188.67 | I204: 192.33 | J204: 194.67 | K204: 190 | L204: 184 | M204: 3.07404
A205: 195 | B205: HERITGFOOD | C205: 352.95 | D205: 355.10 | E205: 347.85 | F205: 342.75 | G205: 335.50 | H205: 360.20 | I205: 367.45 | J205: 372.55 | K205: 362.35 | L205: 350 | M205: 0.46744
A206: 196 | B206: HEROMOTOCO | C206: 2604.35 | D206: 2625.78 | E206: 2561.57 | F206: 2518.78 | G206: 2454.57 | H206: 2668.57 | I206: 2732.78 | J206: 2775.57 | K206: 2690 | L206: 2583 | M206: 10.65595
... 320 more rows

Sheet Bulk Deals
E6: Back To Main Page
A7: Subject : | B7: BULK DEAL | D7: =Main!B10 -> 2019-10-10
A9: Date | B9: Scrip code | C9: Scrip Name | D9: Client Name | E9: Buy / Sell | F9: Quantity Traded | G9: Trade Price / Wt.Avg.trade price | H9: Exchange
A10: 2019-10-09 | B10: 542580 | C10: AARTECH | D10: SANTOSH KUMAR PANDEY | E10: BUY | F10: 44,000 | G10: 35.88 | H10: BSE
A11: 2019-10-09 | B11: 542580 | C11: AARTECH | D11: NARESHKUMAR JAYANTIBHAI PRAJAPATI | E11: SELL | F11: 44,000 | G11: 35.88 | H11: BSE
A12: 2019-10-09 | B12: 511463 | C12: ALEXANDER | D12: NITINKUMAR GOVINDBHAI SALVE | E12: BUY | F12: 48,355 | G12: 20.87 | H12: BSE
A13: 2019-10-09 | B13: 511463 | C13: ALEXANDER | D13: NITINKUMAR GOVINDBHAI SALVE | E13: SELL | F13: 50,000 | G13: 19.85 | H13: BSE
A14: 2019-10-09 | B14: 542721 | C14: ARL | D14: SAIANAND COMMERCIAL LIMITED | E14: BUY | F14: 80,000 | G14: 33 | H14: BSE
A15: 2019-10-09 | B15: 542721 | C15: ARL | D15: SIMPLEX TRADING & AGENCIES LTD | E15: BUY | F15: 80,000 | G15: 33 | H15: BSE
A16: 2019-10-09 | B16: 542721 | C16: ARL | D16: BHANSALI MAFATLAL KALIDAS(HUF) | E16: SELL | F16: 160,000 | G16: 33 | H16: BSE
A17: 2019-10-09 | B17: 542057 | C17: BCPL | D17: NEWEDGE VINIMAY PRIVATE LIMITED | E17: SELL | F17: 100,000 | G17: 37.80 | H17: BSE
A18: 2019-10-09 | B18: 542057 | C18: BCPL | D18: SHERWOOD SECURITIES PVT LTD | E18: BUY | F18: 100,000 | G18: 37.80 | H18: BSE
A19: 2019-10-09 | B19: 532386 | C19: CALSOFT | D19: ARVIND SHANTILAL SHAH | E19: BUY | F19: 70,001 | G19: 9.54 | H19: BSE
A20: 2019-10-09 | B20: 542668 | C20: EVANS | D20: IVOR DESOUZA | E20: BUY | F20: 8,000 | G20: 209.49 | H20: BSE
A21: 2019-10-09 | B21: 532379 | C21: FIRSTOBJ | D21: GAURAVHARSHADPANDYA | E21: SELL | F21: 79,500 | G21: 6.40 | H21: BSE
A22: 2019-10-09 | B22: 542802 | C22: GALACTICO | D22: ASHUTOSH KARWA | E22: BUY | F22: 48,000 | G22: 23.05 | H22: BSE
A23: 2019-10-09 | B23: 542771 | C23: NOVATEOR | D23: ABHISHEK BHIKHABHAI PATEL | E23: BUY | F23: 30,000 | G23: 40.57 | H23: BSE
A24: 2019-10-09 | B24: 542771 | C24: NOVATEOR | D24: SAGAR RAJESHBHAI JHAVERI | E24: BUY | F24: 48,000 | G24: 40.00 | H24: BSE
A25: 2019-10-09 | B25: 542771 | C25: NOVATEOR | D25: ABHISHEK BHIKHABHAI PATEL | E25: SELL | F25: 6,000 | G25: 40.55 | H25: BSE
A26: 2019-10-09 | B26: 542771 | C26: NOVATEOR | D26: SAGAR RAJESHBHAI JHAVERI | E26: SELL | F26: 18,000 | G26: 41.08 | H26: BSE
A27: 2019-10-09 | B27: 512217 | C27: PRISMMEDI | D27: MANISH NITIN THAKUR | E27: BUY | F27: 36,838 | G27: 23.61 | H27: BSE
A28: 2019-10-09 | B28: 512217 | C28: PRISMMEDI | D28: MANISH NITIN THAKUR | E28: SELL | F28: 7,700 | G28: 22.84 | H28: BSE
A29: 2019-10-09 | B29: 540796 | C29: RATNABHUMI | D29: ARYAMAN BROKING LIMITED | E29: SELL | F29: 110,000 | G29: 60.07 | H29: BSE
A30: 2019-10-09 | B30: 542725 | C30: SBC | D30: SANDEEP KUMAR SRIVASTAVA | E30: BUY | F30: 6,000 | G30: 24.7 | H30: BSE
A31: 2019-10-09 | B31: 542725 | C31: SBC | D31: SANDEEP KUMAR SRIVASTAVA | E31: SELL | F31: 54,000 | G31: 24.56 | H31: BSE
A32: 2019-10-09 | B32: 540253 | C32: SNTCL | D32: FASTNER MACHINERY DEALERS PVT LIMITED | E32: SELL | F32: 50,000 | G32: 9.04 | H32: BSE
A33: 2019-10-09 | B33: 540253 | C33: SNTCL | D33: GHANSHYAM DHANANJAY GAVALI | E33: BUY | F33: 54,000 | G33: 9.04 | H33: BSE
A34: 2019-10-09 | B34: IBULHSGFIN | C34: Indiabulls Hsg Fin Ltd | D34: TOWER RESEARCH CAPITAL MARKETS INDIA PRIVATE LIMITED | E34: BUY | F34: 2,521,517 | G34: 238.84 | H34: NSE
A35: 2019-10-09 | B35: MAHICKRA | C35: Mahickra Chemical Limited | D35: DEVI GEETA | E35: BUY | F35: 48,000 | G35: 82.13 | H35: NSE
A36: 2019-10-09 | B36: MINDPOOL | C36: Mindpool Technologies Ltd | D36: OPALFORCE SOFTWARE INDIA PRIVATE LIMITED | E36: BUY | F36: 28,000 | G36: 19 | H36: NSE
A37: 2019-10-09 | B37: MOTILALOFS | C37: Motilal Oswal Financial S | D37: PASSIONATE INVESTMENT MANAGEMENT PRIVATE LIMITED | E37: BUY | F37: 2,816,632 | G37: 610 | H37: NSE
A38: 2019-10-09 | B38: NCC | C38: NCC Limited | D38: TOWER RESEARCH CAPITAL MARKETS INDIA PRIVATE LIMITED | E38: BUY | F38: 4,932,137 | G38: 49.52 | H38: NSE
A39: 2019-10-09 | B39: NSIL | C39: Nalwa Sons Investments Li | D39: K2 FAMILY PRIVATE TRUST | E39: BUY | F39: 58,009 | G39: 715.43 | H39: NSE
A40: 2019-10-09 | B40: RBLBANK | C40: RBL Bank Limited | D40: TOWER RESEARCH CAPITAL MARKETS INDIA PRIVATE LIMITED | E40: BUY | F40: 2,233,791 | G40: 296.6 | H40: NSE
A41: 2019-10-09 | B41: SHIVAUM | C41: Shiv Aum Steels Limited | D41: VINOD HARILAL JHAVERI | E41: BUY | F41: 168,000 | G41: 45 | H41: NSE
A42: 2019-10-09 | B42: YESBANK | C42: Yes Bank Limited | D42: TOWER RESEARCH CAPITAL MARKETS INDIA PRIVATE LIMITED | E42: BUY | F42: 37,198,118 | G42: 42.74 | H42: NSE
A43: 2019-10-09 | B43: YESBANK | C43: Yes Bank Limited | D43: CROSSLAND TRADING CO | E43: BUY | F43: 14,504,112 | G43: 42.88 | H43: NSE
A44: 2019-10-09 | B44: IBULHSGFIN | C44: Indiabulls Hsg Fin Ltd | D44: TOWER RESEARCH CAPITAL MARKETS INDIA PRIVATE LIMITED | E44: SELL | F44: 2,512,293 | G44: 239.01 | H44: NSE
A45: 2019-10-09 | B45: MAHICKRA | C45: Mahickra Chemical Limited | D45: DEVI GEETA | E45: SELL | F45: 48,000 | G45: 82.96 | H45: NSE
A46: 2019-10-09 | B46: MINDPOOL | C46: Mindpool Technologies Ltd | D46: HEM FINLEASE PVT LTD | E46: SELL | F46: 28,000 | G46: 19 | H46: NSE
A47: 2019-10-09 | B47: MOTILALOFS | C47: Motilal Oswal Financial S | D47: RAAMDEO AGRAWAL | E47: SELL | F47: 1,408,316 | G47: 610 | H47: NSE
A48: 2019-10-09 | B48: MOTILALOFS | C48: Motilal Oswal Financial S | D48: MOTILAL OSWAL | E48: SELL | F48: 1,408,316 | G48: 610 | H48: NSE
A49: 2019-10-09 | B49: NCC | C49: NCC Limited | D49: TOWER RESEARCH CAPITAL MARKETS INDIA PRIVATE LIMITED | E49: SELL | F49: 5,012,827 | G49: 49.76 | H49: NSE
A50: 2019-10-09 | B50: NSIL | C50: Nalwa Sons Investments Li | D50: ANIL ARYA | E50: SELL | F50: 72,667 | G50: 713.9 | H50: NSE
A51: 2019-10-09 | B51: RBLBANK | C51: RBL Bank Limited | D51: TOWER RESEARCH CAPITAL MARKETS INDIA PRIVATE LIMITED | E51: SELL | F51: 2,259,278 | G51: 297.29 | H51: NSE
A52: 2019-10-09 | B52: SHIVAUM | C52: Shiv Aum Steels Limited | D52: SHAH HIRAL AMARKUMAR | E52: SELL | F52: 96,000 | G52: 45 | H52: NSE
A53: 2019-10-09 | B53: YESBANK | C53: Yes Bank Limited | D53: TOWER RESEARCH CAPITAL MARKETS INDIA PRIVATE LIMITED | E53: SELL | F53: 36,312,865 | G53: 42.8 | H53: NSE
A54: 2019-10-09 | B54: YESBANK | C54: Yes Bank Limited | D54: CROSSLAND TRADING CO | E54: SELL | F54: 14,500,181 | G54: 42.92 | H54: NSE

Sheet Call Tracker (Equity & F&O)
M5: Back To Main Page
A6: Retail Research Technical Calls & Fundamental Performance Report for the month of October-2019
M7: =Main!B10 -> 2019-10-10
B8: Positional Call
A9: Sr.no | B9: Date | D9: Company | E9: Rec | F9: Rec Price | G9: Stop Loss*** | H9: Call Closed At | I9: Target | J9: Remark | K9: Profit / Loss per Share | L9: Gain / Loss % | M9: Status | N9: Closed Date | O9: NSE Closed Price
A10: 1 | B10: 2019-08-30 | D10: BIOCON | E10: Buy{} | F10: 229.5 | G10: 214.3 | H10: 237 | I10: 255-260 | J10: Part Profit of Rs.7.5/- | K10: =H10-F10 -> 7.5 | L10: =K10/F10 -> 3.27% | M10: Successful | N10: 2019-08-30 | O10: =VLOOKUP(D10,Sheet2!A38:M1677,6,0) -> 233.5 | R10: R
A11: 2 | B11: 2019-09-09 | D11: TORNTPHARM | E11: Sell | F11: 1705 | G11: 1808 | H11: 1618 | I11: 1560-1540 | J11: Profit of Rs.87/- | K11: =F11-H11 -> 87 | L11: =K11/F11 -> 5.10% | M11: Successful | N11: 2019-10-01 | R11: R
A12: 3 | B12: 2019-09-25 | D12: AXISBANK | E12: Buy | F12: 690-700 | G12: 628 | I12: 800-820 | J12: Open | O12: =VLOOKUP(D12,Sheet2!A41:M1680,6,0) -> 686.3 | R12: H
A13: 4 | B13: 2019-09-26 | D13: HDFC | E13: Buy | F13: 2065-2075 | G13: 1940 | I13: 2250-2300 | J13: Open | O13: =VLOOKUP(D13,Sheet2!A42:M1681,6,0) -> 2002 | R13: H
A14: 5 | B14: 2019-09-26 | D14: BANKBARODA | E14: Buy | F14: 96 | G14: 89 | H14: 89.5 | I14: 110-114 | J14: Loss of Rs.6.5/- | K14: =H14-F14 -> -6.5 | L14: =K14/F14 -> -6.77% | M14: UnSuccessful | N14: 2019-10-01 | R14: H
A15: 6 | B15: 2019-09-30 | D15: BPCL | E15: Sell | F15: 475 | G15: 510 | H15: 503 | I15: 420-410 | J15: Loss of Rs.28/- | K15: =F15-H15 -> -28 | L15: -5.89% | M15: UnSuccessful | N15: 2019-10-03 | R15: H
A16: 7 | B16: 2019-10-01 | D16: CUMMINSIND | E16: Buy | F16: 574-579 | G16: 530 | I16: 640-660 | J16: Open | O16: =VLOOKUP(D16,Sheet2!A46:M1685,6,0) -> 568.4 | R16: H
A17: 8 | B17: 2019-10-01 | D17: UPL | E17: Buy | F17: 592-598 | G17: 564 | I17: 650-660 | J17: Open | O17: =VLOOKUP(D17,Sheet2!A47:M1686,6,0) -> 581.7 | R17: R
A18: 9 | B18: 2019-10-03 | D18: HEIDELBERG | E18: Buy | F18: 183 | G18: 169 | H18: 189 | I18: 205-210 | J18: Part Profit of Rs.6/- | K18: =H18-F18 -> 6 | L18: =K18/F18 -> 3.28% | M18: Successful | N18: 2019-10-09 | O18: =VLOOKUP(D18,Sheet2!A48:M1687,6,0) -> 185 | R18: H
A19: 10 | B19: 2019-10-03 | D19: APOLLOHOSP | E19: Buy | F19: 1378.5 | G19: 1286 | H19: 1420 | I19: 1550-1580 | J19: Part Profit of Rs.41.5/- | K19: =H19-F19 -> 41.5 | L19: =K19/F19 -> 3.01% | M19: Successful | N19: 2019-10-04 | O19: =VLOOKUP(D19,Sheet2!A49:M1688,6,0) -> 1425.05 | R19: R
A20: 11 | B20: 2019-10-04 | D20: HDFCAMC | E20: Buy | F20: 2665 | G20: 2537 | H20: 2755 | I20: 2930-2960 | J20: Part Profit of Rs.90/- | K20: =H20-F20 -> 90 | L20: =K20/F20 -> 3.38% | M20: Successful | N20: 2019-10-07 | O20: =VLOOKUP(D20,Sheet2!A50:M1689,6,0) -> 2708.35 | R20: R
A21: 12 | B21: 2019-10-07 | D21: PIDILITIND | E21: Buy | F21: 1365-1370 | G21: 1297 | I21: 1500-1520 | J21: Open | O21: =VLOOKUP(D21,Sheet2!A51:M1690,6,0) -> 1336.55
A22: 13 | B22: 2019-10-07 | D22: AMBUJACEM | E22: Buy | F22: 188-190 | G22: 179 | I22: 205-210 | J22: Open | O22: =VLOOKUP(D22,Sheet2!A52:M1691,6,0) -> 192.35
A23: 14 | B23: 2019-10-09 | D23: ACC | E23: Buy | F23: 1437-1443 | G23: 1345 | I23: 1600-1650 | J23: Open
A26: CLBS = Closing Basis ***
A27: Dividend adjusted <> | F27: Reinitiated $
A28: Part book {} | F28: Revised stoploss #
B30: Momentum Call
A31: Sr.no | B31: Date | D31: Company | E31: Rec | F31: Rec Price | G31: Stop Loss | H31: Call Closed At | I31: Target | J31: Remark | K31: Profit / Loss per Share/Lot | L31: Gain / Loss % | M31: Gain / Loss per Lot | N31: Lot | O31: Status | P31: Closed Date
A32: 1 | B32: 2019-09-24 | D32: AMARAJABAT OCT FUT | E32: Buy | F32: 722 | G32: 703 | H32: 703.5 | I32: 750-760 | J32: Loss of Rs.18.5/- | K32: =H32-F32 -> -18.5 | M32: =N32*K32 -> -12950 | N32: 700 | O32: UnSuccessful | P32: 2019-10-01 | R32: N
A33: 2 | B33: 2019-09-30 | D33: IGL | E33: Sell | F33: 349 | G33: 361 | H33: 342 | I33: 330-325 | J33: Profit of Rs.7/- | K33: =F33-H33 -> 7 | L33: =K33/F33 -> 2.01% | O33: Successful | P33: 2019-10-01 | R33: H
A34: 3 | B34: 2019-09-30 | D34: ENGINERSIN | E34: Sell | F34: 119 | G34: 123.3 | H34: 116.5 | I34: 111-109 | J34: Profit of Rs.2.5/- | K34: =F34-H34 -> 2.5 | L34: =K34/F34 -> 2.10% | O34: Successful | P34: 2019-10-01 | R34: R
A35: 4 | B35: 2019-09-30 | D35: ADANIPORTS | E35: Sell | F35: 412.5 | G35: 425.3 | H35: 406 | I35: 395-390 | J35: Profit of Rs.6.5/- | K35: =F35-H35 -> 6.5 | L35: =K35/F35 -> 1.58% | O35: Successful | P35: 2019-10-01 | R35: H
A36: 5 | B36: 2019-10-01 | D36: HDFC | E36: Buy | F36: 1995 | G36: 1949 | H36: 2026 | I36: 2080-2100 | J36: Profit of Rs.31/- | K36: =H36-F36 -> 31 | L36: =K36/F36 -> 1.55% | O36: Successful | P36: 2019-10-01 | R36: H
A37: 6 | B37: 2019-10-01 | D37: POWERGRID OCT FUT | E37: Buy | F37: 196.75 | G37: 193.5 | H37: 198.75 | I37: 205 | J37: Profit of Rs.2/- | K37: =H37-F37 -> 2 | M37: =N37*K37 -> 8000 | N37: 4000 | O37: Successful | P37: 2019-10-03 | R37: N
A38: 7 | B38: 2019-10-01 | D38: NIFTY OCT FUT | E38: Buy | F38: 11430 | G38: 11340 | H38: 11350 | I38: 11570-11600 | J38: Loss of Rs.80/- | K38: =H38-F38 -> -80 | M38: =N38*K38 -> -6000 | N38: 75 | O38: UnSuccessful | P38: 2019-10-01 | R38: R
A39: 8 | B39: 2019-10-03 | D39: LT | E39: Buy | F39: 1440 | G39: 1390 | H39: 1474 | I39: 1500-1520 | J39: Profit of Rs.34/- | K39: 34 | L39: =K39/F39 -> 2.36% | O39: Successful | P39: 2019-10-03 | R39: H
A40: 9 | B40: 2019-10-03 | D40: TATASTEEL | E40: Buy | F40: 348 | G40: 338 | H40: 335 | I40: 370 | J40: Loss of Rs.13/- | K40: -13 | L40: -3.74% | O40: UnSuccessful | P40: 2019-10-04 | R40: R
A41: 10 | B41: 2019-10-03 | D41: CESC OCT FUT | E41: Buy | F41: 747 | G41: 734.7 | H41: 760.5 | I41: 770 | J41: Profit of Rs.13.5/- | K41: =H41-F41 -> 13.5 | M41: =N41*K41 -> 10800 | N41: 800 | O41: Successful | P41: 2019-10-04 | R41: R
A42: 11 | B42: 2019-10-03 | D42: MFSL OCT FUT | E42: Buy | F42: 417 | G42: 406 | H42: 417 | I42: 435 | J42: Neutral | K42: 0 | M42: 0 | N42: 1200 | O42: Neutral | P42: 2019-10-04 | R42: N
A43: 12 | B43: 2019-10-04 | D43: NIITTECH | E43: Buy | F43: 1355 | G43: 1319 | H43: 1377.5 | I43: 1420-1440 | J43: Profit of Rs.22.5/- | K43: =H43-F43 -> 22.5 | L43: =K43/F43 -> 1.66% | O43: Successful | P43: 2019-10-04 | R43: H
A44: 13 | B44: 2019-10-04 | D44: HINDALCO | E44: Buy | F44: 183-184 | G44: 179 | I44: 192-195 | J44: Open | R44: R
A45: 14 | B45: 2019-10-04 | D45: TATAELXSI OCT FUT | E45: Buy | F45: 686.5 | G45: 666 | H45: 666 | I45: 710-720 | J45: Loss of Rs.20.5/- | K45: =H45-F45 -> -20.5 | M45: =N45*K45 -> -12300 | N45: 600 | O45: UnSuccessful | P45: 2019-10-09 | R45: N
A46: 15 | B46: 2019-10-03 | D46: CESC OCT FUT | E46: Buy | F46: 747 | G46: 734.7 | H46: 734.7 | I46: 770 | J46: Loss of Rs.12.3/- | K46: =H46-F46 -> -12.3 | M46: =N46*K46 -> -9840 | N46: 800 | O46: UnSuccessful | P46: 2019-10-04 | R46: R
A47: 16 | B47: 2019-10-04 | D47: LT | E47: Buy | F47: 1435-1445 | G47: 1390 | I47: 1500-1520 | J47: Open | R47: H
A48: 17 | B48: 2019-10-04 | D48: AMARAJABAT OCT FUT | E48: Buy | F48: 699 | G48: 681 | H48: 681.5 | I48: 730 | J48: Loss of Rs.17.50/- | K48: =H48-F48 -> -17.5 | M48: =N48*K48 -> -12250 | N48: 700 | O48: UnSuccessful | P48: 2019-10-09 | R48: N
A49: 18 | B49: 2019-10-04 | D49: NIFTY OCT FUT | E49: Buy | F49: 11280 | G49: 11175 | H49: 11175 | I49: 11370 | J49: Loss of Rs.105/- | K49: =H49-F49 -> -105 | M49: =N49*K49 -> -7875 | N49: 75 | O49: UnSuccessful | P49: 2019-10-07 | R49: R
A50: 19 | B50: 2019-10-04 | D50: DABUR | E50: Buy | F50: 425.5 | G50: 411.7 | H50: 435.5 | I50: 448-453 | J50: Profit of Rs.10/- | K50: 10 | L50: =K50/F50 -> 2.35% | O50: Successful | P50: 2019-10-09 | R50: R
A51: 20 | B51: 2019-10-07 | D51: M&M OCT FUT | E51: Buy | F51: 558 | G51: 545 | H51: 566 | I51: 580 | J51: Profit of Rs.6/- | K51: =H51-F51 -> 8 | M51: =N51*K51 -> 8000 | N51: 1000 | O51: UnSuccessful | P51: 2019-10-08
A52: 21 | B52: 2019-10-07 | D52: JUBLFOOD OCT FUT | E52: Buy | F52: 1276.5 | G52: 1253 | H52: 1296 | I52: 1320-1330 | J52: Profit of Rs.19.5/- | K52: =H52-F52 -> 19.5 | M52: =N52*K52 -> 9750 | N52: 500 | O52: Successful | P52: 2019-10-07
A53: 22 | B53: 2019-10-07 | D53: VOLTAS OCT FUT | E53: Sell | F53: 666 | G53: 678 | H53: 677 | I53: 650 | J53: Loss of Rs.11/- | K53: 11 | M53: =N53*K53 -> 11000 | N53: 1000 | O53: UnSuccessful | P53: 2019-10-09
A54: 23 | B54: 2019-10-09 | D54: GODREJCP | E54: Buy | F54: 661 | G54: 641.7 | H54: 674 | I54: 690-700 | J54: Profit of Rs.13/- | K54: 13 | L54: =K54/F54 -> 1.97% | O54: Successful | P54: 2019-10-09
A55: 24 | B55: 2019-10-09 | D55: GRASIM OCT FUT | E55: Sell | F55: 666-668 | G55: 685 | I55: 635 | J55: Open
A65: CLBS = Closing Basis ***
A66: Dividend adjusted <> | F66: Reinitiated $
F67: Revised stoploss #
A69: Master Trade High Risk
A70: Sr.no | B70: Date | D70: Company | E70: Rec | F70: Rec Price | G70: Stop Loss | H70: Call Closed At | I70: Target | J70: Remark | K70: Profit / Loss per share | L70: Gain / Loss per Lot | M70: Lot | N70: Status | O70: Closed Date
A71: 1 | B71: 2019-10-01 | D71: HDFC OCT FUT | E71: Buy | F71: 1999 | G71: 1947 | H71: 2022 | I71: 2050 | J71: Profit of Rs.20/- | K71: =H71-F71 -> 23 | L71: =20*M71 -> 10000 | M71: 500 | N71: Successful | O71: 2019-10-04 | R71: H
D72: HDFC 2040 CE OCT | E72: Sell | F72: 52 | H72: 55 | K72: =F72-H72 -> -3 | R72: H
A73: 2 | B73: 2019-10-03 | D73: NIFTY OCT FUT | E73: Buy | F73: 11350 | G73: 11190 | H73: 11425 | I73: 11550 | J73: Profit of Rs.71.5/- | K73: =H73-F73 -> 75 | L73: =71.5*75 -> 5362.5 | M73: 75 | N73: Successful | O73: 2019-10-04 | R73: H
D74: Nifty 11450 CE 10-OCT | E74: Sell | F74: 75 | H74: 78.5 | K74: =F74-H74 -> -3.5 | R74: H
A75: 3 | B75: 2019-10-04 | D75: HDFC OCT FUT | E75: Buy | F75: 2000-2004 | G75: 1947 | I75: 2050 | J75: Open | R75: H
D76: HDFC 2040 CE OCT | E76: Sell | F76: 46-50 | R76: H
A79: Master Trade Medium Risk
A80: Sr.no | B80: Date | D80: Company | E80: Rec | F80: Rec Price | G80: Stop Loss | H80: Call Closed At | I80: Target | J80: Remark | K80: Profit/ Loss per lot | L80: Gain / Loss per Lot | M80: Lot | N80: Status | O80: Closed Date
A95: Techno -Funda (positional)
A96: Sr.no | B96: Date | D96: Company | E96: Rec | F96: Rec Price | G96: Stop Loss*** | H96: Call Closed At | I96: Target | J96: Remark | K96: Profit / Loss per Share | L96: Gain / Loss % | M96: Status | N96: Closed Date | O96: NSE Closed Price
A97: 1 | B97: 2019-08-13 | D97: ITC | E97: Buy | F97: 247 | G97: 228 | H97: 262.5 | I97: 290-300 | J97: Part Profit of Rs.15.5/- | K97: =H97-F97 -> 15.5 | L97: =K97/F97 -> 6.28% | M97: Successful | N97: 2019-10-01 | O97: =VLOOKUP(D97,Sheet2!A131:M1770,6,0) -> 247.1 | R97: H
A101: CLBS = Closing Basis *** | F101: Reinitiated $
A102: Dividend adjusted <> | F102: Revised stoploss #
B107: Investment Idea
A108: Sr.no | B108: Date | D108: Company | E108: Rec | F108: Rec Price | G108: Point of Review | H108: Close Rate | I108: Target | J108: Remark | K108: Profit / Loss per Share | L108: Gain / Loss % | M108: Status | N108: Closed Date
A109: 1 | B109: 2013-11-01 | D109: L&T Finance Holding | E109: Accu | F109: 82.00 | G109: - | H109: 100 | I109: 100.00 | J109: Target Achieved | K109: =H109-F109 -> 18.00 | L109: =K109/F109 -> 21.95% | M109: Successful | N109: 2016-10-14
A110: 2 | B110: 2014-06-04 | D110: Finolex Inds | E110: Buy | F110: 257.00 | G110: - | H110: 300 | I110: 300.00 | J110: Target Achieved | K110: =H110-F110 -> 43.00 | L110: 16.73% | M110: Successful | N110: 2014-07-02
A111: 3 | B111: 2014-07-08 | D111: JK Cement | E111: Buy | F111: 393.00 | G111: - | H111: 468 | I111: 468.00 | J111: Target Achieved | K111: =H111-F111 -> 75.00 | L111: 19.08% | M111: Successful | N111: 2014-08-12
A112: 4 | B112: 2014-08-06 | D112: Finolex Cables | E112: Buy | F112: 205.00 | G112: - | H112: 275 | I112: 250.00 | J112: Target Achieved | K112: 70.00 | L112: 34.15% | M112: Successful | N112: 2014-11-19
A113: 5 | B113: 2014-09-04 | D113: Exide Inds | E113: Buy | F113: 162.00 | G113: - | H113: 190 | I113: 190.00 | J113: Target Achieved | K113: 28.00 | L113: 17.28% | M113: Successful | N113: 2015-01-02
A114: 6 | B114: 2014-09-04 | D114: Deepak Nitrite | E114: Buy | F114: 75.00 | G114: - | H114: 91.5 | I114: 95-100 | J114: Profit of Rs.16.50/- | K114: 16.50 | L114: 22.00% | M114: Successful | N114: 2014-11-11
A115: 7 | B115: 2014-10-01 | D115: Mercks | E115: Buy | F115: 850.00 | G115: - | H115: 982.5 | I115: 1050.00 | J115: Profit of Rs.132.50/- | K115: 132.50 | L115: 15.59% | M115: Successful | N115: 2015-02-04
A116: 8 | B116: 2014-10-01 | D116: Grindwell Norton | E116: Buy | F116: 475.00 | G116: - | H116: 515 | I116: 600.00 | J116: Profit of Rs.40/- | K116: 40.00 | L116: 8.42% | M116: Successful | N116: 2014-10-27
A117: 9 | B117: 2014-10-01 | D117: Snowman Logistics | E117: Buy | F117: 86.00 | G117: - | H117: 99 | I117: 140.00 | J117: Profit of Rs.13.00/- | K117: 13.00 | L117: 15.12% | M117: Successful | N117: 2014-10-27
A118: 10 | B118: 2014-10-14 | D118: Birla Corp | E118: Buy | F118: 496.60 | G118: - | H118: 621 | I118: 580.00 | J118: Target Achieved | K118: 124.40 | L118: 25.05% | M118: Successful | N118: 2016-08-23
A119: 11 | B119: 2014-10-14 | D119: Ultratech Cem | E119: Buy | F119: 2481.90 | G119: - | H119: 2840 | I119: 2870.00 | J119: Profit of Rs.358.10/- | K119: 358.10 | L119: 14.43% | M119: Successful | N119: 2015-01-13
A120: 12 | B120: 2014-10-16 | D120: Sintex Inds | E120: Buy | F120: 84.50 | G120: - | H120: 93 | I120: 110.00 | J120: Profit of Rs.8.50/- | K120: 8.50 | L120: 10.06% | M120: Successful | N120: 2014-10-27
A121: 13 | B121: 2014-10-16 | D121: HSIL | E121: Buy | F121: 401.00 | G121: - | H121: 428 | I121: 450.00 | J121: Profit of Rs.27.00/- | K121: 27.00 | L121: 6.73% | M121: Successful | N121: 2015-01-16
A122: 14 | B122: 2014-10-16 | D122: Eveready Inds | E122: Buy | F122: 101.00 | G122: - | H122: 112 | I122: 120.00 | J122: Profit of Rs.11.00/- | K122: 11.00 | L122: 10.89% | M122: Successful | N122: 2014-10-27
A123: 15 | B123: 2014-11-11 | D123: Pennar Inds | E123: Buy | F123: 59.00 | G123: - | H123: 76 | I123: 76.00 | J123: Target Achieved | K123: 17.00 | L123: 28.81% | M123: Successful | N123: 2017-10-24
A124: 16 | B124: 2014-11-11 | D124: Snowman Logistics | E124: Buy | F124: 99.00 | G124: - | H124: 120 | I124: 120.00 | J124: Profit of Rs.21/- | K124: 21.00 | L124: 21.21% | M124: Successful | N124: 2014-11-17
A125: 17 | B125: 2014-11-13 | D125: Dharamsi Morarji Chem | E125: Buy | F125: 22.00 | G125: - | H125: 33.55 | I125: 32.00 | J125: Profit of Rs 11.55/- | K125: 11.55 | L125: 52.50% | M125: Successful | N125: 2015-07-03
A126: 18 | B126: 2014-12-03 | D126: Tatachem | E126: Buy | F126: 440.00 | G126: - | H126: 520 | I126: 520.00 | J126: Profit of Rs 80.00/- | K126: 80.00 | L126: 18.18% | M126: Successful | N126: 2015-07-23
A127: 19 | B127: 2014-12-03 | D127: Advanta | E127: Buy | F127: 360.00 | G127: - | H127: 427 | I127: 425.00 | J127: Profit of Rs.67.00/- | K127: 67.00 | L127: 18.61% | M127: Successful | N127: 2015-02-23
A128: 20 | B128: 2015-01-08 | D128: GDL | E128: Buy | F128: 360.00 | G128: - | H128: 455 | I128: 420.00 | J128: Profit of Rs.95.00/- | K128: 95.00 | L128: 26.39% | M128: Successful | N128: 2015-01-20
A129: 21 | B129: 2015-01-08 | D129: NRB Bearing | E129: Buy | F129: 130.00 | H129: 175.5 | I129: 165.00 | J129: Profit of Rs 45.50/- | K129: 45.50 | L129: 35.00% | M129: Successful | N129: 2017-12-19
A130: 22 | B130: 2015-02-05 | D130: GSFC | E130: Accu | F130: 98.00 | H130: 120 | I130: 120.00 | J130: Target Achieved | K130: 22.00 | L130: 22.45% | M130: Successful | N130: 2017-01-18
A131: 23 | B131: 2015-02-05 | D131: Sundrmfast | E131: Accu | F131: 196.00 | H131: 262 | I131: 255.00 | J131: Target Achieved | K131: 66.00 | L131: 33.67% | M131: Successful | N131: 2016-08-17
A132: 24 | B132: 2015-03-04 | D132: GPPL | E132: Accu | F132: 235 | H132: 77.00 | I132: 280-285 | J132: Loss of Rs.158/- | K132: -158.00 | L132: -67.23% | M132: Unsuccessful | N132: 2019-02-26
A133: 25 | B133: 2015-03-04 | D133: ORIENTCEM | E133: Accu | F133: 185.00 | H133: 224 | I133: 220-225 | J133: Target Achieved | K133: 39.00 | L133: 21.08% | M133: Successful | N133: 2016-10-04
A134: 26 | B134: 2015-03-27 | D134: PFS | E134: Accu | F134: 49.5 | H134: 15.85 | I134: 67.00 | J134: Loss of Rs.33.65/- | K134: -33.65 | L134: -68% | M134: Unsuccessful | N134: 2019-06-11
A135: 27 | B135: 2015-03-30 | D135: Walchandnagar Ind Ltd | E135: Accu | F135: 183.50 | H135: 219 | I135: 218.00 | J135: Profit of Rs.35.50/- | K135: 35.50 | L135: =K135/F135 -> 19.35% | M135: Successful | N135: 2015-04-09
A136: 28 | B136: 2015-04-20 | D136: Kalpataru Power Transmission Ltd | E136: Accu | F136: =(227+237)/2 -> 232.00 | H136: 298 | I136: 298.00 | J136: Target Achieved | K136: 66.00 | L136: 28.45% | M136: Successful | N136: 2017-03-29
A137: 29 | B137: 2015-05-04 | D137: Mastek Ltd | E137: Buy | F137: 385.00 | H137: =212.5+331 -> 543.5 | I137: 510.00 | J137: Profit of Rs 158.50/- | K137: 158.50 | L137: 41.17% | M137: Successful | N137: 2015-08-19
A138: 30 | B138: 2015-05-04 | D138: Suprajit Eng | E138: Buy | F138: 115.50 | H138: 146 | I138: 142.00 | J138: Profit of Rs 30.50/- | K138: 30.50 | L138: 26.41% | M138: Successful | N138: 2015-07-17
A139: 31 | B139: 2015-05-27 | D139: TCI | E139: Buy | F139: 237.50 | H139: 279.5 | I139: 278.00 | J139: Target Achieved | K139: 42.00 | L139: 17.68% | M139: Successful | N139: 2015-08-06
A140: 32 | B140: 2015-06-19 | D140: HSIL | E140: Accu | F140: 340.00 | H140: 448 | I140: 448.00 | J140: Target Achieved | K140: 108.00 | L140: 31.76% | M140: Successful | N140: 2017-10-10
A141: 33 | B141: 2015-07-06 | D141: Capital First | E141: Accu | F141: 390.00 | H141: 460 | I141: 460.00 | J141: Target Achieved | K141: 70.00 | L141: 17.95% | M141: Successful | N141: 2016-04-18
A142: 34 | B142: 2015-07-10 | D142: Dolphin OffShore | E142: Accu | F142: 122.5 | H142: 61.00 | I142: 172.00 | J142: Loss of Rs.61.50/- | K142: -61.50 | L142: -50.20% | M142: Unsuccessful | N142: 2018-08-21
A143: 35 | B143: 2015-08-03 | D143: Allcargo logistics | E143: Accu | F143: 297.50 | H143: 350 | I143: 360.00 | J143: Profit of Rs 52.50/- | K143: 52.50 | L143: 17.65% | M143: Successful | N143: 2015-08-16
A144: 36 | B144: 2015-08-03 | D144: Camline Fine | E144: Accu | F144: 115.50 | H144: 149 | I144: 140.00 | J144: Profit of Rs 33.50/- | K144: 33.50 | L144: 29.00% | M144: Successful | N144: 2017-01-05
A145: 37 | B145: 2015-09-04 | D145: TCI | E145: Accu | F145: 226.00 | H145: 292 | I145: 292.00 | J145: Target Achieved | K145: 66.00 | L145: 29.20% | M145: Successful | N145: 2015-10-09
A146: 38 | B146: 2015-09-07 | D146: Kalpataru Power Transmission Ltd | E146: Accu | F146: 232.50 | H146: 312.5 | I146: 310.00 | J146: Target Achieved | K146: 80.00 | L146: 34.41% | M146: Successful | N146: 2017-03-29
A147: 39 | B147: 2015-09-21 | D147: LLOYD ELECTRIC & ENG LTD | E147: Accu | F147: 196.50 | H147: 238 | I147: 238.00 | J147: Target Achieved | K147: 41.50 | L147: 21.12% | M147: Successful | N147: 2015-10-14
A148: 40 | B148: 2015-09-24 | D148: L&T Finance Holding | E148: Accu | F148: 65.00 | H148: 82 | I148: 82.00 | J148: Target Achieved | K148: 17.00 | L148: 26.15% | M148: Successful | N148: 2016-07-27
A149: 41 | B149: 2015-10-14 | D149: KEC International ltd | E149: Accu | F149: 144.00 | H149: 182.5 | I149: 181.00 | J149: Target Achieved | K149: 38.50 | L149: 26.74% | M149: Successful | N149: 2017-03-23
A150: 42 | B150: 2015-10-14 | D150: Gruh Finance | E150: Accu | F150: 264.00 | H150: 311 | I150: 311.00 | J150: Target Achieved | K150: 47.00 | L150: 17.80% | M150: Successful | N150: 2016-08-22
A151: 43 | B151: 2015-11-10 | D151: Pidilitind | E151: Buy | F151: 549.50 | H151: 630 | I151: 630.00 | J151: Target Achieved | K151: 80.50 | L151: 14.65% | M151: Successful | N151: 2016-02-19
A152: 44 | B152: 2015-12-04 | D152: Zensar Technology | E152: Accu | F152: 1027.50 | H152: 1315 | I152: 1250.00 | J152: Target Achieved | K152: 287.50 | L152: 27.98% | M152: Successful | N152: 2018-05-24
A153: 45 | B153: 2015-12-29 | D153: Vinati Organics Ltd | E153: Accu | F153: 465.00 | H153: 540 | I153: 540.00 | J153: Target Achieved | K153: 75.00 | L153: 16.13% | M153: Successful | N153: 2016-06-09
A154: 46 | B154: 2016-01-11 | D154: GSFC | E154: Buy | F154: 81.00 | H154: 110 | I154: 110.00 | J154: Target Achieved | K154: 29.00 | L154: 35.80% | M154: Successful | N154: 2017-01-10
A155: 47 | B155: 2016-01-13 | D155: SSWL | E155: Buy | F155: 417.50 | H155: 547 | I155: 535.00 | J155: Target Achieved | K155: 129.50 | L155: 31.02% | M155: Successful | N155: 2016-07-27
A156: 48 | B156: 2016-02-08 | D156: Persistent System Ltd | E156: Accu | F156: 650.00 | H156: 800 | I156: 800.00 | J156: Target Achieved | K156: 150.00 | L156: 23.08% | M156: Successful | N156: 2018-02-23
A157: 49 | B157: 2016-03-04 | D157: UPL | E157: Accu | F157: 437.50 | H157: 504.5 | I157: 522.00 | J157: Profit of Rs.67/- | K157: 67.00 | L157: 15.31% | M157: Successful | N157: 2016-04-20
A158: 50 | B158: 2016-03-09 | D158: Ashoka Buildcon Ltd | E158: Accu | F158: 189.50 | H158: 218 | I158: 218.00 | J158: Target Achieved | K158: 28.50 | L158: 15.04% | M158: Successful | N158: 2017-10-26
A159: 51 | B159: 2016-04-11 | D159: PTC INDIA FIN SERV LTD | E159: Accu | F159: 36.5 | H159: 15.85 | I159: 60.00 | J159: Loss of Rs.20.65/- | K159: -20.65 | L159: -56.58% | M159: Unsuccessful | N159: 2019-06-11
A160: 52 | B160: 2016-04-12 | D160: CAMLINFINE $ | E160: Accu | F160: 93.00 | H160: 149 | I160: 140.00 | J160: Profit of Rs 56/- | K160: 56.00 | L160: 60.22% | M160: Successful | N160: 2017-01-05
A161: 53 | B161: 2016-04-12 | D161: Greaves Cotton Ltd. | E161: Accu | F161: 130.00 | H161: 150 | I161: 150-155 | J161: Target Achieved | K161: 20.00 | L161: 15.38% | M161: Successful | N161: 2016-07-13
A162: 54 | B162: 2016-05-02 | D162: KEC International ltd $ | E162: Accu | F162: 127.50 | H162: 148 | I162: 148-150 | J162: Target Achieved | K162: 20.50 | L162: 16.08% | M162: Successful | N162: 2016-07-13
A163: 55 | B163: 2016-05-03 | D163: Mindtree | E163: Accu | F163: 675.00 | H163: 815 | I163: 790-800 | J163: Target Achieved | K163: 140.00 | L163: 20.74% | M163: Successful | N163: 2018-02-23
A164: 56 | B164: 2016-06-06 | D164: TRITURBINE | E164: Accu | F164: 110.00 | H164: 126.5 | I164: 125.00 | J164: Profit of Rs.16.50/- | K164: 16.50 | L164: 15.00% | M164: Successful | N164: 2016-07-01
A165: 57 | B165: 2016-06-17 | D165: Pennar Industries Ltd | E165: Accu | F165: 44.00 | H165: 69.5 | I165: 69.50 | J165: Profit of Rs.25.50/- | K165: 25.50 | L165: 57.95% | M165: Successful | N165: 2017-08-30
A166: 58 | B166: 2016-07-05 | D166: Bajaj Corp Ltd | E166: Accu | F166: 395 | H166: =(468.5+342.5)/2 -> 405.50 | I166: 510.00 | J166: Profit of Rs.10.50/- | K166: 10.50 | L166: 3% | M166: Neutral | N166: 2019-05-21
A167: 59 | B167: 2016-08-02 | D167: GPPL $ | E167: Buy | F167: 169.5 | H167: 77.00 | I167: 198-200 | J167: Loss of Rs.92.5/- | K167: -92.50 | L167: -54.57% | M167: Unsuccessful | N167: 2019-02-26
A168: 60 | B168: 2016-08-04 | D168: WONDERLA HOLIDAYS LTD | E168: Accu | F168: 400 | H168: 305.00 | I168: 475.00 | J168: Loss of Rs.95/- | K168: -95.00 | L168: -23.75% | M168: Unsuccessful | N168: 2019-05-21
A169: 61 | B169: 2016-08-11 | D169: CAMLINFINE | E169: Accu | F169: 86.50 | H169: 130 | I169: 130.00 | J169: Profit of Rs.43.50/- | K169: 43.50 | L169: 50.29% | M169: Successful | N169: 2017-12-22
A170: 62 | B170: 2016-08-18 | D170: GRANULES | E170: Accu | F170: 133.5 | H170: 126.50 | I170: 178.00 | J170: Exit | K170: -7.00 | L170: -5.24% | M170: Unsuccessful | N170: 2016-09-02
A171: 63 | B171: 2016-08-31 | D171: VA TECH WABAG | E171: Accu | F171: 560.00 | H171: 725 | I171: 725.00 | J171: Target Achieved | K171: 165.00 | L171: 29.46% | M171: Successful | N171: 2016-03-27
A172: 64 | B172: 2016-09-01 | D172: SKIPPER LIMITED | E172: Accu | F172: 160.50 | H172: 210 | I172: 210.00 | J172: Target Achieved | K172: 49.50 | L172: 30.84% | M172: Successful | N172: 2017-05-16
A173: 65 | B173: 2016-10-14 | D173: ASIANTILES | E173: Accu | F173: 280.00 | H173: 345 | I173: 345.00 | J173: Target Achieved | K173: 65.00 | L173: 23.21% | M173: Successful | N173: 2017-03-20
A174: 66 | B174: 2016-10-14 | D174: DEEPIND | E174: Accu | F174: 245.00 | H174: 325.5 | I174: 330.00 | J174: Profit of Rs.80.5/- | K174: 80.50 | L174: 32.86% | M174: Successful | N174: 2017-02-03
A175: 67 | B175: 2016-10-17 | D175: DCBBANK | E175: Accu | F175: 125.00 | H175: 160 | I175: 160.00 | J175: Target Achieved | K175: =H175-F175 -> 35.00 | L175: 28.00% | M175: Successful | N175: 2017-03-09
A176: 68 | B176: 2016-10-17 | D176: ORIENTREF | E176: Accu | F176: 114.00 | H176: 145 | I176: 145.00 | J176: Target Achieved | K176: 31.00 | L176: =K176/F176 -> 27.19% | M176: Successful | N176: 2017-05-04
A177: 69 | B177: 2016-10-17 | D177: GANECOS | E177: Accu | F177: 212.00 | H177: 280 | I177: 276.00 | J177: Profit of Rs.68/- | K177: 68.00 | L177: =K177/F177 -> 32.08% | M177: Successful | N177: 2017-05-03
A178: 70 | B178: 2016-11-04 | D178: NBCC | E178: Accu | F178: 155.00 | H178: 210 | I178: 210.00 | J178: Profit of Rs.55/- | K178: 55.00 | L178: =K178/F178 -> 35.48% | M178: Successful | N178: 2017-07-28
A179: 71 | B179: 2016-12-08 | D179: INFRATEL | E179: Accu | F179: 380.00 | H179: 478 | I179: 468.00 | J179: Target Achieved | K179: 98.00 | L179: =K179/F179 -> 25.79% | M179: Successful | N179: 2017-10-17
A180: 72 | B180: 2016-12-30 | D180: GODREJPROP | E180: Accu | F180: 305.00 | H180: 375 | I180: 375.00 | J180: Target Achieved | K180: 70.00 | L180: 22.95% | M180: Successful | N180: 2017-02-02
A181: 73 | B181: 2017-01-04 | D181: DEEPAKNTR | E181: Accu | F181: 99.50 | H181: 158 | I181: 158.00 | J181: Target Achieved | K181: 58.50 | L181: 58.79% | M181: Successful | N181: 2017-06-12
A182: 74 | B182: 2017-02-20 | D182: RECLTD | E182: Accu | F182: 140.50 | H182: 220 | I182: 220.00 | J182: Target Achieved | K182: 79.50 | L182: 56.58% | M182: Successful | N182: 2017-05-09
A183: 75 | B183: 2017-03-24 | D183: VRLLOG | E183: Accu | F183: 300.50 | H183: 417.5 | I183: 420.00 | J183: Profit of Rs.117/- | K183: 117.00 | L183: 38.94% | M183: Successful | N183: 2017-12-01
A184: 76 | B184: 2017-04-05 | D184: RATNAMANI | E184: Accu | F184: 785.00 | H184: 930 | I184: 920.00 | J184: Profit of Rs.145/- | K184: 145.00 | L184: 18.47% | M184: Successful | N184: 2017-08-29
A185: 77 | B185: 2017-04-12 | D185: DABUR | E185: Accu | F185: 289.50 | H185: 354 | I185: 360.00 | J185: Profit of Rs.64.5/- | K185: 64.50 | L185: 22.28% | M185: Successful | N185: 2017-11-01
A186: 78 | B186: 2017-04-20 | D186: KPRMILL | E186: Accu | F186: 700.00 | H186: 840 | I186: 840.00 | J186: Profit of Rs.140/- | K186: 140.00 | L186: 20.00% | M186: Successful | N186: 2017-06-07
A187: 79 | B187: 2017-06-01 | D187: ESSELPACK | E187: Accu | F187: 130.00 | H187: 144.25 | I187: 170.00 | J187: Profit of Rs.14.25/- | K187: 14.25 | L187: =K187/F187 -> 10.96% | M187: Successful | N187: 2019-07-29
A188: 80 | B188: 2017-06-15 | D188: KEI | E188: Accu | F188: 214.50 | H188: 262 | I188: 262.00 | J188: Profit of Rs.47.5/- | K188: =H188-F188 -> 47.50 | L188: 22.14% | M188: Successful | N188: 2017-08-30
A189: 81 | B189: 2017-07-17 | D189: MAYURUNIQ | E189: Accu | F189: 370.00 | H189: 447.5 | I189: 450.00 | J189: Target Achieved | K189: 77.50 | L189: 20.95% | M189: Successful | N189: 2017-10-27
A190: 82 | B190: 2017-07-27 | D190: RAMCOCEM | E190: Accu | F190: 657.50 | H190: 825 | I190: 820.00 | J190: Target Achieved | K190: 167.50 | L190: 25.48% | M190: Successful | N190: 2017-12-21
A191: 83 | B191: 2017-08-17 | D191: FINPIPE | E191: Accu | F191: 605.00 | H191: 750 | I191: 750.00 | J191: Profit of Rs.145/- | K191: 145.00 | L191: 23.97% | M191: Successful | N191: 2017-10-19
A192: 84 | B192: 2017-09-01 | D192: SHK | E192: Accu | F192: 255 | H192: 217.25 | I192: 320.00 | J192: Loss of Rs.37.75/- | K192: -37.75 | L192: -15% | M192: Unsuccessful | N192: 2019-07-15
A193: 85 | B193: 2017-09-19 | D193: SKIPPER | E193: Accu | F193: 215.00 | H193: 258 | I193: 258.00 | J193: Target Achieved | K193: 43.00 | L193: 20.00% | M193: Successful | N193: 2017-11-01
A194: 86 | B194: 2017-09-20 | D194: CAMLINFINE | E194: Accu | F194: 75.00 | H194: 90 | I194: 90.00 | J194: Profit of Rs.15.00/- | K194: 15.00 | L194: 20.00% | M194: Successful | N194: 2017-10-11
A195: 87 | B195: 2017-10-03 | D195: GNA | E195: Accu | F195: 315.00 | H195: 392 | I195: 384.00 | J195: Profit of Rs.77/- | K195: 77.00 | L195: 24.44% | M195: Successful | N195: 2017-10-09
A196: 88 | B196: 2017-10-05 | D196: NOCIL | E196: Accu | F196: 145.00 | H196: 179 | I196: 180.00 | J196: Profit of Rs.34/- | K196: 34.00 | L196: 23.45% | M196: Successful | N196: 2017-10-17
A197: 89 | B197: 2017-10-06 | D197: CENTURYPLY | E197: Accu | F197: 256.00 | H197: 323 | I197: 320.00 | J197: Target Achieved | K197: 67.00 | L197: 26.17% | M197: Successful | N197: 2017-11-28
A198: 90 | B198: 2017-10-09 | D198: EIHOTEL | E198: Accu | F198: 137.50 | H198: 184 | I198: 183.00 | J198: Profit of Rs.46.5/- | K198: 46.50 | L198: 33.82% | M198: Successful | N198: 2018-01-08
A199: 91 | B199: 2017-10-10 | D199: NRBBEARING | E199: Accu | F199: 125.50 | H199: 158 | I199: 155.00 | J199: Profit of Rs.32.5/- | K199: 32.50 | L199: 25.90% | M199: Successful | N199: 2017-11-28
A200: 92 | B200: 2017-11-07 | D200: HATSUN | E200: Accu | F200: 740.00 | H200: 892.5 | I200: 900.00 | J200: Profit of Rs.152.5/- | K200: 152.50 | L200: 20.61% | M200: Successful | N200: 2017-11-13
A201: 93 | B201: 2017-12-04 | D201: SANGHIIND | E201: Accu | F201: 118.50 | H201: 143.5 | I201: 145.00 | J201: Profit of Rs.25/- | K201: 25.00 | L201: 21.10% | M201: Successful | N201: 2017-12-28
A202: 94 | B202: 2017-12-21 | D202: KAJARIACER | E202: Accu | F202: 715 | H202: 500.00 | I202: 872.00 | J202: Loss of Rs.215/- | K202: =H202-F202 -> -215.00 | L202: =K202/F202 -> -30.07% | M202: Unsuccessful | N202: 2019-07-24
A203: 95 | B203: 2018-04-04 | D203: GPPL | E203: Accu | F203: 141.5 | H203: 77.00 | I203: 180.00 | J203: Loss of Rs.64.5/- | K203: -64.50 | L203: -45.58% | M203: Unsuccessful | N203: 2019-02-26
A204: 96 | B204: 2018-04-19 | D204: MANPASAND | E204: Accu | F204: 430 | H204: 220.00 | I204: 537.00 | J204: Loss of Rs.210/- | K204: -210.00 | L204: -48.84% | M204: Unsuccessful | N204: 2018-06-01
A205: 97 | B205: 2018-04-30 | D205: HEIDELBERG | E205: Accu | F205: 156 | H205: 196.00 | I205: 196.00 | J205: Profit of Rs.40/- | K205: 40.00 | L205: 26% | M205: Successful | N205: 2019-05-20
A206: 98 | B206: 2018-08-06 | D206: GABRIEL | E206: Accu | F206: 150.00 | H206: 102 | I206: 182.00 | J206: Loss of Rs.48 /- | K206: -48.00 | L206: -32.00% | M206: Unsuccessful | N206: 2019-07-15
A207: 99 | B207: 2018-08-29 | D207: GRINDWELL | E207: Accu | F207: 525.00 | H207: 585 | I207: 635.00 | J207: Profit of Rs.60- | K207: 60.00 | L207: 11.43% | N207: 2019-07-16
A208: 100 | B208: 2018-10-22 | D208: FINPIPE | E208: Accu | F208: 475.00 | H208: 574 | I208: 570.00 | J208: Target Achieved | K208: 99.00 | L208: 20.84% | M208: Successful | N208: 2018-10-30
A209: 101 | B209: 2018-10-24 | D209: GULFOILLUB | E209: Accu | F209: 707.50 | H209: 872 | I209: 872.00 | J209: Target Achieved | K209: 164.50 | L209: 23.25% | M209: Successful | N209: 2019-01-17
A210: 102 | B210: 2018-10-25 | D210: DBCORP | E210: Accu | F210: 164.00 | H210: 204 | I210: 209.00 | J210: Profit of Rs.40/- | K210: 40.00 | L210: 24.39% | M210: Successful | N210: 2019-03-15
A211: 103 | B211: 2018-10-26 | D211: RITES | E211: Accu | F211: 240.00 | H211: 297 | I211: 297.00 | J211: Target Achieved | K211: 57.00 | L211: 23.75% | M211: Successful | N211: 2018-11-13
A212: 104 | B212: 2018-12-05 | D212: BRIGADE | E212: Accu | F212: 202.50 | H212: 255 | I212: 252.00 | J212: Target Achieved | K212: 52.50 | L212: 25.93% | M212: Successful | N212: 2019-03-18
A213: 105 | B213: 2018-12-31 | D213: JKCEMENT | E213: Accu | F213: 710.00 | H213: 866 | I213: 866.00 | J213: Target Achieved | K213: 156.00 | L213: 21.97% | M213: Successful | N213: 2019-03-29
A214: 106 | B214: 2019-04-04 | D214: ITDCEM | E214: Accu | F214: 130.00 | H214: 65 | I214: 158.00 | J214: Loss of Rs.65 /- | K214: -65.00 | L214: -50.00% | M214: Unsuccessful | N214: 2019-09-18
A215: 107 | B215: 2017-10-09 | D215: RECLTD | E215: Accu | F215: 152.5 | H215: 183.50 | I215: 210.00 | J215: Part Profit of Rs.31/- | K215: 31.00 | L215: 20% | M215: Successful | N215: 2017-11-03 | R215: V
A216: 108 | B216: 2017-12-05 | D216: ALLCARGO | E216: Accu | F216: 177.5 | H216: 215.00 | I216: 230.00 | J216: Part Profit of Rs.37.5/- | K216: 37.50 | L216: 21% | M216: Successful | N216: 2017-12-27 | R216: V
A217: 109 | B217: 2018-04-02 | D217: EVERESTIND | E217: Accu | F217: 492.5 | H217: 589.00 | I217: 613.00 | J217: Part Profit of Rs.96.5/- | K217: 96.50 | L217: 20% | M217: Successful | N217: 2018-08-21 | R217: K
A218: 110 | B218: 2018-10-25 | D218: GODREJCP | E218: Accu | F218: 707.5 | H218: 850.00 | I218: 890.00 | J218: Part Profit of Rs.142.5/- | K218: 142.50 | L218: 20% | M218: Successful | N218: 2018-12-19 | R218: V
A219: 111 | B219: 2017-05-22 | D219: GREAVESCOT | E219: Accu | F219: 153-158 | I219: 190.00 | M219: Open | R219: K
A220: 112 | B220: 2018-02-07 | D220: GREAVESCOT | E220: Accu | F220: 130-132 | I220: 190.00 | M220: Open | R220: K
A221: 113 | B221: 2018-02-27 | D221: MOLDTKPAC | E221: Accu | F221: 320-330 | I221: 398.00 | M221: Open | R221: K
A222: 114 | B222: 2018-03-05 | D222: LICHSGFIN | E222: Accu | F222: 505-515 | I222: 672.00 | M222: Open | R222: V
A223: 98 | B223: 2018-06-07 | D223: KEC | E223: Accu | F223: 340-345 | I223: 439.00 | M223: Open | R223: K
A224: 99 | B224: 2018-07-04 | D224: ASHOKLEY | E224: Accu | F224: 125-130 | I224: 170.00 | M224: Open | R224: V
A225: 100 | B225: 2018-10-23 | D225: JKPAPER | E225: Accu | F225: 158-162 | I225: 191.00 | M225: Open | R225: K
A226: 101 | B226: 2018-12-05 | D226: CCL | E226: Accu | F226: 260-270 | I226: 321.00 | M226: Open | R226: V
A227: 102 | B227: 2019-01-04 | D227: MGL | E227: Accu | F227: 890-900 | I227: 1185.00 | M227: Open | R227: V
A228: 103 | B228: 2019-02-26 | D228: MARICO | E228: Accu | F228: 335-345 | I228: 411.00 | M228: Open | R228: K
A229: 104 | B229: 2019-04-04 | D229: COCHINSHIP | E229: Accu | F229: 384-390 | I229: 490.00 | M229: Open | R229: V
A230: 105 | B230: 2019-08-30 | D230: INDHOTEL | E230: Accu | F230: 135-140 | I230: 190.00 | M230: Open | R230: V
A231: 106 | B231: 2019-09-23 | D231: KNRCON | E231: Accu | F231: 230-240 | I231: 296.00 | M231: Open | R231: K
A232: 107
F233: Reinitiated $
B235: Instituitonal Investment Idea
A236: Sr.no | B236: Date | D236: Company | E236: Rec | F236: Rec Price | G236: Point of Review | H236: Close Rate | I236: Target | J236: Remark | K236: Profit / Loss per Share | L236: Gain / Loss % | M236: Status | N236: Closed Date
A237: 1 | B237: 2016-04-13 | D237: DHFL | E237: Accu | F237: 196.00 | H237: 299 | I237: 299.00 | J237: Target Achieved | K237: 103.00 | L237: 52.55% | M237: Successful | N237: 2016-09-07
A238: 2 | B238: 2016-04-13 | D238: Magma | E238: Accu | F238: 88.00 | H238: 103 | I238: 103.00 | J238: Target Achieved | K238: 15.00 | L238: 17.05% | M238: Successful | N238: 2016-06-09
A239: 3 | B239: 2016-06-01 | D239: Atulauto | E239: Accu | F239: 500 | H239: 232.50 | I239: 565-570 | J239: Loss of Rs.267.50 /- | K239: =H239-F239 -> -267.50 | L239: =K239/F239 -> -53.50% | M239: Unsuccessful | N239: 2019-09-27
A240: 4 | B240: 2016-06-28 | D240: EVEREADY | E240: Accu | F240: 262.50 | H240: 340 | I240: 333.00 | J240: Profit of Rs.77.50/- | K240: 77.50 | L240: 29.52% | M240: Successful | N240: 2017-10-09
A241: 5 | B241: 2016-06-28 | D241: FIEMIND | E241: Accu | F241: 840.00 | H241: 1230 | I241: 1230.00 | J241: Target Achieved | K241: 390.00 | L241: 46.43% | M241: Successful | N241: 2016-10-06
... 20 more rows

Sheet Sheet2 (hidden)
A1: SYMBOL | B1: SERIES | C1: OPEN | D1: HIGH | E1: LOW | F1: CLOSE | G1: LAST | H1: PREVCLOSE | I1: TOTTRDQTY | J1: TOTTRDVAL | K1: TIMESTAMP | L1: TOTALTRADES | M1: ISIN | N1: ISIN
A2: 20MICRONS | B2: EQ | C2: 39 | D2: 39.75 | E2: 38 | F2: 38.9 | G2: 39 | H2: 38.2 | I2: 33681 | J2: 1308879.75 | K2: 2019-10-09 | L2: 657 | M2: INE144J01027
A3: 21STCENMGM | B3: EQ | C3: 13.2 | D3: 13.2 | E3: 12.95 | F3: 12.95 | G3: 12.95 | H3: 13.2 | I3: 1248 | J3: 16336.6 | K3: 2019-10-09 | L3: 5 | M3: INE253B01015
A4: 3IINFOTECH | B4: EQ | C4: 2 | D4: 2.25 | E4: 1.95 | F4: 2.1 | G4: 2.1 | H4: 2 | I4: 1872066 | J4: 3868659.55 | K4: 2019-10-09 | L4: 650 | M4: INE748C01020
A5: 3MINDIA | B5: EQ | C5: 19998 | D5: 20289.95 | E5: 19786.05 | F5: 20219.3 | G5: 20260 | H5: 19841.4 | I5: 1601 | J5: 32145157.25 | K5: 2019-10-09 | L5: 712 | M5: INE470A01017
A6: 5PAISA | B6: EQ | C6: 161.2 | D6: 170.9 | E6: 155 | F6: 165.85 | G6: 170.9 | H6: 162.8 | I6: 7114 | J6: 1148381.35 | K6: 2019-10-09 | L6: 312 | M6: INE618L01018
A7: 63MOONS | B7: EQ | C7: 118.4 | D7: 126.4 | E7: 116.85 | F7: 120.45 | G7: 119.8 | H7: 117.1 | I7: 232365 | J7: 28405863.9 | K7: 2019-10-09 | L7: 4826 | M7: INE111B01023
A8: A2ZINFRA | B8: EQ | C8: 9.6 | D8: 9.8 | E8: 8.95 | F8: 9.65 | G8: 9.65 | H8: 9.55 | I8: 391050 | J8: 3613320.95 | K8: 2019-10-09 | L8: 677 | M8: INE619I01012
A9: AARTIDRUGS | B9: EQ | C9: 456.8 | D9: 462.3 | E9: 452.15 | F9: 460.15 | G9: 462.1 | H9: 456.6 | I9: 5663 | J9: 2596493.05 | K9: 2019-10-09 | L9: 832 | M9: INE767A01016
A10: AARTIIND | B10: EQ | C10: 758.3 | D10: 779 | E10: 746 | F10: 759.75 | G10: 757.05 | H10: 753.6 | I10: 133905 | J10: 101461638.5 | K10: 2019-10-09 | L10: 5028 | M10: INE769A01020
A11: AARVEEDEN | B11: EQ | C11: 15 | D11: 15.2 | E11: 14.3 | F11: 14.65 | G11: 14.4 | H11: 15.1 | I11: 6510 | J11: 98254.7 | K11: 2019-10-09 | L11: 79 | M11: INE273D01019
A12: AAVAS | B12: EQ | C12: 1609 | D12: 1614.95 | E12: 1590.85 | F12: 1604.05 | G12: 1610 | H12: 1599.05 | I12: 12717 | J12: 20371293 | K12: 2019-10-09 | L12: 2085 | M12: INE216P01012
A13: ABAN | B13: BE | C13: 25.45 | D13: 27.45 | E13: 25.1 | F13: 25.15 | G13: 25.1 | H13: 26.4 | I13: 32905 | J13: 839132.65 | K13: 2019-10-09 | L13: 358 | M13: INE421A01028
A14: ABB | B14: EQ | C14: 1474.9 | D14: 1509.4 | E14: 1465.5 | F14: 1486 | G14: 1490 | H14: 1465.75 | I14: 93666 | J14: 139637578.5 | K14: 2019-10-09 | L14: 5714 | M14: INE117A01022
A15: ABBOTINDIA | B15: EQ | C15: 10742.1 | D15: 11050 | E15: 10650 | F15: 10998.6 | G15: 10960 | H15: 10662 | I15: 8536 | J15: 92952911.1 | K15: 2019-10-09 | L15: 1840 | M15: INE358A01014
A16: ABCAPITAL | B16: EQ | C16: 78.7 | D16: 81.45 | E16: 78.1 | F16: 79.4 | G16: 79.5 | H16: 78.5 | I16: 1268265 | J16: 100581619.3 | K16: 2019-10-09 | L16: 19488 | M16: INE674K01013
A17: ABFRL | B17: EQ | C17: 206.05 | D17: 209.55 | E17: 204.6 | F17: 208.1 | G17: 207.6 | H17: 207.45 | I17: 313571 | J17: 65229732.75 | K17: 2019-10-09 | L17: 6335 | M17: INE647O01011
A18: ABSLNN50ET | B18: EQ | C18: 265.07 | D18: 267.18 | E18: 265.07 | F18: 267.18 | G18: 267.18 | H18: 265.7 | I18: 3 | J18: 797.32 | K18: 2019-10-09 | L18: 3 | M18: INF209KB1B87
A19: ACC | B19: EQ | C19: 1430 | D19: 1473.95 | E19: 1416.45 | F19: 1467.1 | G19: 1469.3 | H19: 1435.1 | I19: 1260259 | J19: 1821686699 | K19: 2019-10-09 | L19: 51936 | M19: INE012A01025
A20: ACCELYA | B20: EQ | C20: 852.5 | D20: 862 | E20: 852.5 | F20: 856.35 | G20: 859.95 | H20: 854.05 | I20: 1974 | J20: 1691395 | K20: 2019-10-09 | L20: 296 | M20: INE793A01012
A21: ACE | B21: EQ | C21: 76 | D21: 76 | E21: 74.25 | F21: 74.6 | G21: 74.5 | H21: 74.7 | I21: 89054 | J21: 6643724.55 | K21: 2019-10-09 | L21: 612 | M21: INE731H01025
A22: ADANIENT | B22: EQ | C22: 134.95 | D22: 139.65 | E22: 134.1 | F22: 139 | G22: 138.4 | H22: 135.8 | I22: 2682715 | J22: 367061579.3 | K22: 2019-10-09 | L22: 15509 | M22: INE423A01024
A23: ADANIGAS | B23: EQ | C23: 131.55 | D23: 138.4 | E23: 131.3 | F23: 136.05 | G23: 136.8 | H23: 130.1 | I23: 1712612 | J23: 231989537.3 | K23: 2019-10-09 | L23: 15171 | M23: INE399L01023
A24: ADANIGREEN | B24: EQ | C24: 68.3 | D24: 74.3 | E24: 67.5 | F24: 71.45 | G24: 71.4 | H24: 68.05 | I24: 6942443 | J24: 496637892.9 | K24: 2019-10-09 | L24: 33327 | M24: INE364U01010
A25: ADANIPORTS | B25: EQ | C25: 396.35 | D25: 402.85 | E25: 391.55 | F25: 400.45 | G25: 399.8 | H25: 395.25 | I25: 3905912 | J25: 1556944753 | K25: 2019-10-09 | L25: 47923 | M25: INE742F01042
A26: ADANIPOWER | B26: EQ | C26: 59.2 | D26: 61.1 | E26: 58.4 | F26: 60.75 | G26: 60.95 | H26: 59.3 | I26: 9589622 | J26: 573537089.2 | K26: 2019-10-09 | L26: 22533 | M26: INE814H01011
A27: ADANITRANS | B27: EQ | C27: 226.8 | D27: 230 | E27: 221.55 | F27: 225.45 | G27: 225 | H27: 224.65 | I27: 81394 | J27: 18373078.6 | K27: 2019-10-09 | L27: 2603 | M27: INE931S01010
A28: ADFFOODS | B28: EQ | C28: 262.4 | D28: 264.2 | E28: 240 | F28: 256.95 | G28: 256.4 | H28: 263.8 | I28: 28740 | J28: 7298743 | K28: 2019-10-09 | L28: 1566 | M28: INE982B01019
A29: ADHUNIKIND | B29: EQ | C29: 109.65 | D29: 112.8 | E29: 107.9 | F29: 108.65 | G29: 108.85 | H29: 109.65 | I29: 83299 | J29: 9214633.8 | K29: 2019-10-09 | L29: 1510 | M29: INE452L01012
A30: ADLABS | B30: EQ | C30: 2.75 | D30: 2.75 | E30: 2.6 | F30: 2.6 | G30: 2.6 | H30: 2.7 | I30: 82562 | J30: 215872.25 | K30: 2019-10-09 | L30: 173 | M30: INE172N01012
A31: ADORWELD | B31: EQ | C31: 302.35 | D31: 306.75 | E31: 299.5 | F31: 304.9 | G31: 303.55 | H31: 302.35 | I31: 955 | J31: 289391.6 | K31: 2019-10-09 | L31: 91 | M31: INE045A01017
A32: ADROITINFO | B32: BE | C32: 7.9 | D32: 7.9 | E32: 7.9 | F32: 7.9 | G32: 7.9 | H32: 7.9 | I32: 5 | J32: 39.5 | K32: 2019-10-09 | L32: 2 | M32: INE737B01033
A33: ADSL | B33: EQ | C33: 13.3 | D33: 14 | E33: 13.25 | F33: 13.75 | G33: 13.85 | H33: 13.05 | I33: 41886 | J33: 567928.7 | K33: 2019-10-09 | L33: 157 | M33: INE102I01027
A34: ADVANIHOTR | B34: EQ | C34: 52.6 | D34: 52.95 | E34: 51.55 | F34: 52.1 | G34: 52.4 | H34: 52.05 | I34: 3646 | J34: 190204.4 | K34: 2019-10-09 | L34: 73 | M34: INE199C01026
A35: ADVENZYMES | B35: EQ | C35: 150 | D35: 151.5 | E35: 148.15 | F35: 148.95 | G35: 149.85 | H35: 148.95 | I35: 43353 | J35: 6496877.5 | K35: 2019-10-09 | L35: 3322 | M35: INE837H01020
A36: AEGISCHEM | B36: EQ | C36: 164.1 | D36: 169.4 | E36: 161.25 | F36: 166.7 | G36: 166 | H36: 164.15 | I36: 82080 | J36: 13529641.6 | K36: 2019-10-09 | L36: 2864 | M36: INE208C01025
A37: AFFLE | B37: EQ | C37: 1115.95 | D37: 1269 | E37: 1093 | F37: 1234.1 | G37: 1239 | H37: 1105.7 | I37: 236537 | J37: 281194415.9 | K37: 2019-10-09 | L37: 16065 | M37: INE00WC01019
A38: AGARIND | B38: EQ | C38: 118.35 | D38: 130.3 | E38: 116.4 | F38: 118.15 | G38: 119.5 | H38: 112.05 | I38: 13714 | J38: 1657701.55 | K38: 2019-10-09 | L38: 502 | M38: INE204E01012
A39: AGCNET | B39: BE | C39: 113 | D39: 113 | E39: 110.55 | F39: 110.55 | G39: 110.55 | H39: 113.1 | I39: 524 | J39: 58283.45 | K39: 2019-10-09 | L39: 12 | M39: INE676A01019
A40: AGLSL | B40: EQ | C40: 49.2 | D40: 50.95 | E40: 49.15 | F40: 50.05 | G40: 50 | H40: 49.85 | I40: 2471 | J40: 123470.75 | K40: 2019-10-09 | L40: 52 | M40: INE517U01013
A41: AGRITECH | B41: EQ | C41: 47.6 | D41: 47.6 | E41: 43.6 | F41: 44.7 | G41: 44.25 | H41: 45.8 | I41: 9723 | J41: 432480.2 | K41: 2019-10-09 | L41: 245 | M41: INE449G01018
A42: AGROPHOS | B42: EQ | C42: 106.15 | D42: 107 | E42: 106.15 | F42: 106.7 | G42: 106.75 | H42: 106.1 | I42: 393865 | J42: 41946514 | K42: 2019-10-09 | L42: 8633 | M42: INE740V01019
A43: AHLEAST | B43: EQ | C43: 181.55 | D43: 182.2 | E43: 176.05 | F43: 177.05 | G43: 176.4 | H43: 177.35 | I43: 111 | J43: 19864.3 | K43: 2019-10-09 | L43: 94 | M43: INE926K01017
A44: AHLUCONT | B44: EQ | C44: 275 | D44: 277.05 | E44: 268.05 | F44: 273.35 | G44: 277 | H44: 272.2 | I44: 3397 | J44: 925753.35 | K44: 2019-10-09 | L44: 268 | M44: INE758C01029
A45: AHLWEST | B45: EQ | C45: 310 | D45: 310 | E45: 302.2 | F45: 305.15 | G45: 308 | H45: 312.65 | I45: 156 | J45: 47724.3 | K45: 2019-10-09 | L45: 50 | M45: INE915K01010
A46: AIAENG | B46: EQ | C46: 1673.6 | D46: 1682.9 | E46: 1632.65 | F46: 1644.35 | G46: 1640 | H46: 1676.6 | I46: 5951 | J46: 9834470.5 | K46: 2019-10-09 | L46: 974 | M46: INE212H01026
A47: AIONJSW | B47: EQ | C47: 9.8 | D47: 10.05 | E47: 9.7 | F47: 9.95 | G47: 9.9 | H47: 9.95 | I47: 37478 | J47: 372888.35 | K47: 2019-10-09 | L47: 82 | M47: INE743C01021
A48: AIRAN | B48: EQ | C48: 13 | D48: 13 | E48: 12.75 | F48: 13 | G48: 13 | H48: 13 | I48: 5032 | J48: 64534 | K48: 2019-10-09 | L48: 17 | M48: INE645W01026
A49: AJANTPHARM | B49: EQ | C49: 980 | D49: 989.65 | E49: 967 | F49: 981.9 | G49: 985 | H49: 984.7 | I49: 63671 | J49: 62402175.3 | K49: 2019-10-09 | L49: 4228 | M49: INE031B01049
A50: AJMERA | B50: EQ | C50: 114.7 | D50: 119.15 | E50: 109.55 | F50: 114.7 | G50: 114.1 | H50: 113.8 | I50: 41974 | J50: 4767262.45 | K50: 2019-10-09 | L50: 1687 | M50: INE298G01027
A51: AKSHARCHEM | B51: EQ | C51: 202 | D51: 205 | E51: 197 | F51: 204.7 | G51: 204.75 | H51: 206 | I51: 1699 | J51: 343429.8 | K51: 2019-10-09 | L51: 95 | M51: INE542B01011
A52: AKSHOPTFBR | B52: EQ | C52: 7.05 | D52: 7.4 | E52: 6.85 | F52: 7.4 | G52: 7.4 | H52: 7.05 | I52: 277354 | J52: 2017284.85 | K52: 2019-10-09 | L52: 411 | M52: INE523B01011
A53: AKZOINDIA | B53: EQ | C53: 1875 | D53: 1877.95 | E53: 1831 | F53: 1850.7 | G53: 1845 | H53: 1872.05 | I53: 9866 | J53: 18238390.45 | K53: 2019-10-09 | L53: 1484 | M53: INE133A01011
A54: ALANKIT | B54: EQ | C54: 21.9 | D54: 21.9 | E54: 19.7 | F54: 20.15 | G54: 20.15 | H54: 20.5 | I54: 103463 | J54: 2090304.35 | K54: 2019-10-09 | L54: 795 | M54: INE914E01040
A55: ALBERTDAVD | B55: EQ | C55: 335.75 | D55: 338 | E55: 332.1 | F55: 335.9 | G55: 335.5 | H55: 336.55 | I55: 1797 | J55: 603750.7 | K55: 2019-10-09 | L55: 72 | M55: INE155C01010
A56: ALBK | B56: EQ | C56: 26.6 | D56: 26.7 | E56: 25.8 | F56: 26.55 | G56: 26.55 | H56: 26.6 | I56: 1057488 | J56: 27729190 | K56: 2019-10-09 | L56: 4317 | M56: INE428A01015
A57: ALCHEM | B57: BE | C57: 0.9 | D57: 0.9 | E57: 0.9 | F57: 0.9 | G57: 0.9 | H57: 0.9 | I57: 618 | J57: 556.2 | K57: 2019-10-09 | L57: 7 | M57: INE964B01033
A58: ALEMBICLTD | B58: EQ | C58: 43.95 | D58: 45.85 | E58: 43.2 | F58: 44.4 | G58: 44.3 | H58: 43.75 | I58: 61471 | J58: 2729281.1 | K58: 2019-10-09 | L58: 584 | M58: INE426A01027
A59: ALICON | B59: EQ | C59: 338.85 | D59: 344 | E59: 334.35 | F59: 335.85 | G59: 339 | H59: 338.8 | I59: 1109 | J59: 374811.85 | K59: 2019-10-09 | L59: 142 | M59: INE062D01024
A60: ALKALI | B60: EQ | C60: 45.05 | D60: 47.75 | E60: 44.3 | F60: 46.1 | G60: 46 | H60: 45 | I60: 18193 | J60: 843523.8 | K60: 2019-10-09 | L60: 335 | M60: INE773I01017
A61: ALKEM | B61: EQ | C61: 1941.05 | D61: 1950 | E61: 1911 | F61: 1938.25 | G61: 1949.9 | H61: 1938.55 | I61: 16138 | J61: 31212243.3 | K61: 2019-10-09 | L61: 1799 | M61: INE540L01014
A62: ALKYLAMINE | B62: EQ | C62: 862.75 | D62: 868.95 | E62: 861.4 | F62: 863.8 | G62: 865.05 | H62: 860.6 | I62: 1968 | J62: 1701672.15 | K62: 2019-10-09 | L62: 126 | M62: INE150B01021
A63: ALLCARGO | B63: EQ | C63: 100 | D63: 101 | E63: 98.25 | F63: 99.6 | G63: 99.35 | H63: 100.6 | I63: 135859 | J63: 13478144.45 | K63: 2019-10-09 | L63: 1939 | M63: INE418H01029
A64: ALLSEC | B64: EQ | C64: 281 | D64: 292 | E64: 263.7 | F64: 281.1 | G64: 281 | H64: 289.8 | I64: 13636 | J64: 3864177.6 | K64: 2019-10-09 | L64: 143 | M64: INE835G01018
A65: ALMONDZ | B65: EQ | C65: 9.25 | D65: 9.7 | E65: 9.25 | F65: 9.5 | G65: 9.5 | H65: 9.25 | I65: 1369 | J65: 12976.85 | K65: 2019-10-09 | L65: 17 | M65: INE326B01027
A66: ALOKTEXT | B66: EQ | C66: 1.65 | D66: 1.65 | E66: 1.6 | F66: 1.65 | G66: 1.65 | H66: 1.6 | I66: 3191402 | J66: 5265741.2 | K66: 2019-10-09 | L66: 332 | M66: INE270A01011
A67: ALPA | B67: EQ | C67: 14.45 | D67: 15.5 | E67: 13.2 | F67: 14.15 | G67: 14.25 | H67: 14.6 | I67: 35709 | J67: 496490 | K67: 2019-10-09 | L67: 299 | M67: INE385I01010
A68: ALPHAGEO | B68: EQ | C68: 193.7 | D68: 198.5 | E68: 185.1 | F68: 188.75 | G68: 188.95 | H68: 193.7 | I68: 4569 | J68: 869493.6 | K68: 2019-10-09 | L68: 348 | M68: INE137C01018
A69: ALPSINDUS | B69: BE | C69: 0.25 | D69: 0.35 | E69: 0.25 | F69: 0.35 | G69: 0.35 | H69: 0.3 | I69: 9313 | J69: 3062.65 | K69: 2019-10-09 | L69: 19 | M69: INE093B01015
A70: AMARAJABAT | B70: EQ | C70: 687.5 | D70: 695.6 | E70: 673.1 | F70: 693.55 | G70: 692.2 | H70: 684.1 | I70: 343977 | J70: 235834893 | K70: 2019-10-09 | L70: 8982 | M70: INE885A01032
A71: AMBER | B71: EQ | C71: 881 | D71: 903 | E71: 861.25 | F71: 885.2 | G71: 902.5 | H71: 880.35 | I71: 10475 | J71: 9184105.75 | K71: 2019-10-09 | L71: 1350 | M71: INE371P01015
A72: AMBIKCO | B72: EQ | C72: 920 | D72: 929.15 | E72: 895 | F72: 903.9 | G72: 905 | H72: 903.45 | I72: 3388 | J72: 3064758.65 | K72: 2019-10-09 | L72: 435 | M72: INE540G01014
A73: AMBUJACEM | B73: EQ | C73: 185.5 | D73: 193.35 | E73: 184.1 | F73: 192.35 | G73: 192.3 | H73: 185.95 | I73: 3360027 | J73: 636466819.6 | K73: 2019-10-09 | L73: 30220 | M73: INE079A01024
A74: AMDIND | B74: EQ | C74: 16.1 | D74: 16.85 | E74: 15.75 | F74: 16.35 | G74: 16.5 | H74: 15.55 | I74: 16598 | J74: 271286.85 | K74: 2019-10-09 | L74: 115 | M74: INE005I01014
A75: AMJLAND | B75: EQ | C75: 16.1 | D75: 16.1 | E75: 14.75 | F75: 15.85 | G75: 15.85 | H75: 16.25 | I75: 10747 | J75: 167722.85 | K75: 2019-10-09 | L75: 103 | M75: INE606A01024
A76: AMRUTANJAN | B76: EQ | C76: 337.05 | D76: 346.05 | E76: 333.9 | F76: 339.95 | G76: 339.95 | H76: 336.5 | I76: 11176 | J76: 3804951.65 | K76: 2019-10-09 | L76: 1007 | M76: INE098F01031
A77: ANANTRAJ | B77: EQ | C77: 29.45 | D77: 29.45 | E77: 27.45 | F77: 28.7 | G77: 28.95 | H77: 29.1 | I77: 272023 | J77: 7740330.85 | K77: 2019-10-09 | L77: 986 | M77: INE242C01024
A78: ANDHRABANK | B78: EQ | C78: 16.45 | D78: 16.55 | E78: 16.15 | F78: 16.45 | G78: 16.4 | H78: 16.5 | I78: 240757 | J78: 3943368.35 | K78: 2019-10-09 | L78: 1029 | M78: INE434A01013
A79: ANDHRACEMT | B79: BE | C79: 2.45 | D79: 2.45 | E79: 2.3 | F79: 2.45 | G79: 2.45 | H79: 2.35 | I79: 24978 | J79: 61153.3 | K79: 2019-10-09 | L79: 43 | M79: INE666E01012
A80: ANDHRSUGAR | B80: EQ | C80: 265.55 | D80: 270.95 | E80: 265.55 | F80: 270.05 | G80: 270.05 | H80: 268.75 | I80: 17111 | J80: 4608393.2 | K80: 2019-10-09 | L80: 562 | M80: INE715B01013
A81: ANIKINDS | B81: EQ | C81: 7 | D81: 7.1 | E81: 6.7 | F81: 7.1 | G81: 7.1 | H81: 6.75 | I81: 733 | J81: 5121.95 | K81: 2019-10-09 | L81: 17 | M81: INE087B01017
A82: ANKITMETAL | B82: BE | C82: 0.45 | D82: 0.55 | E82: 0.45 | F82: 0.55 | G82: 0.55 | H82: 0.5 | I82: 3051 | J82: 1393.05 | K82: 2019-10-09 | L82: 5 | M82: INE106I01010
A83: ANSALAPI | B83: EQ | C83: 4.05 | D83: 4.25 | E83: 4 | F83: 4.05 | G83: 4 | H83: 4.2 | I83: 51986 | J83: 209870.1 | K83: 2019-10-09 | L83: 133 | M83: INE436A01026
A84: ANSALHSG | B84: EQ | C84: 4.6 | D84: 4.8 | E84: 4.5 | F84: 4.6 | G84: 4.65 | H84: 4.5 | I84: 26729 | J84: 123634.2 | K84: 2019-10-09 | L84: 239 | M84: INE880B01015
A85: ANTGRAPHIC | B85: BE | C85: 0.7 | D85: 0.75 | E85: 0.7 | F85: 0.75 | G85: 0.75 | H85: 0.75 | I85: 27567 | J85: 19538.8 | K85: 2019-10-09 | L85: 18 | M85: INE414B01021
A86: ANUP | B86: EQ | C86: 441.1 | D86: 466.6 | E86: 435 | F86: 448.25 | G86: 445.15 | H86: 443.9 | I86: 10254 | J86: 4645238.75 | K86: 2019-10-09 | L86: 699 | M86: INE294Z01018
A87: APARINDS | B87: EQ | C87: 521.85 | D87: 521.9 | E87: 505.3 | F87: 508.8 | G87: 507.5 | H87: 521.2 | I87: 7301 | J87: 3714435.75 | K87: 2019-10-09 | L87: 406 | M87: INE372A01015
A88: APCL | B88: EQ | C88: 143.35 | D88: 143.35 | E88: 140 | F88: 142.35 | G88: 143 | H88: 140.8 | I88: 973 | J88: 137789.85 | K88: 2019-10-09 | L88: 25 | M88: INE071F01012
A89: APCOTEXIND | B89: EQ | C89: 182 | D89: 191.6 | E89: 176.3 | F89: 187.5 | G89: 188 | H89: 177.65 | I89: 28544 | J89: 5206705.55 | K89: 2019-10-09 | L89: 1100 | M89: INE116A01032
A90: APEX | B90: EQ | C90: 213.1 | D90: 219.8 | E90: 208.15 | F90: 212.45 | G90: 211.1 | H90: 212.2 | I90: 39589 | J90: 8443307.7 | K90: 2019-10-09 | L90: 2047 | M90: INE346W01013
A91: APLAPOLLO | B91: EQ | C91: 1329.05 | D91: 1398.8 | E91: 1300 | F91: 1369.5 | G91: 1385.05 | H91: 1315.1 | I91: 22539 | J91: 30306251.3 | K91: 2019-10-09 | L91: 1510 | M91: INE702C01019
A92: APLLTD | B92: EQ | C92: 539.95 | D92: 545 | E92: 530.1 | F92: 537.3 | G92: 536.8 | H92: 532.9 | I92: 15651 | J92: 8393061.9 | K92: 2019-10-09 | L92: 747 | M92: INE901L01018
A93: APOLLO | B93: EQ | C93: 72.4 | D93: 74 | E93: 68.1 | F93: 68.7 | G93: 68.8 | H93: 69.6 | I93: 15113 | J93: 1047672.75 | K93: 2019-10-09 | L93: 759 | M93: INE713T01010
A94: APOLLOHOSP | B94: EQ | C94: 1407.5 | D94: 1431.85 | E94: 1397.55 | F94: 1425.05 | G94: 1423 | H94: 1410.65 | I94: 381888 | J94: 540682381.2 | K94: 2019-10-09 | L94: 30309 | M94: INE437A01024
A95: APOLLOTYRE | B95: EQ | C95: 163 | D95: 169.95 | E95: 162.55 | F95: 168.85 | G95: 169.3 | H95: 164.35 | I95: 1858232 | J95: 308763837.6 | K95: 2019-10-09 | L95: 13707 | M95: INE438A01022
A96: APOLSINHOT | B96: EQ | C96: 770 | D96: 770 | E96: 741.05 | F96: 748 | G96: 748.05 | H96: 747.75 | I96: 657 | J96: 494085.45 | K96: 2019-10-09 | L96: 162 | M96: INE451F01024
A97: APTECHT | B97: EQ | C97: 146.4 | D97: 149.7 | E97: 140.15 | F97: 146.85 | G97: 145.95 | H97: 146.55 | I97: 192169 | J97: 27908402.05 | K97: 2019-10-09 | L97: 4493 | M97: INE266F01018
A98: ARCHIDPLY | B98: EQ | C98: 25.35 | D98: 27.4 | E98: 24.85 | F98: 26.15 | G98: 26.65 | H98: 25.65 | I98: 8486 | J98: 215872 | K98: 2019-10-09 | L98: 191 | M98: INE877I01016
A99: ARCHIES | B99: BE | C99: 19.4 | D99: 19.4 | E99: 18.5 | F99: 18.7 | G99: 18.65 | H99: 18.9 | I99: 16613 | J99: 312250.85 | K99: 2019-10-09 | L99: 95 | M99: INE731A01020
A100: ARCOTECH | B100: BE | C100: 1.85 | D100: 1.85 | E100: 1.8 | F100: 1.8 | G100: 1.8 | H100: 1.85 | I100: 8714 | J100: 15741.8 | K100: 2019-10-09 | L100: 28 | M100: INE574I01035
A101: ARIES | B101: EQ | C101: 57.4 | D101: 59.65 | E101: 57.35 | F101: 58.25 | G101: 58 | H101: 58.2 | I101: 11942 | J101: 694752.45 | K101: 2019-10-09 | L101: 241 | M101: INE298I01015
A102: ARIHANT | B102: EQ | C102: 18.2 | D102: 18.9 | E102: 17.1 | F102: 18.7 | G102: 18.9 | H102: 18.2 | I102: 214 | J102: 3990.9 | K102: 2019-10-09 | L102: 9 | M102: INE413D01011
A103: ARIHANTSUP | B103: BE | C103: 30.9 | D103: 30.9 | E103: 30.9 | F103: 30.9 | G103: 30.9 | H103: 32.5 | I103: 72 | J103: 2224.8 | K103: 2019-10-09 | L103: 4 | M103: INE643K01018
A104: ARMANFIN | B104: EQ | C104: 554.95 | D104: 554.95 | E104: 535 | F104: 537.9 | G104: 536.2 | H104: 542.4 | I104: 4759 | J104: 2568865.9 | K104: 2019-10-09 | L104: 203 | M104: INE109C01017
A105: AROGRANITE | B105: EQ | C105: 38.05 | D105: 40.5 | E105: 36.95 | F105: 38.5 | G105: 38.6 | H105: 37.3 | I105: 9329 | J105: 362321.95 | K105: 2019-10-09 | L105: 155 | M105: INE210C01013
A106: ARROWGREEN | B106: EQ | C106: 54.05 | D106: 56.1 | E106: 53.25 | F106: 56.1 | G106: 56.1 | H106: 53.45 | I106: 3555 | J106: 195701.7 | K106: 2019-10-09 | L106: 155 | M106: INE570D01018
A107: ARROWTEX | B107: EQ | C107: 9.55 | D107: 10 | E107: 9.4 | F107: 9.75 | G107: 9.75 | H107: 9.55 | I107: 13331 | J107: 128174.55 | K107: 2019-10-09 | L107: 57 | M107: INE933J01015
A108: ARSHIYA | B108: EQ | C108: 20.45 | D108: 20.45 | E108: 19.5 | F108: 19.5 | G108: 19.7 | H108: 20.5 | I108: 19684 | J108: 385362.25 | K108: 2019-10-09 | L108: 113 | M108: INE968D01022
A109: ARSSINFRA | B109: EQ | C109: 21.25 | D109: 21.25 | E109: 19.25 | F109: 19.25 | G109: 19.25 | H109: 20.25 | I109: 25452 | J109: 504894.15 | K109: 2019-10-09 | L109: 248 | M109: INE267I01010
A110: ARVIND | B110: EQ | C110: 45.15 | D110: 45.15 | E110: 43.35 | F110: 44.35 | G110: 44.3 | H110: 44.85 | I110: 1192220 | J110: 52528741.35 | K110: 2019-10-09 | L110: 6688 | M110: INE034A01011
A111: ARVINDFASN | B111: EQ | C111: 424.05 | D111: 435 | E111: 419.85 | F111: 424.3 | G111: 424.1 | H111: 424.05 | I111: 10467 | J111: 4455229.5 | K111: 2019-10-09 | L111: 766 | M111: INE955V01021
A112: ARVSMART | B112: EQ | C112: 84.65 | D112: 85.75 | E112: 70.4 | F112: 84.9 | G112: 85.4 | H112: 85.8 | I112: 39853 | J112: 3200324.5 | K112: 2019-10-09 | L112: 1592 | M112: INE034S01021
A113: ASAHIINDIA | B113: EQ | C113: 180.05 | D113: 188 | E113: 180.05 | F113: 180.3 | G113: 180.1 | H113: 180.3 | I113: 8756 | J113: 1580007.4 | K113: 2019-10-09 | L113: 275 | M113: INE439A01020
A114: ASAHISONG | B114: EQ | C114: 130.9 | D114: 134.4 | E114: 128.55 | F114: 130 | G114: 130 | H114: 131.15 | I114: 2060 | J114: 267149.3 | K114: 2019-10-09 | L114: 124 | M114: INE228I01012
A115: ASAL | B115: EQ | C115: 34.2 | D115: 34.2 | E115: 32 | F115: 33.45 | G115: 33.9 | H115: 34.2 | I115: 6011 | J115: 196090.9 | K115: 2019-10-09 | L115: 147 | M115: INE900C01027
A116: ASHAPURMIN | B116: EQ | C116: 36.55 | D116: 36.55 | E116: 36 | F116: 36.55 | G116: 36.55 | H116: 34.85 | I116: 62111 | J116: 2267877.95 | K116: 2019-10-09 | L116: 137 | M116: INE348A01023
A117: ASHIANA | B117: EQ | C117: 104.35 | D117: 104.35 | E117: 100.2 | F117: 100.5 | G117: 100.5 | H117: 103.35 | I117: 60531 | J117: 6128487.15 | K117: 2019-10-09 | L117: 595 | M117: INE365D01021
A118: ASHIMASYN | B118: EQ | C118: 7.8 | D118: 8 | E118: 6.65 | F118: 7.3 | G118: 7.25 | H118: 7.8 | I118: 51925 | J118: 373145.2 | K118: 2019-10-09 | L118: 207 | M118: INE440A01010
A119: ASHOKA | B119: EQ | C119: 97.9 | D119: 99.4 | E119: 96.95 | F119: 97.5 | G119: 97.45 | H119: 97.45 | I119: 174686 | J119: 17147360.15 | K119: 2019-10-09 | L119: 2373 | M119: INE442H01029
A120: ASHOKLEY | B120: EQ | C120: 64.6 | D120: 69.75 | E120: 64.45 | F120: 69.05 | G120: 68.6 | H120: 64.4 | I120: 48874905 | J120: 3298781294 | K120: 2019-10-09 | L120: 100660 | M120: INE208A01029
A121: ASIANHOTNR | B121: EQ | C121: 100.1 | D121: 108.4 | E121: 100.05 | F121: 103 | G121: 103 | H121: 103.05 | I121: 2143 | J121: 220699.9 | K121: 2019-10-09 | L121: 12 | M121: INE363A01022
A122: ASIANPAINT | B122: EQ | C122: 1725.7 | D122: 1778 | E122: 1725.7 | F122: 1773.45 | G122: 1767.2 | H122: 1725.15 | I122: 1777552 | J122: 3114278348 | K122: 2019-10-09 | L122: 81865 | M122: INE021A01026
A123: ASIANTILES | B123: EQ | C123: 215.25 | D123: 217.7 | E123: 183.5 | F123: 210.15 | G123: 210 | H123: 215.1 | I123: 91907 | J123: 19058680.05 | K123: 2019-10-09 | L123: 4639 | M123: INE022I01019
A124: ASPINWALL | B124: EQ | C124: 130.3 | D124: 135.8 | E124: 127.2 | F124: 133.2 | G124: 132.5 | H124: 134.6 | I124: 2044 | J124: 270418.85 | K124: 2019-10-09 | L124: 29 | M124: INE991I01015
A125: ASSAMCO | B125: BE | C125: 0.55 | D125: 0.6 | E125: 0.55 | F125: 0.6 | G125: 0.6 | H125: 0.6 | I125: 86949 | J125: 51083.65 | K125: 2019-10-09 | L125: 30 | M125: INE442A01024
A126: ASTEC | B126: EQ | C126: 375 | D126: 395 | E126: 373.55 | F126: 374.3 | G126: 375 | H126: 382.15 | I126: 5201 | J126: 1964757.85 | K126: 2019-10-09 | L126: 283 | M126: INE563J01010
A127: ASTERDM | B127: EQ | C127: 116.15 | D127: 119.4 | E127: 115.2 | F127: 117.05 | G127: 118 | H127: 116.15 | I127: 425908 | J127: 49587463.1 | K127: 2019-10-09 | L127: 708 | M127: INE914M01019
A128: ASTRAL | B128: EQ | C128: 1196.9 | D128: 1199.85 | E128: 1173.95 | F128: 1190.5 | G128: 1192 | H128: 1189.9 | I128: 120989 | J128: 143996294.9 | K128: 2019-10-09 | L128: 4155 | M128: INE006I01046
A129: ASTRAMICRO | B129: EQ | C129: 80.05 | D129: 80.1 | E129: 78.1 | F129: 79.45 | G129: 79.25 | H129: 77.8 | I129: 477898 | J129: 38156244.25 | K129: 2019-10-09 | L129: 949 | M129: INE386C01029
A130: ASTRAZEN | B130: EQ | C130: 2140.25 | D130: 2218.35 | E130: 2126.05 | F130: 2200.75 | G130: 2175 | H130: 2146.95 | I130: 16180 | J130: 35099573.6 | K130: 2019-10-09 | L130: 1377 | M130: INE203A01020
A131: ASTRON | B131: EQ | C131: 99.5 | D131: 99.5 | E131: 96.5 | F131: 98.25 | G131: 98.5 | H131: 98.1 | I131: 720959 | J131: 70789596.8 | K131: 2019-10-09 | L131: 5439 | M131: INE646X01014
A132: ATFL | B132: EQ | C132: 484.35 | D132: 486.8 | E132: 478.35 | F132: 485.8 | G132: 486 | H132: 488.8 | I132: 5999 | J132: 2883207.75 | K132: 2019-10-09 | L132: 191 | M132: INE209A01019
A133: ATLANTA | B133: BE | C133: 7.35 | D133: 7.6 | E133: 7.15 | F133: 7.25 | G133: 7.25 | H133: 7.5 | I133: 6153 | J133: 44422.75 | K133: 2019-10-09 | L133: 45 | M133: INE285H01022
A134: ATUL | B134: EQ | C134: 3980 | D134: 3998 | E134: 3927 | F134: 3943.1 | G134: 3958.9 | H134: 3966.3 | I134: 4681 | J134: 18471277.95 | K134: 2019-10-09 | L134: 2073 | M134: INE100A01010
A135: ATULAUTO | B135: EQ | C135: 225.7 | D135: 229.8 | E135: 224.95 | F135: 228.75 | G135: 228.15 | H135: 224.5 | I135: 3688 | J135: 838133.7 | K135: 2019-10-09 | L135: 169 | M135: INE951D01028
A136: AUBANK | B136: EQ | C136: 654.8 | D136: 654.8 | E136: 639.65 | F136: 641.25 | G136: 641 | H136: 652.95 | I136: 466926 | J136: 303351500.7 | K136: 2019-10-09 | L136: 6890 | M136: INE949L01017
A137: AURIONPRO | B137: EQ | C137: 95 | D137: 96.95 | E137: 90.8 | F137: 91.2 | G137: 91 | H137: 94.05 | I137: 8459 | J137: 780781.55 | K137: 2019-10-09 | L137: 331 | M137: INE132H01018
A138: AUROPHARMA | B138: EQ | C138: 474.15 | D138: 485 | E138: 454.15 | F138: 474.4 | G138: 474.4 | H138: 459.85 | I138: 17998262 | J138: 8501453626 | K138: 2019-10-09 | L138: 244850 | M138: INE406A01037
A139: AUSOMENT | B139: EQ | C139: 29 | D139: 29 | E139: 27.7 | F139: 28.05 | G139: 27.7 | H139: 27.2 | I139: 852 | J139: 24068.15 | K139: 2019-10-09 | L139: 40 | M139: INE218C01016
A140: AUTOAXLES | B140: EQ | C140: 880.05 | D140: 889.8 | E140: 855.25 | F140: 862.3 | G140: 859.4 | H140: 872.05 | I140: 3198 | J140: 2770871.05 | K140: 2019-10-09 | L140: 505 | M140: INE449A01011
A141: AUTOIND | B141: EQ | C141: 36.2 | D141: 39.9 | E141: 34.1 | F141: 34.55 | G141: 34.9 | H141: 34.8 | I141: 7913 | J141: 277147.6 | K141: 2019-10-09 | L141: 358 | M141: INE718H01014
A142: AUTOLITIND | B142: EQ | C142: 18.75 | D142: 21.7 | E142: 18.75 | F142: 19.85 | G142: 19.8 | H142: 20.75 | I142: 3712 | J142: 73571.1 | K142: 2019-10-09 | L142: 76 | M142: INE448A01013
A143: AVADHSUGAR | B143: EQ | C143: 266.95 | D143: 270.5 | E143: 256.4 | F143: 263.9 | G143: 262.95 | H143: 265.4 | I143: 48025 | J143: 12611655.85 | K143: 2019-10-09 | L143: 1980 | M143: INE349W01017
A144: AVANTIFEED | B144: EQ | C144: 353.2 | D144: 358.85 | E144: 343.55 | F144: 355.2 | G144: 355 | H144: 354.85 | I144: 168185 | J144: 59515007 | K144: 2019-10-09 | L144: 5109 | M144: INE871C01038
A145: AVTNPL | B145: EQ | C145: 23 | D145: 23.1 | E145: 22.6 | F145: 23 | G145: 23 | H145: 23 | I145: 7753 | J145: 177699.45 | K145: 2019-10-09 | L145: 80 | M145: INE488D01021
A146: AXISBANK | B146: EQ | C146: 671.9 | D146: 689.5 | E146: 664.3 | F146: 686.3 | G146: 686.95 | H146: 673.45 | I146: 11537721 | J146: 7821974756 | K146: 2019-10-09 | L146: 153497 | M146: INE238A01034
A147: AXISCADES | B147: EQ | C147: 78.35 | D147: 80 | E147: 76.4 | F147: 78.35 | G147: 78.3 | H147: 78.25 | I147: 54202 | J147: 4261343.3 | K147: 2019-10-09 | L147: 602 | M147: INE555B01013
A148: AXISGOLD | B148: EQ | C148: 3448 | D148: 3448 | E148: 3348.3 | F148: 3371.5 | G148: 3348.3 | H148: 3374.95 | I148: 734 | J148: 2475448.3 | K148: 2019-10-09 | L148: 119 | M148: INF846K01347
A149: AXISNIFTY | B149: EQ | C149: 1147.77 | D149: 1160 | E149: 1147.77 | F149: 1160 | G149: 1160 | H149: 1143.8 | I149: 42 | J149: 48476.28 | K149: 2019-10-09 | L149: 13 | M149: INF846K01ZL0
A150: AYMSYNTEX | B150: EQ | C150: 29.05 | D150: 30.8 | E150: 28.5 | F150: 29.7 | G150: 30 | H150: 29.75 | I150: 12483 | J150: 365876.9 | K150: 2019-10-09 | L150: 380 | M150: INE193B01039
A151: BAGFILMS | B151: EQ | C151: 1.5 | D151: 1.5 | E151: 1.45 | F151: 1.45 | G151: 1.45 | H151: 1.5 | I151: 149039 | J151: 217940.45 | K151: 2019-10-09 | L151: 145 | M151: INE116D01028
A152: BAJAJ-AUTO | B152: EQ | C152: 2889 | D152: 2915 | E152: 2877.75 | F152: 2891.85 | G152: 2879.5 | H152: 2892.3 | I152: 355878 | J152: 1030083155 | K152: 2019-10-09 | L152: 23178 | M152: INE917I01010
A153: BAJAJCON | B153: EQ | C153: 243 | D153: 245 | E153: 240.5 | F153: 243.7 | G153: 242.45 | H153: 242.8 | I153: 44717 | J153: 10876465.1 | K153: 2019-10-09 | L153: 1038 | M153: INE933K01021
A154: BAJAJELEC | B154: EQ | C154: 380 | D154: 383.95 | E154: 371.3 | F154: 376.8 | G154: 376.85 | H154: 378.4 | I154: 57904 | J154: 21713102.45 | K154: 2019-10-09 | L154: 1886 | M154: INE193E01025
A155: BAJAJFINSV | B155: EQ | C155: 8279 | D155: 8349.9 | E155: 8176 | F155: 8318.25 | G155: 8300 | H155: 8220 | I155: 329837 | J155: 2723493344 | K155: 2019-10-09 | L155: 33409 | M155: INE918I01018
A156: BAJAJHIND | B156: EQ | C156: 6.3 | D156: 6.3 | E156: 5.95 | F156: 6.1 | G156: 6.05 | H156: 6.25 | I156: 830294 | J156: 5034633.95 | K156: 2019-10-09 | L156: 853 | M156: INE306A01021
A157: BAJAJHLDNG | B157: EQ | C157: 3590.05 | D157: 3625 | E157: 3575 | F157: 3616 | G157: 3624 | H157: 3587.6 | I157: 11569 | J157: 41691591.45 | K157: 2019-10-09 | L157: 2496 | M157: INE118A01012
A158: BAJFINANCE | B158: EQ | C158: 3915 | D158: 4035 | E158: 3880.05 | F158: 4023.9 | G158: 4023.95 | H158: 3900.9 | I158: 1356600 | J158: 5359085941 | K158: 2019-10-09 | L158: 82528 | M158: INE296A01024
A159: BALAJITELE | B159: EQ | C159: 53.9 | D159: 54.75 | E159: 51.2 | F159: 53.2 | G159: 53.5 | H159: 52.85 | I159: 23857 | J159: 1245495.2 | K159: 2019-10-09 | L159: 490 | M159: INE794B01026
A160: BALAMINES | B160: EQ | C160: 305.15 | D160: 321 | E160: 305.15 | F160: 312.05 | G160: 311.5 | H160: 311.6 | I160: 19019 | J160: 5958165.15 | K160: 2019-10-09 | L160: 1437 | M160: INE050E01027
A161: BALAXI | B161: EQ | C161: 90.9 | D161: 90.9 | E161: 82.3 | F161: 85 | G161: 90 | H161: 86.6 | I161: 1875 | J161: 159868.3 | K161: 2019-10-09 | L161: 28 | M161: INE618N01014
A162: BALKRISHNA | B162: BE | C162: 24.65 | D162: 24.65 | E162: 24.65 | F162: 24.65 | G162: 24.65 | H162: 25.9 | I162: 2018 | J162: 49743.7 | K162: 2019-10-09 | L162: 30 | M162: INE875R01011
A163: BALKRISIND | B163: EQ | C163: 716.85 | D163: 734.95 | E163: 707 | F163: 733.05 | G163: 734.95 | H163: 725.1 | I163: 440297 | J163: 317985212 | K163: 2019-10-09 | L163: 14545 | M163: INE787D01026
A164: BALLARPUR | B164: EQ | C164: 0.6 | D164: 0.6 | E164: 0.5 | F164: 0.6 | G164: 0.6 | H164: 0.55 | I164: 6672121 | J164: 3763628.05 | K164: 2019-10-09 | L164: 419 | M164: INE294A01037
A165: BALMLAWRIE | B165: EQ | C165: 165 | D165: 169.4 | E165: 164.6 | F165: 166.15 | G165: 168.45 | H165: 166.15 | I165: 52821 | J165: 8794398.3 | K165: 2019-10-09 | L165: 1277 | M165: INE164A01016
A166: BALPHARMA | B166: EQ | C166: 38.35 | D166: 38.35 | E166: 36.55 | F166: 37.55 | G166: 37.5 | H166: 38.3 | I166: 4249 | J166: 159298.1 | K166: 2019-10-09 | L166: 172 | M166: INE083D01012
A167: BALRAMCHIN | B167: EQ | C167: 155.55 | D167: 156.9 | E167: 151.3 | F167: 154.2 | G167: 154.85 | H167: 155.4 | I167: 627170 | J167: 96748211.85 | K167: 2019-10-09 | L167: 11379 | M167: INE119A01028
A168: BANARBEADS | B168: EQ | C168: 36 | D168: 36.95 | E168: 29.15 | F168: 29.45 | G168: 29.5 | H168: 36.4 | I168: 26924 | J168: 820035.15 | K168: 2019-10-09 | L168: 1151 | M168: INE655B01011
A169: BANARISUG | B169: EQ | C169: 1102.05 | D169: 1131.05 | E169: 1102.05 | F169: 1130 | G169: 1130 | H169: 1145 | I169: 64 | J169: 72069.85 | K169: 2019-10-09 | L169: 23 | M169: INE459A01010
A170: BANCOINDIA | B170: EQ | C170: 98.2 | D170: 98.5 | E170: 95.35 | F170: 97.5 | G170: 97.6 | H170: 97.3 | I170: 24654 | J170: 2398156.6 | K170: 2019-10-09 | L170: 908 | M170: INE213C01025
A171: BANDHANBNK | B171: EQ | C171: 482.1 | D171: 484.4 | E171: 471.15 | F171: 480.55 | G171: 480 | H171: 479.55 | I171: 403420 | J171: 192805550.3 | K171: 2019-10-09 | L171: 39986 | M171: INE545U01014
A172: BANG | B172: EQ | C172: 19.85 | D172: 22 | E172: 19.1 | F172: 20.35 | G172: 21 | H172: 19.65 | I172: 13742 | J172: 274030.95 | K172: 2019-10-09 | L172: 140 | M172: INE863I01016
A173: BANKBARODA | B173: EQ | C173: 86.2 | D173: 91.6 | E173: 86 | F173: 91.05 | G173: 91.1 | H173: 87.25 | I173: 29668675 | J173: 2642237463 | K173: 2019-10-09 | L173: 81565 | M173: INE028A01039
A174: BANKBEES | B174: EQ | C174: 2887.95 | D174: 2944 | E174: 2828.7 | F174: 2935.13 | G174: 2936.5 | H174: 2833.34 | I174: 16980 | J174: 49403040.65 | K174: 2019-10-09 | L174: 1929 | M174: INF732E01078
A175: BANKINDIA | B175: EQ | C175: 59.25 | D175: 62.2 | E175: 57.45 | F175: 61.6 | G175: 61.55 | H175: 59.5 | I175: 11049824 | J175: 663761924.9 | K175: 2019-10-09 | L175: 24068 | M175: INE084A01016
A176: BANSWRAS | B176: EQ | C176: 69 | D176: 70.8 | E176: 67.6 | F176: 69.35 | G176: 68.05 | H176: 71.05 | I176: 3535 | J176: 244011.35 | K176: 2019-10-09 | L176: 74 | M176: INE629D01012
A177: BARTRONICS | B177: BE | C177: 1.85 | D177: 1.85 | E177: 1.85 | F177: 1.85 | G177: 1.85 | H177: 1.9 | I177: 4743 | J177: 8774.55 | K177: 2019-10-09 | L177: 16 | M177: INE855F01034
A178: BASF | B178: EQ | C178: 1000 | D178: 1021.9 | E178: 984.5 | F178: 999.15 | G178: 993 | H178: 985.85 | I178: 37187 | J178: 37286325 | K178: 2019-10-09 | L178: 1375 | M178: INE373A01013
A179: BASML | B179: EQ | C179: 125 | D179: 126 | E179: 122.5 | F179: 126 | G179: 126 | H179: 123.85 | I179: 843 | J179: 104533.8 | K179: 2019-10-09 | L179: 20 | M179: INE186H01014
A180: BATAINDIA | B180: EQ | C180: 1680 | D180: 1735 | E180: 1660.5 | F180: 1723.5 | G180: 1719.7 | H180: 1681.75 | I180: 816170 | J180: 1387174678 | K180: 2019-10-09 | L180: 37900 | M180: INE176A01028
A181: BAYERCROP | B181: EQ | C181: 3339 | D181: 3370.05 | E181: 3292 | F181: 3340.9 | G181: 3335 | H181: 3333.45 | I181: 4645 | J181: 15504052.8 | K181: 2019-10-09 | L181: 1268 | M181: INE462A01022
A182: BBL | B182: EQ | C182: 882.05 | D182: 897.05 | E182: 874.1 | F182: 890.75 | G182: 895 | H182: 890.85 | I182: 9876 | J182: 8742965.55 | K182: 2019-10-09 | L182: 651 | M182: INE464A01028
A183: BBTC | B183: EQ | C183: 1079.95 | D183: 1111 | E183: 1076 | F183: 1092.15 | G183: 1092.05 | H183: 1079.7 | I183: 109646 | J183: 119905257.4 | K183: 2019-10-09 | L183: 7143 | M183: INE050A01025
A184: BCG | B184: EQ | C184: 3.4 | D184: 3.45 | E184: 3.2 | F184: 3.25 | G184: 3.25 | H184: 3.3 | I184: 164496 | J184: 538172.75 | K184: 2019-10-09 | L184: 182 | M184: INE425B01027
A185: BCP | B185: EQ | C185: 9.45 | D185: 9.45 | E185: 9.45 | F185: 9.45 | G185: 9.45 | H185: 9.6 | I185: 731 | J185: 6907.95 | K185: 2019-10-09 | L185: 4 | M185: INE905P01028
A186: BDL | B186: EQ | C186: 285.5 | D186: 289.7 | E186: 282.1 | F186: 286.25 | G186: 286 | H186: 285 | I186: 21420 | J186: 6125008.9 | K186: 2019-10-09 | L186: 1538 | M186: INE171Z01018
A187: BEARDSELL | B187: EQ | C187: 10.7 | D187: 10.85 | E187: 10.35 | F187: 10.85 | G187: 10.85 | H187: 10.8 | I187: 395 | J187: 4091.3 | K187: 2019-10-09 | L187: 15 | M187: INE520H01022
A188: BEDMUTHA | B188: EQ | C188: 11.35 | D188: 11.45 | E188: 10.7 | F188: 10.85 | G188: 10.75 | H188: 11.75 | I188: 22085 | J188: 241568.95 | K188: 2019-10-09 | L188: 55 | M188: INE844K01012
A189: BEL | B189: EQ | C189: 105 | D189: 106.65 | E189: 104.05 | F189: 105.4 | G189: 105.1 | H189: 104.35 | I189: 6724764 | J189: 707174630 | K189: 2019-10-09 | L189: 31830 | M189: INE263A01024
A190: BEML | B190: EQ | C190: 939 | D190: 949 | E190: 930.25 | F190: 934.7 | G190: 931 | H190: 937.15 | I190: 406937 | J190: 382689060.6 | K190: 2019-10-09 | L190: 12328 | M190: INE258A01016
A191: BEPL | B191: EQ | C191: 49 | D191: 53.4 | E191: 48 | F191: 52.3 | G191: 53 | H191: 48.6 | I191: 502937 | J191: 25275472.6 | K191: 2019-10-09 | L191: 3683 | M191: INE922A01025
A192: BERGEPAINT | B192: EQ | C192: 436.5 | D192: 451.9 | E192: 432.05 | F192: 449.9 | G192: 450 | H192: 435.35 | I192: 3846974 | J192: 1708371439 | K192: 2019-10-09 | L192: 109277 | M192: INE463A01038
A193: BFINVEST | B193: EQ | C193: 276.7 | D193: 280.8 | E193: 273 | F193: 275.45 | G193: 275 | H193: 274.45 | I193: 26735 | J193: 7421345.3 | K193: 2019-10-09 | L193: 1084 | M193: INE878K01010
A194: BFUTILITIE | B194: EQ | C194: 161.9 | D194: 166.9 | E194: 158.45 | F194: 165.1 | G194: 165 | H194: 161.1 | I194: 290308 | J194: 47557449.95 | K194: 2019-10-09 | L194: 6989 | M194: INE243D01012
A195: BGLOBAL | B195: BE | C195: 1.65 | D195: 1.65 | E195: 1.6 | F195: 1.6 | G195: 1.6 | H195: 1.6 | I195: 5247 | J195: 8424.55 | K195: 2019-10-09 | L195: 11 | M195: INE224M01013
A196: BGRENERGY | B196: EQ | C196: 33.5 | D196: 34.3 | E196: 32.1 | F196: 32.45 | G196: 32.4 | H196: 33.3 | I196: 41874 | J196: 1371313.95 | K196: 2019-10-09 | L196: 622 | M196: INE661I01014
A197: BHAGERIA | B197: EQ | C197: 102.55 | D197: 105 | E197: 100.8 | F197: 104 | G197: 103.2 | H197: 104 | I197: 7140 | J197: 735816.3 | K197: 2019-10-09 | L197: 285 | M197: INE354C01027
A198: BHAGYANGR | B198: EQ | C198: 18.1 | D198: 19.9 | E198: 17.35 | F198: 18.85 | G198: 18.8 | H198: 18.95 | I198: 18255 | J198: 340140.15 | K198: 2019-10-09 | L198: 242 | M198: INE458B01036
A199: BHAGYAPROP | B199: EQ | C199: 20.25 | D199: 20.25 | E199: 16.3 | F199: 19.35 | G199: 19.5 | H199: 20.35 | I199: 66571 | J199: 1192037.35 | K199: 2019-10-09 | L199: 265 | M199: INE363W01018
A200: BHANDARI | B200: EQ | C200: 1.25 | D200: 1.25 | E200: 1.15 | F200: 1.2 | G200: 1.2 | H200: 1.25 | I200: 17556 | J200: 20908.35 | K200: 2019-10-09 | L200: 32 | M200: INE474E01029
... 1491 more rows

Sheet Sheet1 (hidden)

Sheet Sheet3 (hidden)

Sheet Sheet4 (hidden)

Sheet Sheet5 (hidden)
